{"text_format":"1","workbook":"xlsx","n_sheets":11,"sheets":["Read This Sheet","Global Inputs","CAPEX - Input","CAPEX - Stock Costs","CAPEX - Hybid Calcs","CAPEX Build Up","OPEX Input","Warranty NPV","OPEX Calc","Mapping & Lookups","New Component SLUOS"],"not_rendered":{"charts":0,"images":1,"macros":1,"external_links":1,"defined_names":18,"comments":3,"pivot_tables":0},"unopened":[],"bounds":{"document_bytes":16777216,"sheet_cells":100000,"rows_first":2000,"rows_last":500,"rows_between":2000,"halvings":0,"cell_chars":16384,"cell_head_chars":4096},"cells_cut":0,"cells_raw":0,"read":"whole","date_system":"1900"}

{"sheet":"Read This Sheet","index":0,"n_rows":24,"n_cols":2,"rows_kept":24,"cut":false,"hidden":false,"merged":[[0,4,0,5],[4,0,4,1],[6,0,6,1]]}
["SLUOS Construction Cost Calculation Workbook"]
[]
["Description"]
[]
["This Excel workbook contains a costing model for the calculation of SLUOS Capital charges.\nSLUOS Capital and OPEX charges for the various types of streetlights that Essential Energy constructs. "]
[]
["This workbook is designed to take financial, technical and material inputs to calculate both CAPEX and OPEX charges applicable to assemblies relating to Streetlights. For OPEX this is achieved through a ground up approach by calcualting the forecasted level of maintenance per failure rates and calculating the cost of repairs utilising labour, plant and material rates. For CAPEX this is achieved by calculating the cost of labour, plant and materials and applying a return on investment of a period of time for the economic life of the asset. This model takes into consideration appropriate overheads, oncosts and CPI to establish the final fully loaded SLUOS charges. These charges are based on a P.A charge."]
[]
["A description of each of the sheets is contained below:"]
[]
["Worksheet","Function"]
["Global Inputs","Contains all inputs from other major workbooks - including overheads, oncosts, pay rates."]
["CAPEX Inputs","• Contains a list of all stock and their associated costs.  This data is extracted from WASP.\n• Models the design costs associated with streetlights.\n• Contains components (from stock list) used to construct larger assemblies, giving prices for each.\n• Models the traffic control costs associated with a streetlight construction.\n"]
["CAPEX - Stock Costs","Contains all stock costs as per 16/17 dollars as tracked through procurement purchase prices"]
["CAPEX - Hybrid Calcs","Calculates assembly costs where assembly cannot be directly calculated (i.e. insufficient data to distinguish assets)"]
["CAPEX Build Up","• For the assemblies listed in the CAPEX Input (luminaire, bracket, pole) the CAPEX cost for the component is calculated.\n• This is then calculated as an annual cost based of a given asset lifespan.\n"]
["OPEX Input","• For a given lamp type, this sheet contains the associated lamp, ballast/igniter and starter/PE cell cost.  It also contains the failure rates for these components.\n• Pole maintenance costs are modelled\n• Small component usage (fuses, etc) are measured to be able to provide a cost per pole to account for these otherwise unrecovered costs\n• Bulk Works Additional Material usage is measured to pass on these costs on an average per pole basis\n• Streetlight Improvement Programs are listed to be able to have these costs passed on, in a per pole cost\n"]
["Warrenty NPV","• Given that LEDs have parts and labour warranty for the first three years, the average NPV cost of maintenance is calculated across the span of the luminaire’s lifetime "]
["OPEX Calc","• All luminaires and poles now have their associated costs calculated "]
["Mapping & Lookups","• This sheet provides construction information for a given construction code (type of pole, number of luminaires etc)\n• Because of different naming conventions for a number of the bulbs and luminaire types, this sheet provides a given CAPEX and OPEX code for a given lamp code from the traditional tariff code.  This then allows the costs to be found in the CAPEX Calc and OPEX Calc sheets\n"]
["New Component SLUOS (For New Assets)","• To be able to map to the old lamp tariff codes, the new componentised structure is now collapsed again, such that it can map according allowing direct comparison of the old and new costs for a given assembly type."]
[]
["Date of Creation","October 4 2017"]
["Updated","-"]

{"sheet":"Global Inputs","index":1,"n_rows":62,"n_cols":13,"rows_kept":62,"cut":false,"hidden":false,"merged":[[0,0,0,3]]}
["Global Inputs"]
["Description:"]
["This sheet contains all the major inputs for this spreadheet such as overheads and oncosts."]
[]
[]
[]
["Real 2018-19$"]
["Cost_Type","Source",null,"FY18","FY19","FY20","FY21","FY22","FY23","FY24","Average 20-24",null,"To use in model"]
[]
["Labour Rates",null,"2016/17"]
["R3 Engineering Officer","Ancillary Services Model 19_24",{"$f":"[1]Inputs!E24","v":73.73},{"$f":"[1]Inputs!F24","v":75.204599999999999},{"$f":"[1]Inputs!G24","v":75.937844849999991},{"$f":"E11","v":75.937844849999991},{"$f":"F11","v":75.937844849999991},75.937844849999991,75.937844849999991,75.937844849999991,null,null,{"$f":"E11","v":75.937844849999991}]
["R5 Lineworker 5 Paypoint 19","Email from Bill Glyde (and Sam Peake) 1pm 26/9/17",38.770000000000003,{"$f":"C12*[1]Inputs!F11","v":39.265089389366146},{"$f":"C12*[1]Inputs!$G$11","v":40.030758632458792},{"$f":"E12","v":40.030758632458792},{"$f":"F12","v":40.030758632458792},40.030758632458792,40.030758632458792,40.030758632458792,null,null,{"$f":"E12","v":40.030758632458792}]
["R2a Indoor technical officer","Ancillary Services Model 19_24",{"$f":"[1]Inputs!E22","v":64.19},{"$f":"[1]Inputs!F22","v":65.473799999999997},{"$f":"[1]Inputs!G22","v":66.11216954999999},{"$f":"E13","v":66.11216954999999},{"$f":"F13","v":66.11216954999999},66.11216954999999,66.11216954999999,66.11216954999999,null,null,66.11216954999999]
[]
[]
[]
["Plant Material Type",null,"Hourly Rate $17/18"]
["EWP","Finance rate",18.87,null,{"$f":"[1]Inputs!$G$51","v":19.732436288346317},{"$f":"[1]Inputs!$H$51","v":19.732436288346317},{"$f":"[1]Inputs!$I$51","v":19.732436288346317},{"$f":"[1]Inputs!$J$51","v":19.732436288346317},{"$f":"[1]Inputs!$K$51","v":19.732436288346317},{"$f":"[1]Inputs!$L$51","v":19.732436288346317},null,null,{"$f":"E18","v":19.732436288346317}]
["Borer","Finance rate",18.87,null,{"$f":"E18","v":19.732436288346317},{"$f":"F18","v":19.732436288346317},19.732436288346317,19.732436288346317,19.732436288346317,19.732436288346317,null,null,{"$f":"E19","v":19.732436288346317}]
["Ditchwitch","Finance rate",18.87,null,{"$f":"E18","v":19.732436288346317},{"$f":"F18","v":19.732436288346317},19.732436288346317,19.732436288346317,19.732436288346317,19.732436288346317,null,null,19.732436288346317]
["Trailer/Jinker","Finance rate",5.18,null,{"$f":"$C21*(1+[1]Inputs!$G$8)","v":5.2810100000000002},{"$f":"E21","v":5.2810100000000002},5.2810100000000002,5.2810100000000002,5.2810100000000002,5.2810100000000002,null,null,5.2810100000000002]
["Ute / Van","Finance rate",5.18,null,{"$f":"$C22*(1+[1]Inputs!$G$8)","v":5.2810100000000002},5.2810100000000002,5.2810100000000002,5.2810100000000002,5.2810100000000002,5.2810100000000002,null,null,5.2810100000000002]
["4 tonne truck","Finance rate",18.87,null,{"$f":"E18","v":19.732436288346317},{"$f":"F18","v":19.732436288346317},19.732436288346317,19.732436288346317,19.732436288346317,19.732436288346317,null,null,19.732436288346317]
[]
["WACC","ACS PTRM Model sheet \"WACC\""]
["Nominal Vanilla WACC","Public lighting PTRM",null,null,null,6.3420000000000004E-2,{"$f":"F26","v":6.3420000000000004E-2},{"$f":"G26","v":6.3420000000000004E-2},6.3420000000000004E-2,6.3420000000000004E-2,null,null,{"$f":"F26","v":6.3420000000000004E-2}]
["Real Vanilla WACC","Public lighting PTRM",null,null,null,3.7482926829268549E-2,{"$f":"F27","v":3.7482926829268549E-2},{"$f":"G27","v":3.7482926829268549E-2},3.7482926829268549E-2,3.7482926829268549E-2,null,null,{"$f":"F27","v":3.7482926829268549E-2}]
["Post-tax Nominal WACC ","Public lighting PTRM",null,null,null,5.7188400000000437E-2,5.7188400000000437E-2,{"$f":"G28","v":5.7188400000000437E-2},5.7188400000000437E-2,5.7188400000000437E-2,null,null,5.7188400000000437E-2]
["Post-tax Real WACC ","Public lighting PTRM",null,null,null,3.1403317073171344E-2,3.1403317073171344E-2,{"$f":"G29","v":3.1403317073171344E-2},3.1403317073171344E-2,3.1403317073171344E-2,null,null,3.1403317073171344E-2]
["Pre-tax Nominal WACC ","Public lighting PTRM",null,null,null,6.8008013345999971E-2,6.8008013345999971E-2,{"$f":"G30","v":6.8008013345999971E-2},6.8008013345999971E-2,6.8008013345999971E-2,null,null,6.8008013345999971E-2]
["Pre-tax Real WACC ","Public lighting PTRM",null,null,null,4.1959037410731703E-2,4.1959037410731703E-2,{"$f":"G31","v":4.1959037410731703E-2},4.1959037410731703E-2,4.1959037410731703E-2,null,null,4.1959037410731703E-2]
["Nominal Tax Allowance","Public lighting PTRM",null,null,null,1.0819613345999533E-2,1.0819613345999533E-2,{"$f":"G32","v":1.0819613345999533E-2},1.0819613345999533E-2,1.0819613345999533E-2,null,null,1.0819613345999533E-2]
["Real Tax Allowance","Public lighting PTRM",null,null,null,1.0555720337560359E-2,1.0555720337560359E-2,{"$f":"G33","v":1.0555720337560359E-2},1.0555720337560359E-2,1.0555720337560359E-2,null,null,1.0555720337560359E-2]
[]
["On-Cost Rates"]
["Materials On-Cost Rate","Ancillary Services Model ",null,null,{"$f":"[1]Inputs!G38","v":0.1031},{"$f":"[1]Inputs!H38","v":0.1031},{"$f":"[1]Inputs!I38","v":0.1031},{"$f":"[1]Inputs!J38","v":0.1031},{"$f":"[1]Inputs!K38","v":0.1031},{"$f":"[1]Inputs!L38","v":0.1031},null,null,{"$f":"E36","v":0.1031}]
["Labour Annual Escalator","Not applied - absorbed by efficiency gains",null,null,0,0,0,0,0,0,null,null,{"$f":"E37","v":0}]
["Labour Ordinary On-Cost Rate","Ancillary Services Model ",null,null,{"$f":"[1]Inputs!$G$34","v":0.56189999999999996},{"$f":"[1]Inputs!$H$34","v":0.56189999999999996},{"$f":"[1]Inputs!$I$34","v":0.56189999999999996},{"$f":"[1]Inputs!$J$34","v":0.56189999999999996},{"$f":"[1]Inputs!$K$34","v":0.56189999999999996},{"$f":"[1]Inputs!$L$34","v":0.56189999999999996},null,null,0.56189999999999996]
[]
["CAPEX Overhead Rates"]
["Corporate","5. ROMO FP",null,0.186027108823,0.16802116538098127,0.15400356359340731,0.14456256242699944,0.1286499369842789,0.11927699261874777,0.11620175398515514,{"$f":"AVERAGE(F41:J41)","v":0.13253896192171771},null,{"$f":"K41","v":0.13253896192171771}]
["Divisional","5. ROMO FP",null,0.34000056433543474,0.30289647822806226,0.31117243083176011,0.28242900600252741,0.28202006721409617,0.28071549636387005,0.28369909655689152,{"$f":"AVERAGE(F42:J42)","v":0.28800721939382906},null,{"$f":"K42","v":0.28800721939382906}]
[null,null,null,{"$f":"SUM(D41:D42)","v":0.52602767315843479},{"$f":"SUM(E41:E42)","v":0.47091764360904353},0.46517599442516744,0.42699156842952685,0.41067000419837507,0.39999248898261786,0.39990085054204666,{"$f":"SUM(K41:K42)","v":0.42054618131554677},null,{"$f":"SUM(M41:M42)","v":0.42054618131554677}]
["OPEX Overhead Rates"]
["Corporate","5. ROMO FP",null,0.22570776455410074,0.19861484273611507,0.19347070252568901,0.1814465838770237,0.16183263587265098,0.15900643275932835,0.15331902375491013,{"$f":"AVERAGE(F45:J45)","v":0.16981507575792043},null,{"$f":"K45","v":0.16981507575792043}]
["Divisional","5. ROMO FP",null,0.35049180412311459,0.30727836591463098,0.36256642022681379,0.33978219933007348,0.32859979412539986,0.32613265620022158,0.3119150124799398,{"$f":"AVERAGE(F46:J46)","v":0.33379921647248967},null,{"$f":"K46","v":0.33379921647248967}]
[null,null,null,{"$f":"SUM(D45:D46)","v":0.57619956867721533},{"$f":"SUM(E45:E46)","v":0.50589320865074605},0.55603712275250283,0.5212287832070972,0.49043242999805081,0.48513908895954994,0.46523403623484993,{"$f":"SUM(K45:K46)","v":0.5036142922304101},null,{"$f":"SUM(M45:M46)","v":0.5036142922304101}]
["Non-System Overheads - Given To OPEX"]
["Direct opex Spend Street Lighting","5. ROMO FP",null,8670000,10020000,6760000,7360000,8270000,7080000,8940000]
["Non-System Spend","5. ROMO FP",null,"n/a","n/a",962463.00398557447,1524417.7108894023,1805433.7906912121,2121811.1325231465,2186863.0092291557]
["Non-System Overheads (to be spread over opex only)","Calculation",null,null,null,{"$f":"F50/F49","v":0.14237618402153468},{"$f":"G50/G49","v":0.20712197158823401},0.21831122015613205,0.29969083792699808,0.24461554913077804]
[]
[]
["LED Warranty NPV Discout Rate"]
["Discount Rate",null,null,null,null,{"$f":"F30","v":6.8008013345999971E-2},{"$f":"G30","v":6.8008013345999971E-2},6.8008013345999971E-2,6.8008013345999971E-2,6.8008013345999971E-2,null,null,{"$f":"F55","v":6.8008013345999971E-2}]
[]
["Cumulative weighted average escalation rate(real)","ROMO"]
["Public lighting (capex)","5. ROMO FP","No escalation applied",null,1,1,1,1,1,1]
["Public lighting (opex)","5. ROMO FP","No escalation applied",null,1,1,1,1,1,1]
["Consumer Price Index","ROMO"]
["Annual CPI Rate","5. ROMO FP","Not required",null,null,"n/a","n/a","n/a","n/a","n/a"]
["Cumulative CPI rate Nominal to 18/19","5. ROMO FP",null,null,1.0325189226840028,{"$f":"E62","v":1.0325189226840028},{"$f":"F62","v":1.0325189226840028},1.0325189226840028,1.0325189226840028,1.0325189226840028,null,null,{"$f":"E62","v":1.0325189226840028}]

{"sheet":"CAPEX - Input","index":2,"n_rows":152,"n_cols":39,"rows_kept":152,"cut":false,"hidden":false,"merged":[[0,1,0,3],[2,1,2,5],[46,11,46,20]]}
[null,"Section 1:  Input Data"]
[null,"Description"]
[null,"This section contains all the relevant inputs from the Global Inputs sheet, along with traffic control assuptions. "]
[]
[null,"Labour Rates",null,null,null,"Assuptions"]
[null,"R3 Engineering Officer","$ / hour",75.937844849999991,null,"Number of Light installations in model",1001]
[null,"R5 Lineworker 5 Paypoint 19","$ / hour",40.030758632458792]
[null,"R2a Indoor technical officer","$ / hour",66.11216954999999,null,"Breakdown of Installation Types"]
[null,null,null,null,null,"Bulk",0.05]
[null,"Overheads",null,null,null,"Streetlight Upgrade ",0.3]
[null,"Divisional",null,0.28800721939382906,null,"Single Column Installation ",0.65]
[null,"Corporate",null,0.13253896192171771,null,"Single Light Installation on Existing Pole",0.25]
[null,"Total",null,0.42054618131554677,null,"Single Light Installation on New Pole",0.75]
[]
[null,"On-Cost Rates",null,null,null,"Base Design Estimates"]
[null,"Materials On-Cost Rate",null,0.1031,null,"Bulk : design of a group of",5,"streetlights takes ",22,"hours"]
[null,"Labour Ordinary On-Cost Rate",null,0.56189999999999996,null,"Bulk : Lantern / Bracket design consumes",0.25,"of the total design time of ",22,"hours"]
[null,"Labour Escalation Rate (Above CPI)",null,0,null,"Bulk : Pole design consumes",0.75,"of the total design time of ",22,"hours"]
[]
[null,"Plant Assuptions",null,null,null,"Bulk : design of a group of",5,"streetlights takes ",20,"hours"]
[null,"Plant Material Type",null,"Hourly Rate",null,"Bulk : Lantern / Bracket design consumes",0.4]
[null,"EWP",null,19.732436288346317,null,"Bulk : Pole design consumes",0.6]
[null,"Borer",null,19.732436288346317,null,"Street Upgrade : TRL",0.8,"require new poles to be constructed"]
[null,"Ditchwitch",null,19.732436288346317,null,"Street Upgrade : TRL",0.19999999999999996,"use existing pole"]
[null,"Trailer/Jinker",null,5.2810100000000002,null,"Street Upgrade : Other projects",0.8,"require new poles to be constructed"]
[null,"Ute / Van",null,5.2810100000000002,null,"Street Upgrade : Other projects",0.19999999999999996,"use existing pole"]
[null,"4 tonne truck",null,19.732436288346317]
[null,null,null,null,null,"Single Light : design of ",1,"streetlight (lantern, bracket and pole) takes ",14,"hours"]
[null,"Traffic Control Assuptions",null,null,null,"Single Light : Lantern / Bracket design",null,"takes",6,"hours"]
[null,"Number of Controllers Required",null,2,null,"Single Light : Pole design",null,"takes",8,"hours"]
[null,"Hourly Rate for Controller (EE internal) Oncosted",null,62.52404190803739]
[null,"Minimum Hours for Controller",null,4,null,"Calculations"]
[null,"% of lights requiring traffic control",null,1,null,"Lantern Bracket Design Proportion",0.42857142857142855]
[null,"Number of Lights maintained per 4 hour stint (bulk)",null,1.5,null,"Pole Design Proportion",0.5714285714285714]
[null,"Number of Brackets Maintained per 4 hour stint",null,1,null,"BulkDesign Hours (Lantern & Bracket) for 1001 lights",1101.0999999999999]
[null,"Number of Columns Maintained per 4 hour stint",null,0.8,null,"Bulk Design Hours (Pole) for 1001 lights",3303.2999999999997]
[null,"Base Traffic Control Cost per light",null,333.46155684286606,null,"Street Upgrade Design Hours (Lantern & Bracket) for 1001 lights",800.79999999999984]
[null,"Base Traffic Control Cost per bracket",null,500.19233526429912,null,"Street Upgrade Design Hours (Pole) for 1001 lights",3203.2000000000003]
[null,"Base Traffic Control Cost per column",null,625.24041908037384,null,"Single Light Design Hours (Lantern & Bracket) for 1001 lights",6006]
[null,"% of P-Category Lights Requiring Traffic Control",0.1,33.346155684286607,null,"Single Light Hours (Pole) for 1001 lights",8008]
[null,"% of V-Category Lights Requiring Traffic Control",0.8,266.76924547429286]
[null,"% of P-Category Brackets Requiring Traffic Control",0.1,50.019233526429915,null,"Lantern & Bracket Design Hours / Light",0]
[null,"% of V-Category Brackets Requiring Traffic Control",0.8,400.15386821143932,null,"Pole Design Hours / Light",5.0250000000000004]
[null,"% of P-Category Columns Requiring Traffic Control",0.1,62.52404190803739,null,"Lantern & Bracket Design Cost / Light",0]
[null,"% of V-Category Columns Requiring Traffic Control",0.8,500.19233526429912,null,"Pole Design Cost / Light",518.88450304122853]
[]
[null,null,null,"Column and Pole Assemblies",null,null,null,null,null,null,null,"Bracket Assemblies",null,null,null,null,null,null,null,null,null,null,null,null,"Luminaire Assemblies",null,null,null,null,null,null,null,null,null,"Sub-Assemblies"]
[null,"Assembly Code","Assembly Description","Component Type",null,"Stock Item","Qty","Cost","Subtotals",null,null,"Assembly Code","Assembly Description","Component Type",null,"Stock Item","Qty","Cost","Subtotals",null,null,"Assembly Code","Assembly Description","Group","Component Type","Stock Item","Qty","Cost","Subtotals",null,null,"Assembly Code","Assembly Description","Group","Component Type","Stock Item","Qty","Cost","Subtotals"]
["Column","7.5_Single","7.5m Steel Column Single Outreach","Materials","7.5_Single","7.5m Single Outreach",1,null,1988.5914179162437,null,"Bracket","7107.02.1","Nightwatch light mounting Wood pole","Materials",131245,"Bracket Nightvision Mounting Single FloodIight [GWD]",1,null,515.12052991293967,null,"Luminaire","7206.05.53","42W Decorative Luminaire","Sub-Assemblies","Lab_And_EWP","Standard Labour With Plant (EWP) For One Hour",0.75,null,791.36505527936413,null,"Sub-Assemblies","Bracket_1","Streetlight Bracket Assembly","Labour",1001,"CE Standard Labour Rate",4.5,null,477.64399803993973]
[null,null,null,"Sub-Assemblies","Column_Install_Minor","Minor Roadway Streetlight Rigid Column Installation",1,null,null,null,null,"","","Sub-Assemblies","Bracket_1","Streetlight Bracket Assembly",1,null,null,null,"",null,null,"Materials","42W_CFL_Decorative","42W Decorative Luminaire",1,null,null,null,null,"","","Materials",101780,"Coachscrew M12x120mm Galv [GWD]",2]
["Column","7.5_Double","7.5m Steel Column Double Outreach","Materials","7.5_Double","7.5m Double Outreach",1,null,2079.524162603097,null,null,"","","Materials","M10_Bolts_Washers","M10 x 75mm SS bolt, flat & spring washers",1,null,null,null,"Luminaire","7206.05.25","70W Decorative Luminaire","Materials","70W_HPS_Decorative","70W Decorative Luminaire",1,null,567.3942028260841,null,null,"","","Materials",105800,"Bolt M20 X 220mm C/W Nut Galv [GWD]",1]
[null,null,null,"Sub-Assemblies","Column_Install_Minor","Minor Roadway Streetlight Rigid Column Installation",1,null,null,null,"Bracket","Cat_P_Bracket","Streetlight Bracket Category P","Sub-Assemblies","Bracket_1","Streetlight Bracket Assembly",1,null,580.63518008465269,null,"",null,null,"Sub-Assemblies","Lab_And_EWP","Standard Labour With Plant (EWP) For One Hour",0.75,null,null,null,null,"","","Materials",109490,"Washer 75x75x6mm M22 Hole [GWD]",1]
["Column","9.0_Single","9.0m Steel Column Single Outreach","Materials","9.0_Single","9.0m Single Outreach",1,null,2439.5823852013282,null,null,"","","Materials","Cat_P_Bracket","Category P Bracket",1,null,null,null,"Luminaire","7206.05.1","80W Mercury Vapour Standard Luminaire","Materials","80W_MVA_Standard","80W Mercury Vapour Standard Luminaire",1,null,188.48881819625416,null,null,"","","Materials",110470,"Washer M20-M24  Conical  S/S [GWD]",1]
[null,null,null,"Sub-Assemblies","Column_Install_Minor","Minor Roadway Streetlight Rigid Column Installation",1,null,null,null,"Bracket","Cat_V_Bracket","Streetlight Bracket Category V","Sub-Assemblies","Bracket_1","Streetlight Bracket Assembly",1,null,645.73307892845332,null,"",null,null,"Sub-Assemblies","Lab_And_EWP","Standard Labour With Plant (EWP) For One Hour",0.75,null,null,null,null,"","","Materials",200557,"Fuse Holder C/W 6.5A Inline Cartridge 6-6mm2 Cable [GWD]",1]
["Column","9.0_Double","9.0m Steel Column Double Outreach","Materials","9.0_Double","9.0m Double Outreach",1,null,2883.2278037200022,null,null,"","","Materials","Cat_V_Bracket","Category V Bracket",1,null,null,null,"",null,null,"Materials",522620,"Lamp 80W MV - Elliptical [GWD]",1,null,null,null,null,"","","Materials",223497,"Clamp Service T Al C/W S/S H/W [GWD]",2]
[null,null,null,"Sub-Assemblies","Column_Install_Minor","Minor Roadway Streetlight Rigid Column Installation",1,null,null,null,null,null,null,null,null,null,null,null,null,null,"Luminaire","Compact_Fluro_32W","32W C/F Suburban Eco ","Sub-Assemblies","Lab_And_EWP","Standard Labour With Plant (EWP) For One Hour",0.75,null,759.70369287608412,null,null,"","","Materials",267600,"Batten 3M PVC Earth Cover [GWD]",0.5]
["Column","10.5_Single","10.5m Steel Column Single Outreach","Materials","10.5_Single","10.5m Single Outreach",1,null,3115.1866887992319,null,null,null,null,null,null,null,null,null,null,null,"",null,null,"Materials",500948,"Lantern 32W Compact Fluo Eco S Bourke Hill [GD]",1,null,null,null,null,"","","Materials",442820,"Cable 6mm 7/1.04 1C Red  Sdi Gp 0.6/1Kv Cu PVC/PVC [GWD]",6]
[null,null,null,"Sub-Assemblies","Column_Install_Major","Major Roadway Streetlight Rigid Column Installation",1,null,null,null,null,null,null,null,null,null,null,null,null,null,"Luminaire","7107.09.43","42W CFL Standard Luminaire","Materials","42W_CFL_Standard","42W CFL Standard Luminaire",1,null,260.70064678328413,null,null,"","","Materials",442830,"Cable 6mm 7/1.04 1C Black Cu PVC/PVCGp 0.6/1Kv [GWD]",6]
["Column","10.5_Double","10.5m Steel Column Double Outreach","Materials","10.5_Double","10.5m Double Outreach",1,null,3758.8527084586913,null,null,null,null,null,null,null,null,null,null,null,null,"","","Sub-Assemblies","Lab_And_EWP","Standard Labour With Plant (EWP) For One Hour",0.75,null,null,null,null,"","","Plant","P20","4 Tonne Truck 2016",4.5]
[null,null,null,"Sub-Assemblies","Column_Install_Major","Major Roadway Streetlight Rigid Column Installation",1,null,null,null,null,null,null,null,null,null,null,null,null,null,"Luminaire","7107.09.30","50W HPS Twin-arc Standard Luminaire","Materials",501814,"Lantern 50W HPS Suit Twin Arc C/W Cell [G]",1,null,246.03051988328411,null,null,"","","Plant","P22","EWP 2016",1]
["Column","12.0_Single","12.0m Steel Column Single Outreach","Materials","12.0_Single","12.0m Single Outreach",1,null,3686.4665797596886,null,null,null,null,null,null,null,null,null,null,null,null,"","","Materials",523792,"Lamp 50W HPS Twin Arc - Elliptical Ext/Ign [G]",1,null,null,null,"Labour And Plant","Lab_And_EWP","Standard Labour With Plant (EWP) For One Hour","Labour",1001,"CE Standard Labour Rate",1,null,84.290892377712211]
[null,null,null,"Sub-Assemblies","Column_Install_Major","Major Roadway Streetlight Rigid Column Installation",1,null,null,null,null,null,null,null,null,null,null,null,null,null,null,"","","Sub-Assemblies","Lab_And_EWP","Standard Labour With Plant (EWP) For One Hour",0.75,null,null,null,null,null,null,"Plant","P22","EWP 2016",1]
["Column","12.0_Double","12.0m Steel Column Double Outreach","Materials","12.0_Double","12.0m Double Outreach",1,null,3788.2289808221294,null,null,null,null,null,null,null,null,null,null,null,"Luminaire","7107.09.3","70W HPS Standard Luminaire","Materials","70W_HPS_Standard","Composite HPS 70W (Aero and Non-Aero)",1,null,240.39493421108415,null,"Labour And Plant","Lab_And_4Tonne","Standard Labour With Plant (4 Tonne) For One Hour","Labour",1001,"CE Standard Labour Rate",1,null,84.290892377712211]
[null,null,null,"Sub-Assemblies","Column_Install_Major","Major Roadway Streetlight Rigid Column Installation",1,null,null,null,null,null,null,null,null,null,null,null,null,null,null,"","","Sub-Assemblies","Lab_And_EWP","Standard Labour With Plant (EWP) For One Hour",0.75,null,null,null,null,null,null,"Plant","P20","4 Tonne Truck 2016",1]
["Column","7206.10.71","Column Stl Style 5 4.5m Prestige","Materials",130855,"Column Tapered Octagonal 4.5M Prestigious (Style 5) Bottle/G [GWD]",1,null,2318.8025927628546,null,null,null,null,null,null,null,null,null,null,null,"Luminaire","7107.09.61","70W HPS Twin Arc Standard Luminaire","Materials",523822,"Lamp 70W HPS Twin Arc C/H Elliptical",1,null,253.37235416108416,null,"Sub-Assemblies","UG_Connection","Standard Underground Component Construction","Labour",1001,"CE Standard Labour Rate",1,null,133.37046772495572]
[null,null,null,"Sub-Assemblies","Column_Install_Minor","Minor Roadway Streetlight Rigid Column Installation",1,null,null,null,null,null,null,null,null,null,null,null,null,null,null,"","","Materials","70W_HPS_TA_Standard","Composite Twin Arc HPS 70W (Aero and Non-Aero)",1,null,null,null,null,null,null,"Materials",100200,"Set Screw M6 X 12mm Grub S/S [GWD]",2]
["Column","7206.10.72","Column Stl Styles 2,3 and 4  4.5m Prestige","Materials",131150,"Column 4.5M Prestige Bottle/Green [GWD]",1,null,2384.5247612748544,null,null,null,null,null,null,null,null,null,null,null,null,"","","Sub-Assemblies","Lab_And_EWP","Standard Labour With Plant (EWP) For One Hour",0.75,null,null,null,null,null,null,"Materials",204360,"Fuse 16A HRC Clip-on Offset Tag [GWD]",1]
[null,null,null,"Sub-Assemblies","Column_Install_Minor","Minor Roadway Streetlight Rigid Column Installation",1,null,null,null,null,null,null,null,null,null,null,null,null,null,"Luminaire","7107.09.7","150W HPS Standard Luminaire","Materials","150W_HPS_Standard","Composite HPS 150W (Aero and Non-Aero)",1,null,338.05735439828413,null,null,null,null,"Materials",204480,"Fuse 6A HRC Clip-In Offset Tag [GWD]",1]
["Column","7206.10.73","Column Stl Seesaw 12m B/M ground service","Materials",131105,"Column 12M Seesaw Baseplate Mounted Ground Serviced Galv [GD]",1,null,5359.1992777202313,null,null,null,null,null,null,null,null,null,null,null,null,"","","Sub-Assemblies","Lab_And_EWP","Standard Labour With Plant (EWP) For One Hour",0.75,null,null,null,null,null,null,"Materials",211220,"Fuse Holder 32A Front Wire [GWD]",1]
[null,null,null,"Sub-Assemblies","Column_Install_Major","Major Roadway Streetlight Rigid Column Installation",1,null,null,null,null,null,null,null,null,null,null,null,null,null,"Luminaire","7107.09.41","150W HPS Twin Arc Standard Luminaire","Materials",500974,"Lantern 150W HPS Roadster With PE Cell & Lamp, No Fuse",1,null,353.79952903328416,null,null,null,null,"Materials",234250,"Lug Cu Comp 16mm M10 Hole [GWD]",1]
[null,null,null,"Sub-Assemblies","7206.14.1","Fuse Panel for Ground Service Column",1,null,null,null,null,null,null,null,null,null,null,null,null,null,null,"","","Materials",520792,"Lamp 150W HPS Twin Arc Tubular",1,null,null,null,null,null,null,"Materials",262375,"Breakout Boot 4-25mm 2 Leg Small [GWD]",1]
["Column","7206.10.74","Column Stl Seesaw 15m B/M ground service","Materials",131110,"Column 15M Seesaw Baseplate Mounted Ground Serviced Galv [GD]",1,null,4467.8705317712174,null,null,null,null,null,null,null,null,null,null,null,null,"","","Sub-Assemblies","Lab_And_EWP","Standard Labour With Plant (EWP) For One Hour",0.75,null,null,null,null,null,null,"Materials",262435,"Heatshrink Sleeve 19-5mm 100mm Long [GWD]",2]
[null,null,null,"Sub-Assemblies","Column_Install_Major","Major Roadway Streetlight Rigid Column Installation",1,null,null,null,null,null,null,null,null,null,null,null,null,null,"Luminaire","7107.09.11","250W HPS Standard Luminaire","Materials","250W_HPS_Standard","Composite HPS 250W (Aero and Non-Aero)",1,null,338.05735439828413,null,null,null,null,"Materials",273600,"Coupling 50mm PVC [GWD]",1]
[null,null,null,"Sub-Assemblies","7206.14.1","Fuse Panel for Ground Service Column",1,null,null,null,null,null,null,null,null,null,null,null,null,null,null,"","","Sub-Assemblies","Lab_And_EWP","Standard Labour With Plant (EWP) For One Hour",0.75,null,null,null,null,null,null,"Materials",273780,"Reducer 40-32mm Conduit [GWD]",1]
["Column","7206.10.75","Column Stl Seesaw 18m B/M ground service","Materials",131115,"Column 18M Seesaw Baseplate Mounted Ground Serviced Galv [GD]",1,null,8437.3757234482164,null,null,null,null,null,null,null,null,null,null,null,"Luminaire","7107.09.39","250W HPS Twin Arc Standard Luminaire","Materials",524182,"Lamp 250W HPS Twin Arc Tubular",1,null,407.96615143328415,null,null,null,null,"Materials",273782,"Reducer 50-40mm Conduit [GWD]",1]
[null,null,null,"Sub-Assemblies","Column_Install_Major","Major Roadway Streetlight Rigid Column Installation",1,null,null,null,null,null,null,null,null,null,null,null,null,null,null,"","","Materials",501004,"250W HPS Roadster Aeroscreen",1,null,null,null,null,null,null,"Materials",282320,"Conduit 32mm Corrugated  PVC Heavy Duty Orange [GWD]",2]
[null,null,null,"Sub-Assemblies","7206.14.1","Fuse Panel for Ground Service Column",1,null,null,null,null,null,null,null,null,null,null,null,null,null,null,"","","Sub-Assemblies","Lab_And_EWP","Standard Labour With Plant (EWP) For One Hour",0.75,null,null,null,null,null,null,"Materials",446610,"Cable 16mm 2 Core Flat Cu PVC/PVC [GWD]",2]
["Pole","9.5m_Timber_Pole","9.5m Timber Pole","Materials",125310,"Pole  9.5M X 6kN CCA Timber [GW]",1,null,778.25449568381862,null,null,null,null,null,null,null,null,null,null,null,"Luminaire","7107.09.21","400W HPS Standard Luminaire","Materials","400W_HPS_Standard","Composite HPS 400W (Aero and Non-Aero)",1,null,432.1831455312842,null,null,null,null,"Materials",446970,"Cable 2.5mm 2 Core Flat Cu PVC/PVC [GWD]",1]
[null,null,null,"Sub-Assemblies","Pole_Install","Timber Pole Installation",1,null,null,null,null,null,null,null,null,null,null,null,null,null,null,"","","Sub-Assemblies","Lab_And_EWP","Standard Labour With Plant (EWP) For One Hour",0.75,null,null,null,null,null,null,"Plant","P20","4 Tonne Truck 2016",1]
["Pole","11m_Timber_Pole","11m Timber Pole","Materials",125340,"Pole 11.0M X 6kN CCA Timber [GWD]",1,null,890.33426519981867,null,null,null,null,null,null,null,null,null,null,null,"Luminaire","7107.09.24","400W HPS Twin Arc Standard Luminaire","Materials",500982,"Lantern 400W HPS Roadster & PE Cell & Lamp, No Fuse",1,null,461.0043025332842,null,"Sub-Assemblies","7206.28.1","Streetlight slip base column connection","Materials",285846,"Slip Base Connection Kit [GWD]",1,null,190.92250402495569]
[null,null,null,"Sub-Assemblies","Pole_Install","Timber Pole Installation",1,null,null,null,null,null,null,null,null,null,null,null,null,null,null,"","","Materials",523762,"Lamp 400W HPS Twin Arc Tubular",1,null,null,null,null,null,null,"Materials",223483,"Connector 2 x 6mm2 Insulated Double Screw [GWD]",1]
["Pole","12.5m_Timber_Pole","12.5m Timber Pole","Materials",125370,"Pole 12.5M X 6kN CCA Timber [GWD]",1,null,1080.3011238418185,null,null,null,null,null,null,null,null,null,null,null,null,"","","Sub-Assemblies","Lab_And_EWP","Standard Labour With Plant (EWP) For One Hour",0.75,null,null,null,null,null,null,"Sub-Assemblies","UG_Connection","Standard Underground Component Construction",1]
[null,null,null,"Sub-Assemblies","Pole_Install","Timber Pole Installation",1,null,null,null,null,null,null,null,null,null,null,null,null,null,"Luminaire","7107.09.23","400W MH Standard Luminaire","Materials",524750,"Lamp 400W Metal Halide Tubular Suit Sentry Floodlight [GWD]",1,null,451.58720953478417,null,"Sub-Assemblies","7206.02.1","Streetlight column connection","Materials",223015,"Connector 2 X 16mm With 2 Screws [GWD]",1,null,135.99980585395571]
["Pole","14m_Timber_Pole","14m Timber Pole","Materials",125400,"Pole 14.0M X 6kN CCA Timber [GWD]",1,null,1208.9468520418186,null,null,null,null,null,null,null,null,null,null,null,null,"","","Materials",290340,"Control PE Cell 3 Pin to suit NEMA Base [GWD]",1,null,null,null,null,null,null,"Sub-Assemblies","UG_Connection","Standard Underground Component Construction",1]
[null,null,null,"Sub-Assemblies","Pole_Install","Timber Pole Installation",1,null,null,null,null,null,null,null,null,null,null,null,null,null,null,"","","Materials","400W_MH_Standard","Composite MH 400W (Aero and Non-Aero)",1,null,null,null,"Sub-Assemblies","7206.14.1","Fuse Panel for Ground Service Column","Materials",211220,"Fuse Holder 32A Front Wire [GWD]",4,null,182.7001120304883]
["Pole","15.5m_Timber_Pole","15.5m Timber Pole","Materials",125410,"Pole 15.5M X 6kN CCA Timber [GWD]",1,null,1346.6203506418183,null,null,null,null,null,null,null,null,null,null,null,null,"","","Sub-Assemblies","Lab_And_EWP","Standard Labour With Plant (EWP) For One Hour",0.75,null,null,null,null,null,null,"Materials",234250,"Lug Cu Comp 16mm M10 Hole [GWD]",2]
[null,null,null,"Sub-Assemblies","Pole_Install","Timber Pole Installation",1,null,null,null,null,null,null,null,null,null,null,null,null,null,"Floodlight","7107.09.18","250W HPS Asymetric Floodlight","Materials",509912,"Floodlight 250W HPS Sylflood AS Asymetric",1,null,514.60668928328414,null,null,null,null,"Materials",282320,"Conduit 32mm Corrugated  PVC Heavy Duty Orange [GWD]",2]
[null,null,null,null,null,null,null,null,null,null,null,null,null,null,null,null,null,null,null,null,null,"","","Sub-Assemblies","Lab_And_EWP","Standard Labour With Plant (EWP) For One Hour",0.75,null,null,null,null,null,null,"Materials",446610,"Cable 16mm 2 Core Flat Cu PVC/PVC [GWD]",2]
[null,null,null,null,null,null,null,null,null,null,null,null,null,null,null,null,null,null,null,null,"Floodlight","7107.09.19","250W MH Asymetric Floodlight","Materials",509913,"Floodlight 250W Metal Halide Sylflood AS Asymetric",1,null,491.36018050328408,null,null,null,null,"Labour",1001,"CE Standard Labour Rate",1.5]
[null,null,null,null,null,null,null,null,null,null,null,null,null,null,null,null,null,null,null,null,null,"","","Sub-Assemblies","Lab_And_EWP","Standard Labour With Plant (EWP) For One Hour",0.75,null,null,null,null,null,null,"Plant","P20","4 Tonne Truck 2016",1.5]
[null,null,null,null,null,null,null,null,null,null,null,null,null,null,null,null,null,null,null,null,"Floodlight","7107.09.25","400W MH Asymetric Floodlight","Materials",500992,"Floodlight 400w Metal Halide Sylflood Asymetric [GWD]",1,null,514.60668928328414,null,null,null,null,"Materials",204360,"Fuse 16A HRC Clip-on Offset Tag [GWD]",4]
[null,null,null,null,null,null,null,null,null,null,null,null,null,null,null,null,null,null,null,null,null,"","","Sub-Assemblies","Lab_And_EWP","Standard Labour With Plant (EWP) For One Hour",0.75,null,null,null,null,null,null,"Materials",215460,"Circuit Breaker 25A 1Phase 6Ka [GWD]",1]
[null,null,null,null,null,null,null,null,null,null,null,null,null,null,null,null,null,null,null,null,"Floodlight","7107.09.26","400W HPS Asymetric Floodlight","Materials",500990,"Floodlight 400w HPS Sylflood Asymetric with PE Cell & Lamp [GWD]",1,null,532.54938295328395,null,null,null,null,"Materials",235815,"Link 6 Hole Neutral [GWD]",1]
[null,null,null,null,null,null,null,null,null,null,null,null,null,null,null,null,null,null,null,null,null,"","","Sub-Assemblies","Lab_And_EWP","Standard Labour With Plant (EWP) For One Hour",0.75,null,null,null,"Sub-Assemblies","Slip_Base_Install","Streetlight Slip Based Column Installation","Labour",1001,"CE Standard Labour Rate",10.36,null,2246.8140714580541]
[null,null,null,null,null,null,null,null,null,null,null,null,null,null,null,null,null,null,null,null,"Floodlight","7107.09.50","1000W MH Floodlight","Materials",510310,"Floodlight 1000W MH C/W Remote Gear [D]",1,null,1098.7978757907122,null,null,null,null,"Plant","P20","4 Tonne Truck 2016",10.36]
[null,null,null,null,null,null,null,null,null,null,null,null,null,null,null,null,null,null,null,null,null,"","","Materials",524570,"Lamp 1001 Watt Metal Halide Powerstar [WD]",1,null,null,null,null,null,null,"Materials",130990,"Anchor Base 4 Fin 24.7kNM 350mm PCD Screw-In(Series 3A) [GWD]",1]
[null,null,null,null,null,null,null,null,null,null,null,null,null,null,null,null,null,null,null,null,null,"","","Sub-Assemblies","Lab_And_EWP","Standard Labour With Plant (EWP) For One Hour",1,null,null,null,null,null,null,"Sub-Assemblies","7206.28.1","Streetlight slip base column connection",1]
[null,null,null,null,null,null,null,null,null,null,null,null,null,null,null,null,null,null,null,null,"Luminaire","7206.05.80","LED 42W Gerard Luminaire (Cat P3)","Materials",290340,"Control PE Cell 3 Pin to suit NEMA Base [GWD]",1,null,360.57035683328411,null,"Sub-Assemblies","Column_Install_Major","Major Roadway Streetlight Rigid Column Installation","Sub-Assemblies","7206.02.1","Streetlight column connection",1,null,2213.6582237567286]
[null,null,null,null,null,null,null,null,null,null,null,null,null,null,null,null,null,null,null,null,null,null,null,"Sub-Assemblies","Lab_And_EWP","Standard Labour With Plant (EWP) For One Hour",0.75,null,null,null,null,null,null,"Materials",130990,"Anchor Base 4 Fin 24.7kNM 350mm PCD Screw-In(Series 3A) [GWD]",1]
[null,null,null,null,null,null,null,null,null,null,null,null,null,null,null,null,null,null,null,null,null,null,null,"Materials",510180,"LED 36W Gerard Luminaire (Cat P3)",1,null,null,null,null,null,null,"Plant","P21","Borer 2016",1]
[null,null,null,null,null,null,null,null,null,null,null,null,null,null,null,null,null,null,null,null,"Luminaire","7206.05.81","LED 23W Gerard Luminaire (Cat P3) - Aeroscreen","Materials",290340,"Control PE Cell 3 Pin to suit NEMA Base [GWD]",1,null,340.25787343328409,null,null,null,null,"Plant","P20","4 Tonne Truck 2016",10.36]
[null,null,null,null,null,null,null,null,null,null,null,null,null,null,null,null,null,null,null,null,null,null,null,"Sub-Assemblies","Lab_And_EWP","Standard Labour With Plant (EWP) For One Hour",0.75,null,null,null,null,null,null,"Labour",1001,"CE Standard Labour Rate",10.36]
[null,null,null,null,null,null,null,null,null,null,null,null,null,null,null,null,null,null,null,null,null,null,null,"Materials",510185,"LED 23W Gerard Luminaire (Cat P3) - Aeroscreen",1,null,null,null,"Sub-Assemblies","Column_Install_Minor","Minor Roadway Streetlight Rigid Column Installation","Sub-Assemblies","7206.02.1","Streetlight column connection",1,null,1586.4472884888546]
[null,null,null,null,null,null,null,null,null,null,null,null,null,null,null,null,null,null,null,null,"Luminaire","7206.05.82","LED 17W Gerard Luminaire (Cat P20/P5)","Materials",290340,"Control PE Cell 3 Pin to suit NEMA Base [GWD]",1,null,350.8013032332841,null,null,null,null,"Plant","P21","Borer 2016",1]
[null,null,null,null,null,null,null,null,null,null,null,null,null,null,null,null,null,null,null,null,null,null,null,"Sub-Assemblies","Lab_And_EWP","Standard Labour With Plant (EWP) For One Hour",0.75,null,null,null,null,null,null,"Plant","P20","4 Tonne Truck 2016",1.25]
[null,null,null,null,null,null,null,null,null,null,null,null,null,null,null,null,null,null,null,null,null,null,null,"Materials",510190,"LED 17W Gerard Luminaire (Cat P20/P5)",1,null,null,null,null,null,null,"Labour",1001,"CE Standard Labour Rate",3.5]
[null,null,null,null,null,null,null,null,null,null,null,null,null,null,null,null,null,null,null,null,"Luminaire","7206.05.83","LED 17W Gerard Luminaire (Cat P20/P5) - Aeroscreen","Materials",510195,"LED 17W Gerard Luminaire (Cat P20/P5) - Aeroscreen",1,null,361.78553179328418,null,null,null,null,"Materials",130990,"Anchor Base 4 Fin 24.7kNM 350mm PCD Screw-In(Series 3A) [GWD]",1]
[null,null,null,null,null,null,null,null,null,null,null,null,null,null,null,null,null,null,null,null,null,null,null,"Materials",290340,"Control PE Cell 3 Pin to suit NEMA Base [GWD]",1,null,null,null,"Sub-Assemblies","Pole_Install","Timber Pole Installation","Plant","P21","Borer 2016",2.4,null,432.55859764181855]
[null,null,null,null,null,null,null,null,null,null,null,null,null,null,null,null,null,null,null,null,null,null,null,"Sub-Assemblies","Lab_And_EWP","Standard Labour With Plant (EWP) For One Hour",0.75,null,null,null,null,null,null,"Plant","P20","4 Tonne Truck 2016",2.4]
[null,null,null,null,null,null,null,null,null,null,null,null,null,null,null,null,null,null,null,null,"Luminaire","7206.05.84","LED 17W Gerard Luminaire - Louvred (Cat P20/P5 RRW)","Materials",510200,"LED 17W Gerard Luminaire - Louvred (Cat P20/P5 RRW)",1,null,361.78553179328418,null,null,null,null,"Labour",1001,"CE Standard Labour Rate",4.8]
[null,null,null,null,null,null,null,null,null,null,null,null,null,null,null,null,null,null,null,null,null,null,null,"Materials",290340,"Control PE Cell 3 Pin to suit NEMA Base [GWD]",1,null,null,null,null,null,null,"Plant","P23","Trailer/Jinker 2016",4.8]
[null,null,null,null,null,null,null,null,null,null,null,null,null,null,null,null,null,null,null,null,null,null,null,"Sub-Assemblies","Lab_And_EWP","Standard Labour With Plant (EWP) For One Hour",0.75,null,null,null,"Bracket","7107.02.1","Nightwatch light mounting Wood pole","Materials",131245,"Bracket Nightvision Mounting Single FloodIight [GWD]",1,null,515.12052991293967]
[null,null,null,null,null,null,null,null,null,null,null,null,null,null,null,null,null,null,null,null,"Luminaire","7206.05.85","LED 25W GE Evolve Luminaire (Cat P20/P5)","Materials",510205,"LED 25W GE Evolve Luminaire (Cat P20/P5)",1,null,245.80482562328416,null,null,"","","Sub-Assemblies","Bracket_1","Streetlight Bracket Assembly",1]
[null,null,null,null,null,null,null,null,null,null,null,null,null,null,null,null,null,null,null,null,null,null,null,"Materials",290340,"Control PE Cell 3 Pin to suit NEMA Base [GWD]",1,null,null,null,null,"","","Materials","M10_Bolts_Washers","M10 x 75mm SS bolt, flat & spring washers",1]
[null,null,null,null,null,null,null,null,null,null,null,null,null,null,null,null,null,null,null,null,null,null,null,"Sub-Assemblies","Lab_And_EWP","Standard Labour With Plant (EWP) For One Hour",0.75]
[null,null,null,null,null,null,null,null,null,null,null,null,null,null,null,null,null,null,null,null,"Luminaire","7206.05.86","LED 35W Pecan Luminaire (Cat P3)","Materials",510230,"LED 35W Pecan Luminaire (Cat P3)",1,null,433.18301743328419]
[null,null,null,null,null,null,null,null,null,null,null,null,null,null,null,null,null,null,null,null,null,null,null,"Materials",290340,"Control PE Cell 3 Pin to suit NEMA Base [GWD]",1]
[null,null,null,null,null,null,null,null,null,null,null,null,null,null,null,null,null,null,null,null,null,null,null,"Sub-Assemblies","Lab_And_EWP","Standard Labour With Plant (EWP) For One Hour",0.75]
[null,null,null,null,null,null,null,null,null,null,null,null,null,null,null,null,null,null,null,null,"Luminaire","7206.05.87","LED 29W Pecan Luminaire (Cat P3) - Aeroscreen","Materials",510225,"LED 29W Pecan Luminaire (Cat P3) - Aeroscreen",1,null,433.18301743328419]
[null,null,null,null,null,null,null,null,null,null,null,null,null,null,null,null,null,null,null,null,null,null,null,"Materials",290340,"Control PE Cell 3 Pin to suit NEMA Base [GWD]",1]
[null,null,null,null,null,null,null,null,null,null,null,null,null,null,null,null,null,null,null,null,null,null,null,"Sub-Assemblies","Lab_And_EWP","Standard Labour With Plant (EWP) For One Hour",0.75]
[null,null,null,null,null,null,null,null,null,null,null,null,null,null,null,null,null,null,null,null,"Luminaire","7206.05.88","LED 42W Pecan Luminaire (Cat V5)","Materials",510240,"LED 42W Pecan Luminaire (Cat V5)",1,null,491.0943113412842]
[null,null,null,null,null,null,null,null,null,null,null,null,null,null,null,null,null,null,null,null,null,null,null,"Materials",290340,"Control PE Cell 3 Pin to suit NEMA Base [GWD]",1]
[null,null,null,null,null,null,null,null,null,null,null,null,null,null,null,null,null,null,null,null,null,null,null,"Sub-Assemblies","Lab_And_EWP","Standard Labour With Plant (EWP) For One Hour",0.75]
[null,null,null,null,null,null,null,null,null,null,null,null,null,null,null,null,null,null,null,null,"Luminaire","7206.05.89","LED 36W Pecan Luminaire (Cat V5) - Aeroscreen","Materials",510235,"LED 36W Pecan Luminaire (Cat V5) - Aeroscreen",1,null,491.0943113412842]
[null,null,null,null,null,null,null,null,null,null,null,null,null,null,null,null,null,null,null,null,null,null,null,"Materials",290340,"Control PE Cell 3 Pin to suit NEMA Base [GWD]",1]
[null,null,null,null,null,null,null,null,null,null,null,null,null,null,null,null,null,null,null,null,null,null,null,"Sub-Assemblies","Lab_And_EWP","Standard Labour With Plant (EWP) For One Hour",0.75]
[null,null,null,null,null,null,null,null,null,null,null,null,null,null,null,null,null,null,null,null,"Luminaire","7206.05.90","LED 105W Aldridge Luminaire (Cat V3)","Materials",510210,"LED 105W Aldridge Luminaire (Cat V3)",1,null,945.11849023328409]
[null,null,null,null,null,null,null,null,null,null,null,null,null,null,null,null,null,null,null,null,null,null,null,"Materials",290340,"Control PE Cell 3 Pin to suit NEMA Base [GWD]",1]
[null,null,null,null,null,null,null,null,null,null,null,null,null,null,null,null,null,null,null,null,null,null,null,"Sub-Assemblies","Lab_And_EWP","Standard Labour With Plant (EWP) For One Hour",0.75]
[null,null,null,null,null,null,null,null,null,null,null,null,null,null,null,null,null,null,null,null,"Luminaire","7206.05.91","LED 198W Aldridge Luminaire (Cat V1) - Standard Dist.","Materials",510215,"LED 198W Aldridge Luminaire (Cat V1) - Standard Dist.",1,null,1015.9573660332842]
[null,null,null,null,null,null,null,null,null,null,null,null,null,null,null,null,null,null,null,null,null,null,null,"Materials",290340,"Control PE Cell 3 Pin to suit NEMA Base [GWD]",1]
[null,null,null,null,null,null,null,null,null,null,null,null,null,null,null,null,null,null,null,null,null,null,null,"Sub-Assemblies","Lab_And_EWP","Standard Labour With Plant (EWP) For One Hour",0.75]
[null,null,null,null,null,null,null,null,null,null,null,null,null,null,null,null,null,null,null,null,"Luminaire","7206.05.92","LED 198W Aldridge Luminaire (Cat V1) - Forward Dist.","Materials",510220,"LED 198W Aldridge Luminaire (Cat V1) - Forward Dist.",1,null,1002.5321977932842]
[null,null,null,null,null,null,null,null,null,null,null,null,null,null,null,null,null,null,null,null,null,null,null,"Materials",290340,"Control PE Cell 3 Pin to suit NEMA Base [GWD]",1]
[null,null,null,null,null,null,null,null,null,null,null,null,null,null,null,null,null,null,null,null,null,null,null,"Sub-Assemblies","Lab_And_EWP","Standard Labour With Plant (EWP) For One Hour",0.75]
[null,null,null,null,null,null,null,null,null,null,null,null,null,null,null,null,null,null,null,null,"Luminaire","7206.05.93","LED 298W Aldrige Luminaire (Cat V1) - Standard Dist.","Materials",510245,"LED 298W Aldrige Luminaire (Cat V1) - Standard Dist.",1,null,1162.4137468332842]
[null,null,null,null,null,null,null,null,null,null,null,null,null,null,null,null,null,null,null,null,null,null,null,"Materials",290340,"Control PE Cell 3 Pin to suit NEMA Base [GWD]",1]
[null,null,null,null,null,null,null,null,null,null,null,null,null,null,null,null,null,null,null,null,null,null,null,"Sub-Assemblies","Lab_And_EWP","Standard Labour With Plant (EWP) For One Hour",0.75]
[null,null,null,null,null,null,null,null,null,null,null,null,null,null,null,null,null,null,null,null,"Luminaire","LED0015","LED 100W Aldridge Luminaire - Brownfield","Materials",510207,"LED 100W Luminaire Category V4  Aldridge",1,null,1010.5212892332842]
[null,null,null,null,null,null,null,null,null,null,null,null,null,null,null,null,null,null,null,null,null,null,null,"Materials",290340,"Control PE Cell 3 Pin to suit NEMA Base [GWD]",1]
[null,null,null,null,null,null,null,null,null,null,null,null,null,null,null,null,null,null,null,null,null,null,null,"Sub-Assemblies","Lab_And_EWP","Standard Labour With Plant (EWP) For One Hour",0.75]
[null,null,null,null,null,null,null,null,null,null,null,null,null,null,null,null,null,null,null,null,"Luminaire","LED0016","LED 200W Aldridge Luminaire - Brownfield","Materials",510222,"LED 200W Luminaire Category V3 Aldridge",1,null,1010.5212892332842]
[null,null,null,null,null,null,null,null,null,null,null,null,null,null,null,null,null,null,null,null,null,null,null,"Materials",290340,"Control PE Cell 3 Pin to suit NEMA Base [GWD]",1]
[null,null,null,null,null,null,null,null,null,null,null,null,null,null,null,null,null,null,null,null,null,null,null,"Sub-Assemblies","Lab_And_EWP","Standard Labour With Plant (EWP) For One Hour",0.75]
[null,null,null,null,null,null,null,null,null,null,null,null,null,null,null,null,null,null,null,null,"Luminaire","LED0017","LED 300W Aldridge Luminaire - Brownfield","Materials",510224,"'LED 300W Luminaire Category V2  Aldridge",1,null,1156.1304892332842]
[null,null,null,null,null,null,null,null,null,null,null,null,null,null,null,null,null,null,null,null,null,null,null,"Materials",290340,"Control PE Cell 3 Pin to suit NEMA Base [GWD]",1]
[null,null,null,null,null,null,null,null,null,null,null,null,null,null,null,null,null,null,null,null,null,null,null,"Sub-Assemblies","Lab_And_EWP","Standard Labour With Plant (EWP) For One Hour",0.75]
[null,null,null,null,null,null,null,null,null,null,null,null,null,null,null,null,null,null,null,null,"Floodlight","250W_NW","250W Nightwatch","Materials",509912,"Floodlight 250W HPS Sylflood AS Asymetric",1,null,966.50904991293964]
[null,null,null,null,null,null,null,null,null,null,null,null,null,null,null,null,null,null,null,null,null,null,null,"Sub-Assemblies","7107.02.1","Nightwatch light mounting Wood pole",1]
[null,null,null,null,null,null,null,null,null,null,null,null,null,null,null,null,null,null,null,null,"Floodlight","400W_NW","400W Nightwatch","Materials",500990,"Floodlight 400w HPS Sylflood Asymetric with PE Cell & Lamp [GWD]",1,null,984.45174358293946]
[null,null,null,null,null,null,null,null,null,null,null,null,null,null,null,null,null,null,null,null,null,null,null,"Sub-Assemblies","7107.02.1","Nightwatch light mounting Wood pole",1]

{"sheet":"CAPEX - Stock Costs","index":3,"n_rows":326,"n_cols":6,"rows_kept":326,"cut":false,"hidden":false,"merged":[[5,1,5,2]]}
[]
[]
[null,"Section 3: Stock Table"]
[null,"Description"]
[null,"The following pole assuptions have been made based on WASP data extracted  - Sep 2017"]
[null,"• This section looked through a document supplied by Sam Peake, Thu 14/09/2017 1:45 PM, titled \"\"2017.06.30 Usage Summary.xlsx\"\n• Vlookups were used to check if the below stock codes were in the Usage document – if so, it used the price of those values (with one year CPI – 2.3%)\n• If not, the value from previous models were used – and had CPI applied to lift the price from 2012-13 dollar to 2018-19 dollars (10.64%, taken from ROMO)\n"]
[]
[]
[null,"Data Updated","2017-09-16"]
[null,"Total","Ord Oncost"]
[null,"Materials  On cost Rate",0.1031]
[null,"Labour ordinary on cost Rate",0.56189999999999996]
[]
[null,"Stock Number","Description","Cost","Oncosts","Total"]
[null,1001,"CE Standard Labour Rate"]
[null,100200,"Set Screw M6 X 12mm Grub S/S [GWD]"]
[null,101780,"Coachscrew M12x120mm Galv [GWD]"]
[null,101878,"Coachscrew M20 X 130mm Galv [GWD]"]
[null,105200,"Bolt M16 X 200mm C/W Nut Galv [GWD]"]
[null,105350,"Bolt  M16 X 300mm C/W Nut Galv [GWD]"]
[null,105800,"Bolt M20 X 220mm C/W Nut Galv [GWD]"]
[null,105920,"Bolt M20 X 300mm C/W Nut Galv [GWD]"]
[null,109490,"Washer 75x75x6mm M22 Hole [GWD]"]
[null,110150,"Washer M16 50x4mm Flat Round Galv [GWD]"]
[null,110470,"Washer M20-M24  Conical  S/S [GWD]"]
[null,125190,"Pole Timber 9.5m X 4kN Undrilled CCA [GWD]"]
[null,125220,"Pole Timber 11.0m X 4kN Undrilled CCA [GWD]"]
[null,125250,"Pole Timber 12.5m X 4kN Pre-Drilled CCA [GWD]"]
[null,125260,"Pole 14.0M X 4kN CCA Timber [GWD]"]
[null,125310,"Pole  9.5M X 6kN CCA Timber [GW]"]
[null,125340,"Pole 11.0M X 6kN CCA Timber [GWD]"]
[null,125370,"Pole 12.5M X 6kN CCA Timber [GWD]"]
[null,125400,"Pole 14.0M X 6kN CCA Timber [GWD]"]
[null,125410,"Pole 15.5M X 6kN CCA Timber [GWD]"]
[null,125520,"Pole 11.0M X 8Kn CCA Timber [GWD]"]
[null,125550,"Pole 12.5M X 8kN CCA Timber [GWD]"]
[null,125580,"Pole 14.0M X 8kN CCA Timber [GWD]"]
[null,125610,"Pole 15.5M X 8kN CCA Timber [GW]"]
[null,125620,"Pole 17.0M X 6kN CCA Timber [GWD]"]
[null,125640,"Pole 17.0M X 8kN CCA Timber [GW]"]
[null,125820,"Pole 12.5M X 12Kn CCA Timber [GWD]"]
[null,125850,"Pole 14.0M X 12kN CCA Timber [GWD]"]
[null,125860,"Pole 15.5M X 12kN CCA Timber [GW]"]
[null,130150,"Concrete 20kg Gen Purpose [GWD]"]
[null,130855,"Column Tapered Octagonal 4.5M Prestigious (Style 5) Bottle/G [GWD]"]
[null,130936,"Anchor 1CE Ragbolt Cage Assembly [GWD]"]
[null,130938,"Anchor 2B Ragbolt  Cage Assembly [GWD]"]
[null,130940,"Anchor 3A Ragbolt  Cage Assembly [GWD]"]
[null,130942,"Anchor 4A Ragbolt  Cage Assembly [GWD]"]
[null,130944,"Anchor 4B Ragbolt  Cage Assembly [GWD]"]
[null,130946,"Anchor 5A Ragbolt  Cage Assembly [GWD]"]
[null,130950,"Anchor Base 3 Fin 6.0kNM 210mm PCD  Screw-In [GWD]"]
[null,130975,"Anchor Base 4 Fin 17.0kNM 350mm PCD Screw-In(Series 2B) [GWD]"]
[null,130980,"Anchor Base 4 Fin 81.7kNM 500mm PCD Screw-In(Series 5A) [GWD]"]
[null,130990,"Anchor Base 4 Fin 24.7kNM 350mm PCD Screw-In(Series 3A) [GWD]"]
[null,130991,"Anchor Base 4 Fin 32kNM 350mm PCD Screw-In(Series 3B) [GWD]"]
[null,130995,"Anchor Base 4 Fin 39.2kNM 350mm PCD Screw-In(Series 4A) [GWD]"]
[null,130996,"Anchor Base 4 Fin 56.1kNM 500mm PCD Screw-In(Series 4B) [GWD]"]
[null,131010,"Column  9M X 1.5M Single O/R Tapered Round Impact Absorbing [GWD]"]
[null,131011,"Column 9M X 1.5M Double O/R Tapered Round Impact Absorbing C [GWD]"]
[null,131012,"Column 9M X 3M Single O/R Tapered Round Impact Absorbing Cur [GWD]"]
[null,131013,"Column 9M X 3M Double O/R Tapered Round Impact Absorbing Cur [GWD]"]
[null,131014,"Column 9M X 4.5M Single O/R Tapered Round Impact Absorbing C [GWD]"]
[null,131015,"Column  9M X 4.5M Double O/R Tapered Round Impact Absorbing [GWD]"]
[null,131018,"Column 10.5M X 1.5M Single O/R Tapered Round Impact Absorbin [GWD]"]
[null,131019,"Column  10.5M X 1.5M Double O/R Tapered Round Impact Absorbi [GWD]"]
[null,131020,"Column  10.5M X 3M Single O/R Tapered Round Impact Absorbing [GWD]"]
[null,131021,"Column  10.5M X 3M Double O/R Tapered Round Impact Absorbing [GWD]"]
[null,131022,"Column  10.5M X 4.5M Single O/R Tapered Round Impact Absorbi [GWD]"]
[null,131023,"Column  10.5M X 4.5M Double O/R Tapered Round Impact Absorbi [GWD]"]
[null,131024,"Column  10.5M X 6M Single O/R Tapered Round Impact Absorbing [GWD]"]
[null,131026,"Column  12M X 1.5M Single O/R Tapered Round Impact Absorbing [GWD]"]
[null,131027,"Column  12M X 1.5M Double O/R Tapered Round Impact Absorbing [GWD]"]
[null,131028,"Column  12M X 3M Single O/R Tapered Round Impact Absorbing C [GWD]"]
[null,131029,"Column  12M X 3M Double O/R Tapered Round Impact Absorbing C [GWD]"]
[null,131030,"Column  12M X 4.5M Single O/R Tapered Round Impact Absorbing [GWD]"]
[null,131031,"Column  12M X 4.5M Double O/R Tapered Round Impact Absorbing [GWD]"]
[null,131032,"Column  12M X 6M Single O/R Tapered Round Impact Absorbing C [GWD]"]
[null,131040,"Column  9M X 1.5M Single O/R Tapered Round Slip Base Curved [GWD]"]
[null,131041,"Column  9M X 1.5M Double O/R Tapered Round Slip Base Curved [GWD]"]
[null,131042,"Column  9M X 3M Single O/R Tapered Round Slip Base Curved Ga [GWD]"]
[null,131043,"Column  9M X 3M Double O/R Tapered Round Slip Base Curved Ga [GWD]"]
[null,131044,"Column 9M X 4.5M Single O/R Tapered Round Slip Base Curved [GD]"]
[null,131054,"Column 12M X 6.0M Single O/R Tapered Round Slip Base Curved [GD]"]
[null,131045,"Column  9M X 4.5M Double O/R Tapered Round Slip Base Curved [GWD]"]
[null,131048,"Column  10.5M X 1.5M Single O/R Tapered Round Slip Base Curv [GWD]"]
[null,131049,"Column  10.5M X 1.5M Double O/R Tapered Round Slip Base Curv [GWD]"]
[null,131050,"Column  10.5M X 3M Single O/R Tapered Round Slip Base Curved [GWD]"]
[null,131051,"Column  10.5M X 3M Double O/R Tapered Round Slip Base Curved [GWD]"]
[null,131052,"Column 10.5M X 4.5M Single O/R Tapered Round Slip Base Curv [GD]"]
[null,131053,"Column  10.5M X 4.5M Double O/RTapered Round Slip Base Curve [GWD]"]
[null,131055,"Column  10.5M X 6M Double O/R Tapered Round Slip Base Curved [GWD]"]
[null,131056,"Column  12M X 1.5M Single O/R Tapered Round Slip Base Curved [GWD]"]
[null,131057,"Column  12M X 1.5M Double O/R Tapered Round Slip Base Curved [GWD]"]
[null,131058,"Column  12M X 3M Single O/R Tapered Round Slip Base Curved G [GWD]"]
[null,131059,"Column  12M X 3M Double O/R Tapered Round Slip Base Curved G [GWD]"]
[null,131060,"Column 12M X 4.5M Single O/R Tapered Round Slip Base Curved [GD]"]
[null,131061,"Column  12M X 4.5M Double O/R Tapered Round Slip Base Curved [GWD]"]
[null,131065,"Column  7.5M X 1.5M Single O/R Tapered Octagonal Curved Galv [GWD]"]
[null,131066,"Column  7.5M X 1.5M Double O/R Tapered Octagonal Curved Galv [GWD]"]
[null,131068,"Column 7.5M X 3M Single O/R Tapered Octagonal Curved Galv [GWD]"]
[null,131067,"Column 7.5M X 1.5M Single O/R Impact Absorbing Galv"]
[null,131069,"Column 7.5M X 1.5M Double O/R Impact Absorbing Galv"]
[null,131126,"Column 7.5M X 3M Double O/R Impact Absorbing Galv"]
[null,131070,"Column  9M X 1.5M Single O/R Tapered Round Rigid Curved Galv [GWD]"]
[null,131071,"Column  9M X 1.5M Double O/R Tapered Round Rigid Curved Galv [GWD]"]
[null,131073,"Column  9M X 3M Single O/R Tapered Round Rigid Curved Galv [GWD]"]
[null,131074,"Column  9M X 3M Double O/R Tapered Round Rigid Curved Galv [GWD]"]
[null,131076,"Column 9M X 4.5M Single O/R Tapered Round Rigid Curved Galv [GD]"]
[null,131077,"Column  9M X 4.5M Double O/R Tapered Round Rigid Curved Galv [GWD]"]
[null,131080,"Column  10.5M X 1.5M Single O/R Tapered Round Rigid Curved G [GWD]"]
[null,131081,"Column  10.5M X 1.5M Double O/R Tapered Round Rigid Curved G [GWD]"]
[null,131083,"Column  10.5M X 3M Single O/R Tapered Round Rigid Curved Gal [GWD]"]
[null,131084,"Column  10.5M X 3M  Double O/R Tapered Round Rigid CurvedGal [GWD]"]
[null,131086,"Column 10.5M X 4.5M Single O/R Tapered Round Rigid Curved G [GD]"]
[null,131087,"Column  10.5M X 4.5M Double O/R Tapered Round Rigid Curved G [GWD]"]
[null,131090,"Column  12M X 1.5M Single O/R Tapered Round Rigid Curved Gal [GWD]"]
[null,131091,"Column  12M X 1.5M Double O/R Tapered Round Rigid Curved Gal [GWD]"]
[null,131093,"Column  12M X 3M Single O/R Tapered Round Rigid Curved Galv [GWD]"]
[null,131094,"Column  12M X 3M Double O/R Tapered Round Rigid Curved Galv [GWD]"]
[null,131096,"Column 12M X 4.5M Single O/R Tapered Round Rigid Curved Gal [GD]"]
[null,131097,"Column  12M X 4.5M Double O/R Tapered Round Rigid Curved Gal [GWD]"]
[null,131098,"Column  12M X 6M Single O/R Tapered Round Rigid CurvOutreach [GWD]"]
[null,131105,"Column 12M Seesaw Baseplate Mounted Ground Serviced Galv [GD]"]
[null,131110,"Column 15M Seesaw Baseplate Mounted Ground Serviced Galv [GD]"]
[null,131115,"Column 18M Seesaw Baseplate Mounted Ground Serviced Galv [GD]"]
[null,131123,"Column  7.5M X 3M Single O/R Tapered Round Impact Absorbing C [GWD]"]
[null,131148,"Column 10.5M X 3M Decorative Hook Outreach Bottle/Green [GD]"]
[null,131150,"Column 4.5M Prestige Bottle/Green [GWD]"]
[null,131182,"Spigot AdaP24or 32mm to 25mm Pedestrian [GWD]"]
[null,131184,"Spigot AdaP24or S/Light OR 45Degree"]
[null,131185,"Spigot AdaP24or 50mm to 32mm Pedestrian [GWD]"]
[null,131190,"Spigot AdaP24or 40mm to 25mm Streetlight [GWD]"]
[null,131195,"Spigot AdaP24or 50mm to 25mm Streetlight [GWD]"]
[null,131200,"AdaP24or Bracket Streetlight Outreach 3 Way(Pipe) [GWD]"]
[null,131201,"AdaP24or Bracket Streetlight Outreach 4 Way(Pipe) [GWD]"]
[null,131210,"AdaP24or Plate Suit Concrete Poles [GWD]"]
[null,131225,"Bracket Nightvision Mounting Twin FloodIights [GWD]"]
[null,131230,"Bracket Floodlight 3-Light Headframe(Channel) [GWD]"]
[null,131232,"Bracket Floodlight 4-Light Headframe(Channel) [GWD]"]
[null,131245,"Bracket Nightvision Mounting Single FloodIight [GWD]"]
[null,131275,"Bracket 500mm S/Light Outreach CE1 [GWD]"]
[null,131277,"Bracket 2000mm S/Light Outreach CE2 [GWD]"]
[null,131280,"Bracket CE3 3000mm S/Light Outreach [GWD]"]
[null,131282,"Bracket CE4 4500mm S/Light Outreach [GWD]"]
[null,131285,"Bracket CE5 6000mm S/Light Outreach [GWD]"]
[null,131288,"Bracket CE6 2000mm S/Light 5 Deg Rise [GWD]"]
[null,131289,"Bracket 3000mm S/Light OR CE7"]
[null,131289,"Bracket 3000mm S/Light OR CE7"]
[null,132014,"Pole Concrete 11.0m x 10/5kN Spun [GWD]"]
[null,132018,"Pole Concrete 11.0m x 16/8 kN Spun [ ]"]
[null,132025,"Pole Concrete 12.5m x 10/5kN Spun [GWD]"]
[null,132028,"Pole Concrete 12.5m x 16/8kN Urban Sub [GWD]"]
[null,132032,"Pole Concrete 12.5m x 16/8kN Rural Sub [GWD]"]
[null,132038,"Pole Concrete 12.5m x 16/8kN Spun [ ]"]
[null,132052,"Pole Concrete 14.0m x 16/8kN Spun [GWD]"]
[null,132055,"Pole Concrete 14.0m x 16/8kN Urban Sub [GWD]"]
[null,132060,"Pole Concrete 14.0m x 16/8kN Recloser [GWD]"]
[null,132135,"Pole Concrete 12.5m x 10/5kN Precast [GWD]"]
[null,200557,"Fuse Holder C/W 6.5A Inline Cartridge 6-6mm2 Cable [GWD]"]
[null,204360,"Fuse 16A HRC Clip-on Offset Tag [GWD]"]
[null,204480,"Fuse 6A HRC Clip-In Offset Tag [GWD]"]
[null,210660,"Meter Box 600x600x250mm Galv [GWD]"]
[null,211220,"Fuse Holder 32A Front Wire [GWD]"]
[null,211230,"Fuse 60-80A Switchboard Mtg [GWD]"]
[null,215460,"Circuit Breaker 25A 1Phase 6Ka [GWD]"]
[null,215580,"Circuit Breaker 63A 1Phase 6kA [GWD]"]
[null,215735,"Circuit Breaker 10A 1Phase 10kA [GWD]"]
[null,222567,"Connector IPC 6-54mm/4-35mm M8 [GWD]"]
[null,223015,"Connector 2 X 16mm With 2 Screws [GWD]"]
[null,223483,"Connector 2 x 6mm2 Insulated Double Screw [GWD]"]
[null,223497,"Clamp Service T Al C/W S/S H/W [GWD]"]
[null,234250,"Lug Cu Comp 16mm M10 Hole [GWD]"]
[null,235815,"Link 6 Hole Neutral [GWD]"]
[null,236025,"Link 3x25mm 8x16mm 11H Neutral [GWD]"]
[null,262375,"Breakout Boot 4-25mm 2 Leg Small [GWD]"]
[null,262435,"Heatshrink Sleeve 19-5mm 100mm Long [GWD]"]
[null,267600,"Batten 3M PVC Earth Cover [GWD]"]
[null,269945,"Earth Rod 13x1220mm Cu [GWD]"]
[null,273600,"Coupling 50mm PVC [GWD]"]
[null,273780,"Reducer 40-32mm Conduit [GWD]"]
[null,273782,"Reducer 50-40mm Conduit [GWD]"]
[null,274740,"Bend 50mm 90 Deg 300mm Radius PVC Heavy Duty Orange [GWD]"]
[null,275790,"Pole Step Screw In [GWD]"]
[null,275850,"Pole Step Drive In [GWD]"]
[null,281940,"Conduit 16mm Rigid L/D Grey [GWD]"]
[null,282320,"Conduit 32mm Corrugated  PVC Heavy Duty Orange [GWD]"]
[null,282360,"Conduit 20mm Corrugated Flexible PVC Medium Duty Grey UV Sta [GWD]"]
[null,285846,"Slip Base Connection Kit [GWD]"]
[null,290190,"PE Cell Suit Nightwatch Fitting [GWD]"]
[null,290340,"Control PE Cell 3 Pin to suit NEMA Base [GWD]"]
[null,290346,"Shade Suit Photo Elec Cell [GWD]"]
[null,290350,"Enclosure 6 Pole [GWD]"]
[null,290360,"Switch Changeover Day-Off-Night [GWD]"]
[null,290460,"ReceP24acle PE Cell C/W P/Mnt Brk [GWD]"]
[null,291885,"Clamp Earth Shear Lok [GWD]"]
[null,441375,"Cable 6.0mm 7/1.04 Earth Wire Cu [GWD]"]
[null,441690,"Cable 10mm 7/1.35 BW Black [GWD]"]
[null,442230,"Cable 6mm 7/1.04 B/Wire Red"]
[null,442638,"Cable 4.0mm 7/0.85 SDI Red Cu [GWD]"]
[null,442639,"Cable 4.0mm 7/0.85 SDI Black Cu [GWD]"]
[null,442820,"Cable 6mm 7/1.04 1C Red  Sdi Gp 0.6/1Kv Cu PVC/PVC [GWD]"]
[null,442830,"Cable 6mm 7/1.04 1C Black Cu PVC/PVCGp 0.6/1Kv [GWD]"]
[null,446610,"Cable 16mm 2 Core Flat Cu PVC/PVC [GWD]"]
[null,446970,"Cable 2.5mm 2 Core Flat Cu PVC/PVC [GWD]"]
[null,500126,"Guard Mesh For Sentry Floodlight"]
[null,500136,"Lantern 400 W HPS OP24ispan HPF w/- PE Cell Base [GWD]"]
[null,500880,"Lantern 80W MV Urban Style 1 C/W PE Cell and Interference Su [GWD]"]
[null,500885,"Lantern 80W MV Style 1 Aeroscreen C/W PE Cell No Lamp or Fus [GWD]"]
[null,500887,"Lantern 80W M/V OP24ispan Minor Style 1C/W PE Cell No Lamp [GWD]"]
[null,500895,"Lantern 80W MV Style 4 Kensington Heritage C/W PE Cell No La [GWD]"]
[null,500900,"Lantern 42w Compact Suburban Fluorescent with Lamp & PE Cell [GWD]"]
[null,500906,"Lantern 42W Compact Fluo Aero Urban, Lamp & PE Cell"]
[null,500925,"Lantern 80W MV Style 2 Nostalgia C/W PE Cell No Lamp/Fuse Bo [GWD]"]
[null,500935,"Lantern 250W HPS Parkville Series .S. Flared Skirt [GD]"]
[null,500942,"Lantern 80W MV Style 5 Nostalgia B  Pole Top C/W PE Cell [GWD]"]
[null,500944,"Lantern 42w Compact Fluorescent Bourke Hill Flared Model R [GWD]"]
[null,500946,"Lantern 70w HPS Bourke Hill Flared Model R [GD]"]
[null,500948,"Lantern 32W Compact Fluo Eco S Bourke Hill [GD]"]
[null,500950,"Lantern 42w Compact Fluorescent Bourke Hill Eco S Series [G]"]
[null,500954,"Lantern 42w Compact Fluorescent Bourke Hill Eco A Series [GD]"]
[null,500958,"Lantern 42W Compact Fluorescent Nostalgia with PE Cell & Lam [GD]"]
[null,500960,"Lantern 70W HPS Nostalgia with PE Cell & Lamp [GD]"]
[null,500964,"Lantern 42w Compact Fluorescent Nostalgia B with PE Cell & [GWD]"]
[null,500966,"Lantern 70w HPS Nostalgia B with PE Cell & Lamp [GD]"]
[null,500970,"Lantern 42w Compact Fluorescent Kensington Heritage with PE [GD]"]
[null,500974,"Lantern 150W HPS Roadster With PE Cell & Lamp, No Fuse"]
[null,500978,"Lantern 150W HPS Roadster Aero, PE Cell & Lamp"]
[null,500982,"Lantern 400W HPS Roadster & PE Cell & Lamp, No Fuse"]
[null,500983,"Lantern 400W HPS Roadster & PE Cell & Lamp, No Fuse"]
[null,500984,"Lantern 400W MH Roadster Aero"]
[null,500992,"Floodlight 400w Metal Halide Sylflood Asymetric [GWD]"]
[null,501001,"Lantern 150W HPS Roadster C/W PE Cell [GWD]"]
[null,501004,"250W HPS Roadster Aeroscreen"]
[null,501008,"Lantern 250W HPS Roadster, PE Cell & Lamp, No Fuse"]
[null,501010,"Lantern 250W HPS Roadster C/W PE Cell [GWD]"]
[null,501014,"Floodlight 250W HPS Sylflood Bi-Symetrical, PE Cell & Lamp"]
[null,501016,"Floodlight 250W Metal Halide Sylflood Bi-Symetrical"]
[null,501030,"Lantern 150W HPS Roadster Aeroscreen with PE Cell & Lamp [GWD]"]
[null,501240,"Lantern 250W HPS Style 1 OP24ispan C/W PE Cell Base No PE Cel [GWD]"]
[null,501333,"Lantern 150W HPS Style 1 Aeroscreen OP24ispan [GWD]"]
[null,501360,"Lantern 150W HPS Style 1 OP24ispan C/W PE Cell Base No PE Cel [GWD]"]
[null,501455,"Lantern 250W HPS Style 1 Aeroscreen OP24ispan C/W PE Cell Bas [GWD]"]
[null,501814,"Lantern 50W HPS Suit Twin Arc C/W Cell [G]"]
[null,501962,"Lantern 70W HPS OP24ispan Minor Style 1 C/W PE Cell Ext Ign [GWD]"]
[null,501970,"Lantern 70W HPS Style 1 Aeroscreen"]
[null,501970,"Lantern 70W HPS Style 1 Aeroscreen"]
[null,502025,"Lantern 70W HPS Suburban-Igniter-Cell- Lamp No Fuse [GWD]"]
[null,502026,"Lantern 70w HPS Urban with PE Cell & Lamp No Fuse [GWD]"]
[null,502200,"Pendant Arm 0.6M Hook Outreach Style 3 Bourke Hill Flared Mo [GWD]"]
[null,503225,"Diffuser Sylvania Urban Glare Shield Bowl"]
[null,503230,"xx10 Shield Side 35 Degrees For Sentry Floodlight"]
[null,503234,"Shield Full Glare Sentry Nightwatch"]
[null,503240,"Shield Top 25 Deg For Sentry Floodlight"]
[null,509912,"Floodlight 250W HPS Sylflood AS Asymetric"]
[null,509913,"Floodlight 250W Metal Halide Sylflood AS Asymetric"]
[null,509920,"Floodlight 250W NAVT/HQIT Sentry C/W PE Cell  No Lamp/Fuse [GWD]"]
[null,509940,"Floodlight 250W HPS Sentry Louvre Pedestrian C/W Microstar P [GWD]"]
[null,509980,"Floodlight 400W HPS Sentry Louvre Pedestrian C/W Microstar P [GWD]"]
[null,500990,"Floodlight 400w HPS Sylflood Asymetric with PE Cell & Lamp [GWD]"]
[null,510140,"Floodlight 250w HPS Sylflood AS Asymetric [GWD]"]
[null,510160,"Lantern 400W HPS Roadster with PE Cell & Lamp. No Fuse [GWD]"]
[null,510162,"Lantern 400W HPS Aero Roadster"]
[null,510180,"LED 36W Gerard Luminaire (Cat P3)"]
[null,510185,"LED 23W Gerard Luminaire (Cat P3) - Aeroscreen"]
[null,510190,"LED 17W Gerard Luminaire (Cat P20/P5)"]
[null,510195,"LED 17W Gerard Luminaire (Cat P20/P5) - Aeroscreen"]
[null,510200,"LED 17W Gerard Luminaire - Louvred (Cat P20/P5 RRW)"]
[null,510205,"LED 25W GE Evolve Luminaire (Cat P20/P5)"]
[null,510207,"LED 100W Luminaire Category V4  Aldridge"]
[null,510210,"LED 105W Aldridge Luminaire (Cat V3)"]
[null,510215,"LED 198W Aldridge Luminaire (Cat V1) - Standard Dist."]
[null,510220,"LED 198W Aldridge Luminaire (Cat V1) - Forward Dist."]
[null,510222,"LED 200W Luminaire Category V3 Aldridge"]
[null,510224,"'LED 300W Luminaire Category V2  Aldridge"]
[null,510225,"LED 29W Pecan Luminaire (Cat P3) - Aeroscreen"]
[null,510230,"LED 35W Pecan Luminaire (Cat P3)"]
[null,510235,"LED 36W Pecan Luminaire (Cat V5) - Aeroscreen"]
[null,510240,"LED 42W Pecan Luminaire (Cat V5)"]
[null,510245,"LED 298W Aldrige Luminaire (Cat V1) - Standard Dist."]
[null,510310,"Floodlight 1000W MH C/W Remote Gear [D]"]
[null,510350,"Lamp 70W HPS Elliptical Ext/Ign [GWD]"]
[null,520792,"Lamp 150W HPS Twin Arc Tubular"]
[null,522620,"Lamp 80W MV - Elliptical [GWD]"]
[null,523580,"Lamp 150W HPS Tubular GES [GWD]"]
[null,523670,"Lamp 250W HPS Tubular Ext/Ign [GWD]"]
[null,523760,"Lamp 400W HPS Tubular Ext/Ign [GWD]"]
[null,523762,"Lamp 400W HPS Twin Arc Tubular"]
[null,523792,"Lamp 50W HPS Twin Arc - Elliptical Ext/Ign [G]"]
[null,523822,"Lamp 70W HPS Twin Arc C/H Elliptical"]
[null,524182,"Lamp 250W HPS Twin Arc Tubular"]
[null,524570,"Lamp 1001 Watt Metal Halide Powerstar [WD]"]
[null,524740,"Floodlight 250w Metal Halide Sylflood AS Asymetric [GWD]"]
[null,524750,"Lamp 400W Metal Halide Tubular Suit Sentry Floodlight [GWD]"]
[null,604202,"Pole Band 300mm Concrete New Type [GWD]"]
[null,"P20","4 Tonne Truck 2016"]
[null,"P21","Borer 2016"]
[null,"P22","EWP 2016"]
[null,"P23","Trailer/Jinker 2016"]
[null,"M10_Bolts_Washers","M10 x 75mm SS bolt, flat & spring washers"]
[null,"S/S_Band","Band S/S 16mm around pole. band $, buckle,  labour."]
[null,"Band_Bolts","Band (300mm) + bolts (200mm)"]
[null,"M16_Bolts_Washers","M16 x 200mm bolt, large flat & spring washers"]
[null,"M20_Bolts_Washers","M20 x 65mm bolt, flat & spring washers"]
[]
[null,null,"Hybrid Stocks (See Hybrid Calcs Sheet)"]
[null,"42W_CFL_Decorative","42W Decorative Luminaire",null,null,728.14688599607996]
[null,"70W_HPS_Decorative","70W Decorative Luminaire",null,null,504.17603354279998]
[null,"80W_MVA_Standard","80W Mercury Vapour Standard Luminaire",null,null,122.16735283797]
[null,"42W_CFL_Standard","42W CFL Standard Luminaire",null,null,197.48247749999999]
[null,"70W_HPS_Standard","Composite HPS 70W (Aero and Non-Aero)",null,null,177.17676492780001]
[null,"70W_HPS_TA_Standard","Composite Twin Arc HPS 70W (Aero and Non-Aero)",null,null,177.17676492780001]
[null,"150W_HPS_Standard","Composite HPS 150W (Aero and Non-Aero)",null,null,274.83918511499996]
[null,"250W_HPS_Standard","Composite HPS 250W (Aero and Non-Aero)",null,null,274.83918511499996]
[null,"400W_HPS_Standard","Composite HPS 400W (Aero and Non-Aero)",null,null,368.96497624800003]
[null,"400W_MH_Standard","Composite MH 400W (Aero and Non-Aero)",null,null,341.5939048665]
[null,"Cat_P_Bracket","Category P Bracket",null,null,102.99118204471291]
[null,"Cat_V_Bracket","Category V Bracket",null,null,168.08908088851354]
[null,"7.5_Single","7.5m Single Outreach",null,null,402.1441294273892]
[null,"7.5_Double","7.5m Double Outreach",null,null,493.07687411424246]
[null,"9.0_Single","9.0m Single Outreach",null,null,853.13509671247368]
[null,"9.0_Double","9.0m Double Outreach",null,null,1296.7805152311473]
[null,"10.5_Single","10.5m Single Outreach",null,null,901.5284650425034]
[null,"10.5_Double","10.5m Double Outreach",null,null,1545.1944847019624]
[null,"12.0_Single","12.0m Single Outreach",null,null,1472.80835600296]
[null,"12.0_Double","12.0m Double Outreach",null,null,1574.5707570654008]

{"sheet":"CAPEX - Hybid Calcs","index":4,"n_rows":114,"n_cols":10,"rows_kept":114,"cut":false,"hidden":false,"merged":[[67,9,68,9],[76,9,78,9],[85,9,86,9],[94,9,96,9],[106,9,107,9],[36,9,41,9],[43,9,48,9],[50,9,52,9],[54,9,56,9],[58,9,60,9]]}
[]
[]
[]
[]
[]
[null,"Assembly Code","Assembly Description","Component Type","Stock No.","Stock Name","Breakdown","Cost","Hybrid Cost  (Loaded)","Notes"]
["Luminaire","42W_CFL_Decorative","42W Decorative Luminaire","Luminaire",500970,"Lantern 42w Compact Fluorescent Kensington Heritage with PE [GD]",1,null,728.14688599607996,"Averaged"]
[null,null,null,"Luminaire",500958,"Lantern 42W Compact Fluorescent Nostalgia with PE Cell & Lam [GD]",1]
[null,null,null,"Luminaire",500944,"Lantern 42w Compact Fluorescent Bourke Hill Flared Model R [GWD]",1]
[null,null,null,"Luminaire",500954,"Lantern 42w Compact Fluorescent Bourke Hill Eco A Series [GD]",1]
[null,null,null,"Luminaire",500950,"Lantern 42w Compact Fluorescent Bourke Hill Eco S Series [G]",1]
["Luminaire","70W_HPS_Decorative","70W Decorative Luminaire","Luminaire",500946,"Lantern 70w HPS Bourke Hill Flared Model R [GD]",1,null,504.17603354279998,"Averaged"]
[null,null,null,"Luminaire",500960,"Lantern 70W HPS Nostalgia with PE Cell & Lamp [GD]",1]
[null,null,null,"Luminaire",500966,"Lantern 70w HPS Nostalgia B with PE Cell & Lamp [GD]",1]
["Luminaire","80W_MVA_Standard","80W Mercury Vapour Standard Luminaire","Luminaire",500880,"Lantern 80W MV Urban Style 1 C/W PE Cell and Interference Su [GWD]",0.95,null,122.16735283797,"Weighted"]
[null,null,null,"Luminaire",500885,"Lantern 80W MV Style 1 Aeroscreen C/W PE Cell No Lamp or Fus [GWD]",0.05]
["Luminaire","42W_CFL_Standard","42W CFL Standard Luminaire","Luminaire",500900,"Lantern 42w Compact Suburban Fluorescent with Lamp & PE Cell [GWD]",0.95,null,197.48247749999999,"Weighted"]
[null,null,null,"Luminaire",500906,"Lantern 42W Compact Fluo Aero Urban, Lamp & PE Cell",0.05]
["Luminaire","70W_HPS_Standard","Composite HPS 70W (Aero and Non-Aero)","Luminaire",502025,"Lantern 70W HPS Suburban-Igniter-Cell- Lamp No Fuse [GWD]",0.95,null,177.17676492780001,"Weighted"]
[null,null,null,"Luminaire",501970,"Lantern 70W HPS Style 1 Aeroscreen",0.05]
["Luminaire","70W_HPS_TA_Standard","Composite Twin Arc HPS 70W (Aero and Non-Aero)","Luminaire",502025,"Lantern 70W HPS Suburban-Igniter-Cell- Lamp No Fuse [GWD]",0.95,null,177.17676492780001,"Weighted"]
[null,null,null,"Luminaire",501970,"Lantern 70W HPS Style 1 Aeroscreen",0.05]
["Luminaire","150W_HPS_Standard","Composite HPS 150W (Aero and Non-Aero)","Luminaire",500974,"Lantern 150W HPS Roadster With PE Cell & Lamp, No Fuse",0.95,null,274.83918511499996,"Weighted"]
[null,null,null,"Luminaire",500978,"Lantern 150W HPS Roadster Aero, PE Cell & Lamp",0.05]
["Luminaire","250W_HPS_Standard","Composite HPS 250W (Aero and Non-Aero)","Luminaire",501008,"Lantern 250W HPS Roadster, PE Cell & Lamp, No Fuse",0.95,null,274.83918511499996,"Weighted"]
[null,null,null,"Luminaire",501004,"250W HPS Roadster Aeroscreen",0.05]
["Luminaire","400W_HPS_Standard","Composite HPS 400W (Aero and Non-Aero)","Luminaire",500982,"Lantern 400W HPS Roadster & PE Cell & Lamp, No Fuse",0.9,null,368.96497624800003,"Weighted"]
[null,null,null,"Luminaire",500983,"Lantern 400W HPS Roadster & PE Cell & Lamp, No Fuse",0.02]
[null,null,null,"Luminaire",510162,"Lantern 400W HPS Aero Roadster",0.08]
["Luminaire","400W_MH_Standard","Composite MH 400W (Aero and Non-Aero)","Luminaire",510160,"Lantern 400W HPS Roadster with PE Cell & Lamp. No Fuse [GWD]",0.9,null,341.5939048665,"Weighted"]
[null,null,null,"Luminaire",500984,"Lantern 400W MH Roadster Aero",0.1]
["Luminaire","REPMV250WHPS150W","Mercury Vapour 250W Replacement with 150W High Pressure Sodium","Luminaire",500974,"Lantern 150W HPS Roadster With PE Cell & Lamp, No Fuse",0.8,null,280.08657665999999,"Weighted"]
[null,null,null,"Luminaire",500978,"Lantern 150W HPS Roadster Aero, PE Cell & Lamp",0.2]
["Luminaire","REPMV400WHPS250W","Mercury Vapour 400W Replacement with 250W High Pressure Sodium","Luminaire",501008,"Lantern 250W HPS Roadster, PE Cell & Lamp, No Fuse",0.8,null,280.08657665999999,"Weighted"]
[null,null,null,"Luminaire",501004,"250W HPS Roadster Aeroscreen",0.2]
["Bracket","Cat_P_Bracket","Category P Bracket","Bracket",131275,"Bracket 500mm S/Light Outreach CE1 [GWD]",0.49293803054503688,null,102.99118204471291,"Weighted"]
[null,null,null,"Bracket",131277,"Bracket 2000mm S/Light Outreach CE2 [GWD]",7.2773281168679677E-2,null,null,"Unknowns attributed to smallest bracket, Older styles attributed to nearest sized outreach"]
[null,null,null,"Bracket",131280,"Bracket CE3 3000mm S/Light Outreach [GWD]",0.1095637192440911]
[null,null,null,"Bracket",131282,"Bracket CE4 4500mm S/Light Outreach [GWD]",3.4206134132553259E-2]
[null,null,null,"Bracket",131285,"Bracket CE5 6000mm S/Light Outreach [GWD]",2.1320507528579891E-2]
[null,null,null,"Bracket",131288,"Bracket CE6 2000mm S/Light 5 Deg Rise [GWD]",0.23849177150445972]
[null,null,null,"Bracket",131289,"Bracket 3000mm S/Light OR CE7",3.0706555876599487E-2]
["Bracket","Cat_V_Bracket","Category V Bracket","Bracket",131275,"Bracket 500mm S/Light Outreach CE1 [GWD]",0.30150753768844218,null,168.08908088851354,"Weighted"]
[null,null,null,"Bracket",131277,"Bracket 2000mm S/Light Outreach CE2 [GWD]",7.0839635068546611E-2,null,null,"Unknowns attributed to smallest bracket, Older styles attributed to nearest sized outreach"]
[null,null,null,"Bracket",131280,"Bracket CE3 3000mm S/Light Outreach [GWD]",0.21744645557886519]
[null,null,null,"Bracket",131282,"Bracket CE4 4500mm S/Light Outreach [GWD]",0.14045957945065132]
[null,null,null,"Bracket",131285,"Bracket CE5 6000mm S/Light Outreach [GWD]",7.9377469873640041E-2]
[null,null,null,"Bracket",131288,"Bracket CE6 2000mm S/Light 5 Deg Rise [GWD]",0.14772893594184514]
[null,null,null,"Bracket",131289,"Bracket 3000mm S/Light OR CE7",4.2640386398009468E-2]
["Column","7.5_Single","7.5m Single Outreach","Column",131065,"Column  7.5M X 1.5M Single O/R Tapered Octagonal Curved Galv [GWD]",0.73449920508744038,null,402.1441294273892,"Weighted"]
[null,null,null,"Column",131068,"Column 7.5M X 3M Single O/R Tapered Octagonal Curved Galv [GWD]",6.5500794912559612E-2]
[null,null,null,"Column",131067,"Column 7.5M X 1.5M Single O/R Impact Absorbing Galv",0.18364246599540718]
[null,null,null,"Column",131123,"Column  7.5M X 3M Single O/R Tapered Round Impact Absorbing C [GWD]",1.635753400459283E-2]
["Column","7.5_Double","7.5m Double Outreach","Column",131066,"Column  7.5M X 1.5M Double O/R Tapered Octagonal Curved Galv [GWD]",0.73449920508744038,null,493.07687411424246,"Weighted"]
[null,null,null,"Column",131068,"Column 7.5M X 3M Single O/R Tapered Octagonal Curved Galv [GWD]",6.5500794912559612E-2]
[null,null,null,"Column",131069,"Column 7.5M X 1.5M Double O/R Impact Absorbing Galv",0.18364246599540718]
[null,null,null,"Column",131126,"Column 7.5M X 3M Double O/R Impact Absorbing Galv",1.635753400459283E-2]
["Column","9.0_Single","9.0m Single Outreach","Column",131070,"Column  9M X 1.5M Single O/R Tapered Round Rigid Curved Galv [GWD]",0.70367400021675519,null,853.13509671247368,"Weighted"]
[null,null,null,"Column",131073,"Column  9M X 3M Single O/R Tapered Round Rigid Curved Galv [GWD]",4.1877099815758108E-2]
[null,null,null,"Column",131076,"Column 9M X 4.5M Single O/R Tapered Round Rigid Curved Galv [GD]",5.4448899967486725E-2]
[null,null,null,"Column",131010,"Column  9M X 1.5M Single O/R Tapered Round Impact Absorbing [GWD]",8.8002601062100352E-2]
[null,null,null,"Column",131012,"Column 9M X 3M Single O/R Tapered Round Impact Absorbing Cur [GWD]",5.2021242007152923E-3]
[null,null,null,"Column",131014,"Column 9M X 4.5M Single O/R Tapered Round Impact Absorbing C [GWD]",6.8277880134388208E-3]
[null,null,null,"Column",131040,"Column  9M X 1.5M Single O/R Tapered Round Slip Base Curved [GWD]",8.8002601062100352E-2]
[null,null,null,"Column",131042,"Column  9M X 3M Single O/R Tapered Round Slip Base Curved Ga [GWD]",5.2021242007152923E-3]
[null,null,null,"Column",131044,"Column 9M X 4.5M Single O/R Tapered Round Slip Base Curved [GD]",6.8277880134388208E-3]
["Column","9.0_Double","9.0m Double Outreach","Column",131071,"Column  9M X 1.5M Double O/R Tapered Round Rigid Curved Galv [GWD]",0.70367400021675519,null,1296.7805152311473,"Weighted"]
[null,null,null,"Column",131074,"Column  9M X 3M Double O/R Tapered Round Rigid Curved Galv [GWD]",4.1877099815758108E-2]
[null,null,null,"Column",131077,"Column  9M X 4.5M Double O/R Tapered Round Rigid Curved Galv [GWD]",5.4448899967486725E-2]
[null,null,null,"Column",131011,"Column 9M X 1.5M Double O/R Tapered Round Impact Absorbing C [GWD]",8.8002601062100352E-2]
[null,null,null,"Column",131013,"Column 9M X 3M Double O/R Tapered Round Impact Absorbing Cur [GWD]",5.2021242007152923E-3]
[null,null,null,"Column",131015,"Column  9M X 4.5M Double O/R Tapered Round Impact Absorbing [GWD]",6.8277880134388208E-3]
[null,null,null,"Column",131041,"Column  9M X 1.5M Double O/R Tapered Round Slip Base Curved [GWD]",8.8002601062100352E-2]
[null,null,null,"Column",131043,"Column  9M X 3M Double O/R Tapered Round Slip Base Curved Ga [GWD]",5.2021242007152923E-3]
[null,null,null,"Column",131045,"Column  9M X 4.5M Double O/R Tapered Round Slip Base Curved [GWD]",6.8277880134388208E-3]
["Column","10.5_Single","10.5m Single Outreach","Column",131080,"Column  10.5M X 1.5M Single O/R Tapered Round Rigid Curved G [GWD]",0.58530561844000828,null,901.5284650425034,"Weighted"]
[null,null,null,"Column",131083,"Column  10.5M X 3M Single O/R Tapered Round Rigid Curved Gal [GWD]",8.2938876311998352E-2]
[null,null,null,"Column",131086,"Column 10.5M X 4.5M Single O/R Tapered Round Rigid Curved G [GD]",0.13171434451533237]
[null,null,null,"Column",131018,"Column 10.5M X 1.5M Single O/R Tapered Round Impact Absorbin [GWD]",7.3266104136653631E-2]
[null,null,null,"Column",131020,"Column  10.5M X 3M Single O/R Tapered Round Impact Absorbing [GWD]",1.0290183165260341E-2]
[null,null,null,"Column",131022,"Column  10.5M X 4.5M Single O/R Tapered Round Impact Absorbi [GWD]",1.6464293064416546E-2]
[null,null,null,"Column",131048,"Column  10.5M X 1.5M Single O/R Tapered Round Slip Base Curv [GWD]",7.3266104136653631E-2]
[null,null,null,"Column",131050,"Column  10.5M X 3M Single O/R Tapered Round Slip Base Curved [GWD]",1.0290183165260341E-2]
[null,null,null,"Column",131052,"Column 10.5M X 4.5M Single O/R Tapered Round Slip Base Curv [GD]",1.6464293064416546E-2]
["Column","10.5_Double","10.5m Double Outreach","Column",131081,"Column  10.5M X 1.5M Double O/R Tapered Round Rigid Curved G [GWD]",0.58530561844000828,null,1545.1944847019624,"Weighted"]
[null,null,null,"Column",131084,"Column  10.5M X 3M  Double O/R Tapered Round Rigid CurvedGal [GWD]",8.2938876311998352E-2]
[null,null,null,"Column",131087,"Column  10.5M X 4.5M Double O/R Tapered Round Rigid Curved G [GWD]",0.13171434451533237]
[null,null,null,"Column",131019,"Column  10.5M X 1.5M Double O/R Tapered Round Impact Absorbi [GWD]",7.3266104136653631E-2]
[null,null,null,"Column",131021,"Column  10.5M X 3M Double O/R Tapered Round Impact Absorbing [GWD]",1.0290183165260341E-2]
[null,null,null,"Column",131023,"Column  10.5M X 4.5M Double O/R Tapered Round Impact Absorbi [GWD]",1.6464293064416546E-2]
[null,null,null,"Column",131049,"Column  10.5M X 1.5M Double O/R Tapered Round Slip Base Curv [GWD]",7.3266104136653631E-2]
[null,null,null,"Column",131051,"Column  10.5M X 3M Double O/R Tapered Round Slip Base Curved [GWD]",1.0290183165260341E-2]
[null,null,null,"Column",131053,"Column  10.5M X 4.5M Double O/RTapered Round Slip Base Curve [GWD]",1.6464293064416546E-2]
["Column","12.0_Single","12.0m Single Outreach","Column",131090,"Column  12M X 1.5M Single O/R Tapered Round Rigid Curved Gal [GWD]",0.70189274447949523,null,1472.80835600296,"Weighted"]
[null,null,null,"Column",131093,"Column  12M X 3M Single O/R Tapered Round Rigid Curved Galv [GWD]",2.365930599369085E-2]
[null,null,null,"Column",131096,"Column 12M X 4.5M Single O/R Tapered Round Rigid Curved Gal [GD]",2.3884632717440287E-2]
[null,null,null,"Column",131098,"Column  12M X 6M Single O/R Tapered Round Rigid CurvOutreach [GWD]",5.0923839567372689E-2]
[null,null,null,"Column",131026,"Column  12M X 1.5M Single O/R Tapered Round Impact Absorbing [GWD]",8.7652095538530872E-2]
[null,null,null,"Column",131028,"Column  12M X 3M Single O/R Tapered Round Impact Absorbing C [GWD]",2.9292474087426767E-3]
[null,null,null,"Column",131030,"Column  12M X 4.5M Single O/R Tapered Round Impact Absorbing [GWD]",2.9292474087426767E-3]
[null,null,null,"Column",131032,"Column  12M X 6M Single O/R Tapered Round Impact Absorbing C [GWD]",6.3091482649842269E-3]
[null,null,null,"Column",131056,"Column  12M X 1.5M Single O/R Tapered Round Slip Base Curved [GWD]",8.7652095538530872E-2]
[null,null,null,"Column",131058,"Column  12M X 3M Single O/R Tapered Round Slip Base Curved G [GWD]",2.9292474087426767E-3]
[null,null,null,"Column",131060,"Column 12M X 4.5M Single O/R Tapered Round Slip Base Curved [GD]",2.9292474087426767E-3]
[null,null,null,"Column",131054,"Column 12M X 6.0M Single O/R Tapered Round Slip Base Curved [GD]",6.3091482649842269E-3]
["Column","12.0_Double","12.0m Double Outreach","Column",131091,"Column  12M X 1.5M Double O/R Tapered Round Rigid Curved Gal [GWD]",0.74951876804619821,null,1574.5707570654008,"Weighted"]
[null,null,null,"Column",131094,"Column  12M X 3M Double O/R Tapered Round Rigid Curved Galv [GWD]",2.5264677574590954E-2]
[null,null,null,"Column",131097,"Column  12M X 4.5M Double O/R Tapered Round Rigid Curved Gal [GWD]",2.5505293551491819E-2]
[null,null,null,"Column",131027,"Column  12M X 1.5M Double O/R Tapered Round Impact Absorbing [GWD]",9.3599615014436963E-2]
[null,null,null,"Column",131029,"Column  12M X 3M Double O/R Tapered Round Impact Absorbing C [GWD]",3.1280076997112606E-3]
[null,null,null,"Column",131031,"Column  12M X 4.5M Double O/R Tapered Round Impact Absorbing [GWD]",3.1280076997112606E-3]
[null,null,null,"Column",131057,"Column  12M X 1.5M Double O/R Tapered Round Slip Base Curved [GWD]",9.3599615014436963E-2]
[null,null,null,"Column",131059,"Column  12M X 3M Double O/R Tapered Round Slip Base Curved G [GWD]",3.1280076997112606E-3]
[null,null,null,"Column",131061,"Column  12M X 4.5M Double O/R Tapered Round Slip Base Curved [GWD]",3.1280076997112606E-3]

{"sheet":"CAPEX Build Up","index":5,"n_rows":76,"n_cols":14,"rows_kept":76,"cut":false,"hidden":false,"merged":[[0,0,0,3],[11,5,11,8],[11,9,11,12],[6,3,6,6]]}
["SLUOS Capital Charge"]
[]
["Description "]
["This sheet details all CAPEX-relatred SLUOS, broken down for each component.  ALL COSTS HERE ARE ALREADY ONCOSTED"]
[]
["Parameters"]
["Return on Asset Percentage",null,4.1959037410731703E-2]
["LED Luminaire life span in years",null,10]
["Traditional Luminaire life span in years",null,20]
["Pole/bracket lifespan in years",null,35,null,null,null,null,null,null,"THESE NEED EDITING regarding life span of wiring etc etc"]
[]
[null,null,null,null,null,null,null,null,null,"Annuity Calculation for Return of and on for Capital Recovery of installation"]
["Name","Classification","Type","Calculation Method","Mapped to Assembly/Item","Installation (Materials, Labour, Plant)","Design","Traffic Control","Capital Cost Total (including corporate & divisional overhead)","Installation (Materials, Labour, Plant)","Design","Traffic Control","Total","TOTAL Inc. Overheads"]
["50W HPS Twin-arc Standard Luminaire","P","Luminaire","Direct","7107.09.30",246.03051988328411,0,33.346155684286607,279.37667556757071,18.418785913539811,0,2.4964207809657744,20.915206694505585,29.711017001305272]
["LED 42W Gerard Luminaire (Cat P3)","P","Luminaire","Direct","7206.05.80",360.57035683328411,0,33.346155684286607,393.91651251757071,44.889660034316101,0,4.1514715886950162,49.041131623011118,69.665192254461559]
["LED 23W Gerard Luminaire (Cat P3) - Aeroscreen","P","Luminaire","Direct","7206.05.81",340.25787343328409,0,33.346155684286607,373.60402911757069,42.360831868055364,0,4.1514715886950162,46.512303456750381,66.072875059676662]
["LED 17W Gerard Luminaire (Cat P20/P5)","P","Luminaire","Direct","7206.05.82",350.8013032332841,0,33.346155684286607,384.1474589175707,43.673449420630583,0,4.1514715886950162,47.8249210093256,67.937508911515152]
["LED 17W Gerard Luminaire (Cat P20/P5) - Aeroscreen","P","Luminaire","Direct","7206.05.83",361.78553179328418,0,33.346155684286607,395.13168747757078,45.040944769189181,0,4.1514715886950162,49.192416357884198,69.880099206876835]
["LED 17W Gerard Luminaire - Louvred (Cat P20/P5 RRW)","P","Luminaire","Direct","7206.05.84",361.78553179328418,0,33.346155684286607,395.13168747757078,45.040944769189181,0,4.1514715886950162,49.192416357884198,69.880099206876835]
["LED 25W GE Evolve Luminaire (Cat P20/P5)","P","Luminaire","Direct","7206.05.85",245.80482562328416,0,33.346155684286607,279.15098130757076,30.601780894943005,0,4.1514715886950162,34.753252483638022,49.368600103927037]
["LED 35W Pecan Luminaire (Cat P3)","P","Luminaire","Direct","7206.05.86",433.18301743328419,0,33.346155684286607,466.52917311757079,53.929664534819985,0,4.1514715886950162,58.081136123515002,82.506936126727695]
["LED 29W Pecan Luminaire (Cat P3) - Aeroscreen","P","Luminaire","Direct","7206.05.87",433.18301743328419,0,33.346155684286607,466.52917311757079,53.929664534819985,0,4.1514715886950162,58.081136123515002,82.506936126727695]
["LED 42W Pecan Luminaire (Cat V5)","V","Luminaire","Direct","7206.05.88",491.0943113412842,0,266.76924547429286,757.86355681557711,61.139403900276086,0,33.21177270956013,94.351176609836216,134.0302036357316]
["LED 36W Pecan Luminaire (Cat V5) - Aeroscreen","V","Luminaire","Direct","7206.05.89",491.0943113412842,0,266.76924547429286,757.86355681557711,61.139403900276086,0,33.21177270956013,94.351176609836216,134.0302036357316]
["LED 105W Aldridge Luminaire (Cat V3)","V","Luminaire","Direct","7206.05.90",945.11849023328409,0,266.76924547429286,1211.8877357075769,117.66371504115251,0,33.21177270956013,150.87548775071264,214.32559797839539]
["LED 198W Aldridge Luminaire (Cat V1) - Standard Dist.","V","Luminaire","Direct","7206.05.91",1015.9573660332842,0,266.76924547429286,1282.726611507577,126.48288997223383,0,33.21177270956013,159.69466268179397,226.85364324909679]
["LED 198W Aldridge Luminaire (Cat V1) - Forward Dist.","V","Luminaire","Direct","7206.05.92",1002.5321977932842,0,266.76924547429286,1269.301443267577,124.81150676844001,0,33.21177270956013,158.02327947800015,224.47936622143254]
["LED 298W Aldrige Luminaire (Cat V1) - Standard Dist.","V","Luminaire","Direct","7206.05.93",1162.4137468332842,0,266.76924547429286,1429.182992307577,144.71616128634832,0,33.21177270956013,177.92793399590846,252.75484718725244]
["LED 100W Aldridge Luminaire - Brownfield","V","Luminaire","Direct","LED0015",1010.5212892332842,0,266.76924547429286,1277.2905347075771,125.80611875450099,0,33.21177270956013,159.01789146406111,225.89225848012211]
["LED 200W Aldridge Luminaire - Brownfield","V","Luminaire","Direct","LED0016",1010.5212892332842,0,266.76924547429286,1277.2905347075771,125.80611875450099,0,33.21177270956013,159.01789146406111,225.89225848012211]
["LED 300W Aldridge Luminaire - Brownfield","V","Luminaire","Direct","LED0017",1156.1304892332842,0,266.76924547429286,1422.899734707577,143.93391922948823,0,33.21177270956013,177.14569193904836,251.64363622051542]
["80W Mercury Vapour Standard Luminaire","P","Luminaire","Hybrid","7206.05.1",188.48881819625416,0,33.346155684286607,221.83497388054076,14.110993998223917,0,2.4964207809657744,16.607414779189689,23.59159964610129]
["42W Decorative Luminaire","P","Luminaire","Hybrid","7206.05.53",791.36505527936413,0,33.346155684286607,824.71121096365073,59.244615422354883,0,2.4964207809657744,61.741036203320661,87.7059932090921]
["70W Decorative Luminaire","P","Luminaire","Hybrid","7206.05.25",567.3942028260841,0,33.346155684286607,600.7403585103707,42.477300602360245,0,2.4964207809657744,44.973721383326023,63.887248170633136]
["32W C/F Suburban Eco ","P","Luminaire","Hybrid","Compact_Fluro_32W",759.70369287608412,0,33.346155684286607,793.04984856037072,56.874324711618421,0,2.4964207809657744,59.370745492584192,84.338885791347693]
["42W CFL Standard Luminaire","P","Luminaire","Hybrid","7107.09.43",260.70064678328413,0,33.346155684286607,294.04680246757073,19.517047734161682,0,2.4964207809657744,22.013468515127457,31.271148636674329]
["70W HPS Standard Luminaire","P","Luminaire","Hybrid","7107.09.3",240.39493421108415,0,33.346155684286607,273.74108989537075,17.996884411063995,0,2.4964207809657744,20.493305192029769,29.111686433071959]
["70W HPS Twin Arc Standard Luminaire","P","Luminaire","Hybrid","7107.09.61",253.37235416108416,0,33.346155684286607,286.71850984537076,18.968423713921805,0,2.4964207809657744,21.464844494887579,30.49180287974459]
["150W HPS Standard Luminaire","V","Luminaire","Hybrid","7107.09.7",338.05735439828413,0,266.76924547429286,604.82659987257694,25.308266795979328,0,19.971366247726195,45.279633043705523,64.321809811605135]
["150W HPS Twin Arc Standard Luminaire","V","Luminaire","Hybrid","7107.09.41",353.79952903328416,0,266.76924547429286,620.56877450757702,26.486786211185105,0,19.971366247726195,46.4581524589113,65.995951066481936]
["250W HPS Standard Luminaire","V","Luminaire","Hybrid","7107.09.11",338.05735439828413,0,266.76924547429286,604.82659987257694,25.308266795979328,0,19.971366247726195,45.279633043705523,64.321809811605135]
["250W HPS Twin Arc Standard Luminaire","V","Luminaire","Hybrid","7107.09.39",407.96615143328415,0,266.76924547429286,674.73539690757707,30.541906779635099,0,19.971366247726195,50.513273027361294,71.756437104767699]
["400W HPS Standard Luminaire","V","Luminaire","Hybrid","7107.09.21",432.1831455312842,0,266.76924547429286,698.95239100557706,32.354883600446286,0,19.971366247726195,52.32624984817248,74.331854404384629]
["400W HPS Twin Arc Standard Luminaire","V","Luminaire","Hybrid","7107.09.24",461.0043025332842,0,266.76924547429286,727.77354800757712,34.512545669575715,0,19.971366247726195,54.48391191730191,77.396913017255841]
["400W MH Standard Luminaire","V","Luminaire","Hybrid","7107.09.23",451.58720953478417,0,266.76924547429286,718.35645500907708,33.807546062414985,0,19.971366247726195,53.77891231014118,76.395428517474713]
["250W HPS Asymetric Floodlight","V","Luminaire","Direct","7107.09.18",514.60668928328414,0,266.76924547429286,781.37593475757694,38.52542539877102,0,19.971366247726195,58.496791646497215,83.097393992642807]
["250W MH Asymetric Floodlight","V","Luminaire","Direct","7107.09.19",491.36018050328408,0,266.76924547429286,758.12942597757694,36.785102821477892,0,19.971366247726195,56.756469069204087,80.625185401211823]
["400W MH Asymetric Floodlight","V","Luminaire","Direct","7107.09.25",514.60668928328414,0,266.76924547429286,781.37593475757694,38.52542539877102,0,19.971366247726195,58.496791646497215,83.097393992642807]
["400W HPS Asymetric Floodlight","V","Luminaire","Direct","7107.09.26",532.54938295328395,0,266.76924547429286,799.31862842757687,39.868684087070065,0,19.971366247726195,59.84005033479626,85.005554992824941]
["250W Nightwatch","V","NW","Direct","250W_NW",966.50904991293964,0,266.76924547429286,1233.2782953872324,120.32675966965884,0,33.21177270956013,153.53853237921896,218.10857585609295]
["400W Nightwatch","V","NW","Direct","400W_NW",984.45174358293946,0,266.76924547429286,1251.2209890572324,122.56055788318912,0,33.21177270956013,155.77233059274926,221.28178937815289]
["1000W MH Floodlight","V","Luminaire","Direct","7107.09.50",1098.7978757907122,0,266.76924547429286,1365.567121265005,82.260212456741172,0,19.971366247726195,102.23157870446737,145.22467873849089]
["Nightwatch light mounting Wood pole","P","Bracket","Direct","7107.02.1",515.12052991293967,0,50.019233526429915,565.13976343936963,28.337318089282288,0,2.7516102517989207,31.088928341081207,44.163258436115591]
["Streetlight Bracket Category P","P","Bracket","Hybrid","Cat_P_Bracket",580.63518008465269,0,50.019233526429915,630.65441361108265,31.941347386537537,0,2.7516102517989207,34.692957638336459,49.282948491680891]
["Streetlight Bracket Category V","V","Bracket","Hybrid","Cat_V_Bracket",645.73307892845332,0,400.15386821143932,1045.8869471398925,35.522450758194019,0,22.012882014391366,57.535332772585384,81.731597260815406]
["Column Stl Style 5 4.5m Prestige","P","Column","Direct","7206.10.71",2318.8025927628546,518.88450304122853,62.52404190803739,2900.2111377121205,127.55975124594413,28.544378180313526,3.4395128147486509,159.5436422410063,226.63911173863528]
["7.5m Steel Column Single Outreach","P","Column","Hybrid","7.5_Single",1988.5914179162437,518.88450304122853,62.52404190803739,2569.9999628655096,109.39448980733385,28.544378180313526,3.4395128147486509,141.37838080239601,200.83451896941887]
["7.5m Steel Column Double Outreach","P","Column","Hybrid","7.5_Double",2079.524162603097,518.88450304122853,62.52404190803739,2660.9327075523629,114.39679501803542,28.544378180313526,3.4395128147486509,146.38068601309757,207.94052453425584]
["9.0m Steel Column Single Outreach","V","Column","Hybrid","9.0_Single",2439.5823852013282,518.88450304122853,500.19233526429912,3458.6592235068556,134.20397371105335,28.544378180313526,27.516102517989207,190.26445440935606,270.27944415129673]
["9.0m Steel Column Double Outreach","V","Column","Hybrid","9.0_Double",2883.2278037200022,518.88450304122853,500.19233526429912,3902.3046420255296,158.6093713090508,28.544378180313526,27.516102517989207,214.66985200735351,304.94843851261965]
["10.5m Steel Column Single Outreach","V","Column","Hybrid","10.5_Single",3115.1866887992319,518.88450304122853,500.19233526429912,4134.2635271047593,171.36967172114336,28.544378180313526,27.516102517989207,227.43015241944607,323.07503453545689]
["10.5m Steel Column Double Outreach","V","Column","Hybrid","10.5_Double",3758.8527084586913,518.88450304122853,500.19233526429912,4777.9295467642187,206.778411391129,28.544378180313526,27.516102517989207,262.83889208943174,373.37478445885137]
["12.0m Steel Column Single Outreach","V","Column","Hybrid","12.0_Single",3686.4665797596886,518.88450304122853,500.19233526429912,4705.5434180652155,202.7963748868917,28.544378180313526,27.516102517989207,258.85685558519441,367.71811770889792]
["12.0m Steel Column Double Outreach","V","Column","Hybrid","12.0_Double",3788.2289808221294,518.88450304122853,500.19233526429912,4807.3058191276568,208.39443079998622,28.544378180313526,27.516102517989207,264.45491149828894,375.67041465903526]
["Column Stl Seesaw 12m B/M ground service","V","Column","Direct","7206.10.73",5359.1992777202313,518.88450304122853,500.19233526429912,6378.2761160257587,294.81514678181588,28.544378180313526,27.516102517989207,350.87562748011862,498.43503273357885]
["Column Stl Seesaw 15m B/M ground service","V","Column","Direct","7206.10.74",4467.8705317712174,518.88450304122853,500.19233526429912,5486.9473700767448,245.78222200138225,28.544378180313526,27.516102517989207,301.84270269968499,428.78149867800141]
["Column Stl Seesaw 18m B/M ground service","V","Column","Direct","7206.10.75",8437.3757234482164,518.88450304122853,500.19233526429912,9456.4525617537438,464.14884639629747,28.544378180313526,27.516102517989207,520.20932709460021,738.98137308896457]
["9.5m Timber Pole","P","Column","Direct","9.5m_Timber_Pole",778.25449568381862,518.88450304122853,62.52404190803739,1359.6630406330846,42.812592234158515,28.544378180313526,3.4395128147486509,74.796483229220698,106.25185862710181]
["11m Timber Pole","V","Column","Direct","11m_Timber_Pole",890.33426519981867,518.88450304122853,500.19233526429912,1909.4111035053463,48.978217356273362,28.544378180313526,27.516102517989207,105.0386980545761,149.21232141178484]
["12.5m Timber Pole","V","Column","Direct","12.5m_Timber_Pole",1080.3011238418185,518.88450304122853,500.19233526429912,2099.3779621473459,59.4284925582147,28.544378180313526,27.516102517989207,115.48897325651744,164.05741994359917]
["14m Timber Pole","V","Column","Direct","14m_Timber_Pole",1208.9468520418186,518.88450304122853,500.19233526429912,2228.023690347346,66.505428360883798,28.544378180313526,27.516102517989207,122.56590905918654,174.11053407349604]
["15.5m Timber Pole","V","Column","Direct","15.5m_Timber_Pole",1346.6203506418183,518.88450304122853,500.19233526429912,2365.6971889473461,74.078991237424376,28.544378180313526,27.516102517989207,130.1394719357271,184.8691298967189]
["Shared or No Pole",null,"Luminaire","Direct","Shared_No_Pole",0,0,0,0,0,0,0,0,0]
["No Capex",null,"Luminaire","Direct","NO_CAPEX",0,0,0,0,0,0,0,0,0]
[""]
[""]

{"sheet":"OPEX Input","index":6,"n_rows":433,"n_cols":16,"rows_kept":433,"cut":false,"hidden":false,"merged":[[416,1,416,2],[159,1,159,2],[164,1,164,5],[113,14,114,14],[132,14,133,14],[390,1,390,2],[414,1,414,2],[365,1,365,2],[367,1,367,2],[392,1,392,2],[393,1,393,2],[0,1,0,2],[62,3,62,5],[148,13,150,13],[86,5,86,7],[90,1,90,5]]}
[null,"Input Data"]
[]
[]
[null,"Labour Rates","$ 18/19"]
[null,"R5 Lineworker 5 Paypoint 19",40.030758632458792]
[]
[null,"On-Cost Rates"]
[null,"Materials On-Cost Rate",0.1031]
[null,"Labour Ordinary On-Cost Rate",0.56189999999999996]
[null,"Labour Escalation Rate (Above CPI)",0]
[]
[null,"Contractor Rate"]
[null,"Lamp/PE Change"]
[]
[null,"Overheads"]
[null,"Divisional",0.33379921647248967]
[null,"Corporate",0.16981507575792043]
[null,"Non-System",0]
[null,"Total",0.5036142922304101]
[]
[null,"Assumptions"]
[]
[null,"Task Estimation"]
[null,"Spot Replacement Hours",2.2000000000000002,"man hours"]
[null,"Bulk Replacement Hours",0.25375661375661379,"man hours"]
[]
[]
[]
[null,"Plant Assumptions"]
[null,"Plant Material Type","Hourly Rate"]
[null,"EWP",19.732436288346317]
[null,"Ute / Van",5.2810100000000002]
[]
[null,"Traffic Control Assumptions - SPOT"]
[null,"Number of Controllers Required",2]
[null,"Hourly Rate for Controller ",62.52404190803739]
[null,"Minimum Hours for Controller",4]
[null,"Number of Lights maintained per 4 hour stint (bulk)",1.5]
[null,"Base Traffic Control Cost per light",333.46155684286606]
[]
[null,"Percentage of Installations Requiring Traffic Control : Spot Replacement, Category P",0.1]
[null,"Percentage of Installations Requiring Traffic Control : Spot Replacement, Category V",0.8]
[]
[]
[null,"Labour Rates"]
[null,"EE Standard Labour Rate",40.030758632458792]
[null,"EE Standard Labour Rate (oncosted)",62.52404190803739]
[null,"Pole Inspection and Treatment Labour Rate (oncosted)",62.52404190803739]
[]
[null,"Labour & Plant (RATE)"]
[null,"Spot Replacement Labour and Plant Cost",180.96425203204416]
[]
[null,"Pole Maintenance"]
[null,"Shared Poles - All pole inspection cost is attributed to the reticulation pole.",83477]
[null,"Total Number of Dedicated wood streetlight poles as determined from WASP (April 2014)",10286]
[null,"Total Number of Dedicated steel streetlight poles as determined from WASP(April 2014)",50861]
[null,"Pole Treatment Cost (oncosted)",7.8094999999999999]
[null,"Pole Treatment Time (includes any travel)",0.5]
[null,"Percentage of Poles >= 12 years and hence requiring drill hoile and treatment (as determined from WASP)",0.69299999999999995]
[]
[null,"Pole Inspection Frequency",4]
[]
[null,"Annual Pole Maintenance Costs"]
[null,"WOOD POLE",9.8286273635046726]
[null,"STEEL POLE",8.4756314885046731]
[null,"R/BOUT COLUMN",8.4756314885046731]
[null,"SHARED OR NO POLE",0]
[null,"NO CAPITAL",0]
[]
[]
[null,"Street Light Patrol Cost (Cat V Light Only)"]
[null,"Num Cat  V Lights",36950]
[null,"Cost Total For Steet Light Patrol",360860.62]
[null,"Cost Per Year",9.7661872801082534]
[]
[]
[]
[null,"Fault & Emergency","No longer used - built up from failure rates"]
[]
[]
[]
[]
[]
[]
[]
[]
[null,"Lamp Stock"]
[]
[null,"Description"]
[]
[null,"• This table records the cost of lamps, ballast / igniters and PE Cells for different types of lanterns.\n• The lamp types are taken from WASP and the prices are taken from stores and are average prices across the different Depots.\n• Some costs could not be found in the current inventory, in which case these costs have been transferred from 13/14 $ to 17/18 $\n• CPI 10.64% to get 13/14 to 18/19"]
[]
[]
["Type","Mapping Code","Description","Lamp Cost","Lamp On-costed","Ballast / Igniter Cost","Ballast / Igniter On-costed","Starter / PE Cell Cost","Starter / PE Cell On-Costed","Bulb Failure","Luminaire Failure","Bulk Replacement","Ballast Failure Rate","PE Cell Failure","Remarks"]
[null,"LED0001","LED 36W Gerard Luminaire (Cat P3)",0,0,0,0,null,null,0,4.6595744680851068E-3,8,null,1.09E-2]
[null,"LED0002","LED 23W Gerard Luminaire (Cat P3) - Aeroscreen",0,0,0,0,null,null,0,4.6595744680851068E-3,8,null,1.09E-2]
[null,"LED0003","LED 17W Gerard Luminaire (Cat P4/P5)",0,0,0,0,null,null,0,4.6595744680851068E-3,8,null,1.09E-2]
[null,"LED0004","LED 17W Gerard Luminaire (Cat P4/P5) - Aeroscreen",0,0,0,0,null,null,0,4.6595744680851068E-3,8,null,1.09E-2]
[null,"LED0005","LED 17W Gerard Luminaire - Louvred (Cat P4/P5 RRW)",0,0,0,0,null,null,0,4.6595744680851068E-3,8,null,1.09E-2]
[null,"LED0006","LED 25W GE Evolve Luminaire (Cat P4/P5)",0,0,0,0,null,null,0,1.9909090909090908E-2,8,null,1.09E-2]
[null,"LED0007","LED 35W Pecan Luminaire (Cat P3)",0,0,0,0,null,null,0,3.3597124454334375E-3,8,null,1.09E-2]
[null,"LED0008","LED 29W Pecan Luminaire (Cat P3) - Aeroscreen",0,0,0,0,null,null,0,2.7917026517988316E-3,8,null,1.09E-2]
[null,"LED0009","LED 42W Pecan Luminaire (Cat V5)",0,0,0,0,null,null,0,3.4571569067759485E-3,8,null,1.09E-2]
[null,"LED0010","LED 36W Pecan Luminaire (Cat V5) - Aeroscreen",0,0,0,0,null,null,0,3.4571569067759485E-3,8,null,1.09E-2]
[null,"LED0011","LED 105W Aldridge Luminaire (Cat V3)",0,0,0,0,null,null,0,3.4571569067759485E-3,8,null,1.09E-2]
[null,"LED0012","LED 198W Aldridge Luminaire (Cat V1) - Standard Dist.",0,0,0,0,null,null,0,6.8256194483403455E-3,8,null,1.09E-2]
[null,"LED0013","LED 198W Aldridge Luminaire (Cat V1) - Forward Dist.",0,0,0,0,null,null,0,6.8256194483403455E-3,8,null,1.09E-2]
[null,"LED0014","LED 298W Aldrige Luminaire (Cat V1) - Standard Dist.",0,0,0,0,null,null,0,6.8256194483403455E-3,8,null,1.09E-2]
[null,"LED0015","LED 100W Aldridge Luminaire - Brownfield",0,0,0,0,null,null,0,6.8256194483403455E-3,8,null,1.09E-2]
[null,"LED0016","LED 200W Aldridge Luminaire - Brownfield",0,0,0,0,null,null,0,6.8256194483403455E-3,8,null,1.09E-2]
[null,"LED0017","LED 300W Aldridge Luminaire - Brownfield",0,0,0,0,null,null,0,6.8256194483403455E-3,8,null,1.09E-2]
[null,"LED0018","LED 22W Gerard Luminaire",0,0,0,0,null,null,0,4.7000000000000002E-3,8,null,1.09E-2]
[null,"Mapping Code","Description","Lamp Cost","Lamp On-costed","Ballast / Igniter Cost","Ballast / Igniter On-costed","Starter / PE Cell Cost","Starter / PE Cell On-Costed","Bulb Failure","Luminaire Failure","Bulk Replacement","Ballast Failure Rate","PE Cell Failure","Remarks","Previous Bulb Failure To Save For Archive Purposes"]
[null,"FLU0060","Fluorescent Twin 20",null,null,null,null,null,null,1.8918542137321626E-2,null,4,4.3584905660377362E-3,1.09E-2,"These prices are for the Starters that are required for these Fluro lights, not for PE cells themselves. Essential Energy's existing fluoresecent lights are controlled by Control wires and therefore no PE cell is required.",1.8918542137321626E-2]
[null,"FLU0130","Fluorescent 40",null,null,null,null,null,null,1.8918542137321626E-2,null,4,4.3584905660377362E-3,1.09E-2,null,1.8918542137321626E-2]
[null,"HPS0010","High Pressure Sodium 50",null,null,null,null,null,null,0.13789999999999999,null,4,4.3584905660377362E-3,1.09E-2,"These PE cells are for D2 type cells that are required for the smaller lanterns.",2.8820712409507329E-2]
[null,"HPS0010-TA","High Pressure Sodium 50 Twin Arc",null,null,null,null,null,null,1.9199999999999998E-2,null,4,4.3584905660377362E-3,1.09E-2,"These PE cells are for D2 type cells that are required for the smaller lanterns.",7.0295897284533638E-3]
[null,"HPS0020","High Pressure Sodium 70",null,null,null,null,null,null,0.13200000000000001,null,4,4.3584905660377362E-3,1.09E-2,"These PE cells are for D2 type cells that are required for the smaller lanterns.",6.4296376650214412E-2]
[null,"HPS0090","High Pressure Sodium 150",null,null,null,null,null,null,4.1200000000000001E-2,null,4,4.3584905660377362E-3,1.09E-2,"These are for Nema based PE cells.",1.4640172871929267E-2]
[null,"HPS0110","High Pressure Sodium 250",null,null,null,null,null,null,4.2099999999999999E-2,null,4,4.3584905660377362E-3,1.09E-2,"These are for Nema based PE cells.",2.0579447718655195E-2]
[null,"HPS0170","High Pressure Sodium 400",null,null,null,null,null,null,3.8300000000000001E-2,null,4,4.3584905660377362E-3,1.09E-2,"These are for Nema based PE cells.",2.2889115641661503E-2]
[null,"HPS0170-TA","High Pressure Sodium 400 Twin Arc",null,null,null,null,null,null,1.17E-2,null,4,4.3584905660377362E-3,1.09E-2,"These are for Nema based PE cells.",2.2889115641661503E-2]
[null,"HPS0020-TA","High Pressure Sodium 70 Twin Arc",null,null,null,null,null,null,1.72E-2,null,4,4.3584905660377362E-3,1.09E-2,"These PE cells are for D2 type cells that are required for the smaller lanterns.",2.6670530135053397E-2]
[null,"HPS0090-TA","High Pressure Sodium 150 Twin Arc",null,null,null,null,null,null,1.534725242859214E-2,null,4,4.3584905660377362E-3,1.09E-2,"These are for Nema based PE cells.",1.534725242859214E-2]
[null,"HPS0110-TA","High Pressure Sodium 250 Twin Arc",null,null,null,null,null,null,1.9400000000000001E-2,null,4,4.3584905660377362E-3,1.09E-2,"These are for Nema based PE cells.",1.6742457194827788E-2]
[null,"HPS0200-TA","High Pressure Sodium 4x400 Twin Arc",null,null,null,null,null,null,2.2889115641661503E-2,null,4,4.3584905660377362E-3,1.09E-2,"These are for Nema based PE cells.",2.2889115641661503E-2]
[null,"MVA0010","Mercury Vapour 50",null,null,null,null,null,null,8.8800000000000004E-2,null,4,4.3584905660377362E-3,1.09E-2,"These PE cells are for D2 type cells that are required for the smaller lanterns",3.3738587983516574E-2]
[null,"MVA0020","Mercury Vapour 80",null,null,null,null,null,null,5.45E-2,null,4,4.3584905660377362E-3,1.09E-2,"These PE cells are for D2 type cells that are required for the smaller lanterns.",1.6810435805431709E-2]
[null,"MVA0080","Mercury Vapour 125",null,null,null,null,null,null,7.5800000000000006E-2,null,4,4.3584905660377362E-3,1.09E-2,"These are for Nema based PE cells.",2.137366045029062E-2]
[null,"MVA0190","Mercury Vapour 250",null,null,null,null,null,null,0.1037,null,4,4.3584905660377362E-3,1.09E-2,"These are for Nema based PE cells.",1.4988671764372697E-2]
[null,"MVA0220","Mercury Vapour 400",null,null,null,null,null,null,0.1255,null,4,4.3584905660377362E-3,1.09E-2,"These are for Nema based PE cells.",5.7628022953211599E-3]
[null,"MVA0230","Mercury Vapour 2x400",null,null,null,null,null,null,5.7628022953211599E-3,null,4,4.3584905660377362E-3,1.09E-2,"These are for Nema based PE cells.",5.7628022953211599E-3]
[null,"MHR0060","Metal Hallide (Reactor Control Gear) 250",null,null,null,null,null,null,9.5000000000000001E-2,null,4,4.3584905660377362E-3,1.09E-2,"These are for Button type PE cells that are used for all flood lighting. Same is for 1000w flood light below",2.410847920869395E-2]
[null,"MHR0070","Metal Hallide (Reactor Control Gear) 400",null,null,null,null,null,null,9.5000000000000001E-2,null,4,4.3584905660377362E-3,1.09E-2,null,2.410847920869395E-2]
[null,"INC0030","Incandescent 60",null,null,null,null,null,null,2.4994096812278623E-2,null,4,4.3584905660377362E-3,1.09E-2,"No Ballast or igniter nor PE cell are required for this installation. All of these installs will be on control wires so no PE cell required.",2.4994096812278623E-2]
[null,"MHR0100","Metal Hallide (Reactor Control Gear) 1000",null,null,null,null,null,null,0.28889999999999999,null,4,4.3584905660377362E-3,1.09E-2,"Cost of PE cells are the same as for the other flood lights ie $25.42. We don't have a cost for the ballasts as they aren’t in the cat inventory. We may have purched these some time but not in any number so wasn't added to the inventory. Have procurred a price for the 1000w lanterns from manufacture",2.410847920869395E-2]
[null,"HPS0210","High Pressure Sodium 600 (Internal Ignitor)",null,null,null,null,null,null,1.6742457194827788E-2,null,4,4.3584905660377362E-3,1.09E-2,"These are for Nema based PE cells.",1.6742457194827788E-2]
[null,"FLU0350","Compact Fluorescent 1x42",null,null,null,null,null,null,3.7900000000000003E-2,null,4,4.3584905660377362E-3,1.09E-2,"D2 PE cell",2.1445743282171238E-2]
[null,"FLU0355","Compact Fluorescent 1x32",null,null,null,null,null,null,3.7900000000000003E-2,null,4,4.3584905660377362E-3,1.09E-2,"D2 PE cell",2.1445743282171238E-2]
[null,"FLU0360","T5 2x14W",null,null,null,null,null,null,0.05,null,4,4.3584905660377362E-3,1.09E-2,"D2 PE cell",1.8918542137321626E-2]
[null,"FLU0370","T5 2x24W",null,null,null,null,null,null,0.05,null,4,4.3584905660377362E-3,1.09E-2,"D2 PE cell",1.8918542137321626E-2]
[null,"LPS0030","Low Pressure Sodium 55",null,null,null,null,null,null,0.08,null,4,4.3584905660377362E-3,1.09E-2,"These are for Nema based PE cells.",6.6778121254179538E-3]
[null,"LPS0040","Low Pressure Sodium 90/100",null,null,null,null,null,null,0.08,null,4,4.3584905660377362E-3,1.09E-2,"These are for Nema based PE cells.",3.0465441388100811E-2]
[null,"LPS0050","Low Pressure Sodium 135",null,null,null,null,null,null,0.08,null,4,4.3584905660377362E-3,1.09E-2,"These are for Nema based PE cells.The lamp cost is a weighted average from the field service centres of Grafton, Wagga Wagga and Dubbo.",6.6778121254179538E-3]
[]
[]
[]
[null,"Mapping Code",null,"Inspection Cost"]
["Support","WOOD POLE",null,9.8286273635046726]
["Support","SUSPENDED",null,19.657254727009345]
["Support","STEEL POLE",null,8.4756314885046731]
["Support","R/BOUT COLUMN",null,8.4756314885046731]
["Support","SHARED OR NO POLE",null,0]
["Support","NO CAPITAL",null,0]
[]
[]
[]
[]
[]
[null,"Other Maintenance"]
[]
[]
[]
[null,"Description"]
[null,"This section looked through a document supplied by Sam Peake, Thu 14/09/2017 1:45 PM, titled \"2017.06.30 Usage Summary.xlsx\"\nIt filters by locations 1GRAF, 1WAGG, 2WAGG.  It then filters for the 2017 financial year dates, and looks only at tasks under “INV Street Light”, “INV Poles”, “INV POLE MAINT”.\n\nPrices were taken from within the \"2017.06.30 Usage Summary.xlsx\" document.  \nCPI was added to get the prices from 16/17 to 17/18 $."]
[]
[]
[]
[]
[null,"Item ID","Description","Average of Standard Price","In $ 17/18","Count of Items Used","Sum Of Costs"]
[null,132213,"Pole Steel 21.0m x 40kN Tapered Multisided",null,null,null,12713.843999999999]
[null,132211,"Pole Steel 21.0m x 30kN Tapered Multisided",null,null,null,11545.578]
[null,500966,"Lantern 70W HPS B Nostalgia With PE Cell & Lamp",null,null,null,10110.104399999998]
[null,132264,"Pole Steel 18.0m x 24kN Straight Round",null,null,null,6374.3129999999992]
[null,132206,"Pole Steel 15.5m x 12kN Straight Round Pin Pole",null,null,null,4875.6179999999995]
[null,132199,"xxxx Pole Steel 14.0m x 16kN Urban Sub Pole",null,null,null,4053.1259999999997]
[null,132201,"xxxx Pole Steel 14.0m x 16/8kN Recloser Pole",null,null,null,4053.1259999999997]
[null,132196,"Pole Steel 12.5m x 16/8kN Rural Sub Pole",null,null,null,3402.4979999999996]
[null,132195,"xxxx Pole Steel 12.5m x 16/8kN Urban Sub Pole",null,null,null,3402.4979999999996]
[null,132190,"Pole Steel 12.5m x 12/6kN Straight Round Pin Pole",null,null,null,3140.6099999999997]
[null,132192,"Pole Steel 12.5m x 12kN Recloser Pole",null,null,null,3140.6099999999997]
[null,132207,"xxxx Pole Steel 15.5m x 24kN Straight Round Pin Pole",null,null,null,3129.3569999999995]
[null,500972,"Lantern 70W HPS Kensington Heritage",null,null,null,2937.5854199999994]
[null,500970,"Lantern 42W Compact Fluo Kensington Heritage",null,null,null,2926.7825399999997]
[null,130975,"Anchor Base 4 Fin 17.0kNM 350mm",null,null,null,2246.5079999999998]
[null,130760,"Column Flinders Heritage Al C/W Bollard Base - L/Rest",null,null,null,2240.37]
[null,130991,"Anchor Base 4 Fin 32kNM 350mm",null,null,null,2183.0819999999999]
[null,132198,"Pole Steel 12.5m x 24/12kN Pin Pole",null,null,null,2176.944]
[null,130990,"xxxx Anchor Base 4 Fin 24.7kNM 350mm",null,null,null,2144.2079999999996]
[null,132200,"Pole Steel 14.0m x 16kN Straight Round Pin Pole",null,null,null,2026.5629999999999]
[null,131067,"Column 7.5m x 1.5m Single With Arm Impact Absorbing Gal",null,null,null,1887.4349999999999]
[null,130950,"Anchor Base 3 Fin 6.0kNM 210mm",null,null,null,1822.9859999999999]
[null,125580,"Pole Timber 14.0m x 8kN Pre-Drilled CCA",null,null,null,1775.9279999999999]
[null,125370,"Pole Timber 12.5m x 6kN Pre-Drilled CCA",null,null,null,1761.606]
[null,132194,"Pole Steel 12.5m x 16kN Straight Round Pin Pole",null,null,null,1701.2489999999998]
[null,130940,"Anchor 3A Ragbolt Cage Assembly",null,null,null,1635.7769999999996]
[null,125860,"Pole Timber 15.5m x 12kN Undrilled CCA",null,null,null,1531.4309999999998]
[null,125550,"Pole Timber 12.5m x 8kN Pre-Drilled CCA",null,null,null,1483.35]
[null,132180,"Pole Steel 11.0m x 13.5/6.75kN Pin Pole",null,null,null,1411.7399999999998]
[null,125670,"Pole Timber 18.5m x 8kN Undrilled CCA",null,null,null,1405.6019999999999]
[null,502055,"Lantern 70W HPS Style 3 Mod R Bourke Hill Classical",null,null,null,1350.36]
[null,131070,"Column 9m x 1.5m Single O/R Tapered Round Rigid Curved",null,null,null,1283.9059199999999]
[null,500990,"Floodlight 400W HPS Sylflood Asymetric With PE Cell & Lamp",null,null,null,1276.3970999999997]
[null,500992,"Floodlight 400W Metal Halide Sylflood Asymetric",null,null,null,1227.5999999999999]
[null,131010,"Column 9m x 1.5m Single O/R Tapered Round Impact Absorbing",null,null,null,1203.0070799999999]
[null,501014,"Floodlight 250W HPS Sylflood Bi-Symetrical, PE Cell & Lamp",null,null,null,1128.4099200000001]
[null,131285,"Bracket 6000mm S/Light OR CE5",null,null,null,1125.8319599999998]
[null,125430,"Pole Timber 18.5m x 6kN Undrilled CCA",null,null,null,1113.0239999999999]
[null,125610,"Pole Timber 15.5m x 8kN Undrilled CCA",null,null,null,1047.5519999999999]
[null,817475,"Pole Treatment Termidor 2.5L",null,null,null,1034.2529999999999]
[null,500964,"Lantern 42W Compact Fluo B Nostalgia",null,null,null,1012.60632]
[null,500982,"Lantern 400W HPS Roadster & PE Cell & Lamp, No Fuse",null,null,null,1006.6319999999999]
[null,131068,"Column 7.5m x 3m Single O/R Tapered Octagonal Curved",null,null,null,998.59121999999991]
[null,125620,"Pole Timber 17.0m x 6kN Undrilled CCA",null,null,null,970.82699999999988]
[null,130938,"Anchor 2B Ragbolt Cage Assembly",null,null,null,953.43599999999992]
[null,131065,"Column 7.5m x 1.5m Single O/R Tapered Octagonal Curved",null,null,null,940.40297999999984]
[null,125250,"Pole Timber 12.5m x 4kN Pre-Drilled CCA",null,null,null,875.68799999999987]
[null,501004,"Lantern 250W HPS Roadster Aero, PE Cell & Lamp",null,null,null,837.83699999999999]
[null,500978,"Lantern 150W HPS Roadster Aero, PE Cell & Lamp",null,null,null,837.83699999999999]
[null,125340,"Pole Timber 11.0m x 6kN Undrilled CCA",null,null,null,829.98036000000002]
[null,500906,"Lantern 42W Compact Fluo Aero Urban, Lamp & PE Cell",null,null,null,828.62999999999988]
[null,125410,"Pole Timber 15.5m x 6kN Undrilled CCA",null,null,null,828.62999999999988]
[null,125790,"Pole Timber 11.0m x 12kN Undrilled CCA",null,null,null,820.44599999999991]
[null,509912,"Floodlight 250W HPS Sylflood AS Asymetric",null,null,null,818.4]
[null,500915,"Lantern 70W HPS Style 5 B Nostalgia Pole Top",null,null,null,810.21599999999989]
[null,131282,"Bracket 4500mm S/Light OR CE4",null,null,null,806.16491999999994]
[null,130936,"Anchor 1CE Ragbolt Cage Assembly",null,null,null,804.07799999999997]
[null,501016,"Floodlight 250W Metal Halide Sylflood Bi-Symetrical",null,null,null,782.59499999999991]
[null,509913,"Floodlight 250W Metal Halide Sylflood AS Asymetric",null,null,null,776.25239999999985]
[null,500974,"Lantern 150W HPS Roadster With PE Cell & Lamp, No Fuse",null,null,null,742.69799999999987]
[null,501008,"Lantern 250W HPS Roadster, PE Cell & Lamp, No Fuse",null,null,null,742.69799999999987]
[null,131150,"Column 4.5m Prestige Green",null,null,null,723.48605999999995]
[null,125400,"Pole Timber 14.0m x 6kN Pre-Drilled CCA",null,null,null,703.82399999999996]
[null,130855,"Column 4.5m Prestigious Tapered Octagonal (Style 5) Green",null,null,null,663.90653999999995]
[null,501000,"Lantern 150W HPS Roadster With PE Cell Base",null,null,null,634.79196000000002]
[null,125220,"Pole Timber 11.0m x 4kN Undrilled CCA",null,null,null,633.19607999999994]
[null,502026,"Lantern 70W HPS Urban With PE Cell & Lamp No Fuse",null,null,null,618.55695000000003]
[null,510160,"Lantern 400W HPS",null,null,null,610.73099999999999]
[null,131280,"Bracket 3000mm S/Light OR CE3",null,null,null,590.65973999999994]
[null,817470,"BD Bandage Pole Treatment Austplast",null,null,null,537.07499999999993]
[null,500944,"Lantern 42W Compact Fluo Mod R Bourke Hill Flared",null,null,null,531.87815999999987]
[null,501970,"Lantern 70W HPS Style 1 Aeroscreen",null,null,null,531.18251999999995]
[null,125260,"Pole Timber 14.0m x 4kN Pre-Drilled CCA",null,null,null,526.84499999999991]
[null,125520,"Pole Timber 11.0m x 8kN Undrilled CCA",null,null,null,526.23119999999994]
[null,500900,"Lantern 42W Compact Fluo Suburban",null,null,null,521.73]
[null,500958,"Lantern 42W Compact Fluo Nostalgia, PE Cell & Lamp",null,null,null,518.45639999999992]
[null,502025,"Lantern 70W HPS Suburban-Igniter-Cell- Lamp No Fuse",null,null,null,479.25504000000001]
[null,510165,"LED 17W Lumin Cat P4/P5 Bowl",null,null,null,460.34999999999997]
[null,131289,"Bracket 3000mm S/Light OR CE7",null,null,null,428.63699999999994]
[null,500960,"Lantern 70W HPS Nostalgia",null,null,null,392.93430000000001]
[null,131288,"Bracket 2000mm S/Light CE6",null,null,null,372.17762999999991]
[null,500910,"Lantern 70W HPS Style 2 Nostalgia",null,null,null,361.7328]
[null,500984,"Lantern 400W MH Roadster Aero",null,null,null,348.38264999999996]
[null,500136,"Lantern 400W HPS Optispan HPF w/- PE Cell Base",null,null,null,343.49270999999993]
[null,510162,"Lantern 400W HPS Aero Roadster",null,null,null,322.24499999999995]
[null,131216,"Adaptor Plate 50mm Estate S/L",null,null,null,319.26807000000002]
[null,125310,"Pole Timber 9.5m x 6kN Undrilled CCA",null,null,null,313.38581999999997]
[null,501333,"Lantern 150W HPS Style 1 Aero Optispan",null,null,null,305.45756999999998]
[null,503213,"Diffuser Suit 150, 250W Roadster Or B3000",null,null,null,297.99989999999991]
[null,510170,"LED 18W Lumin With NEMA Cell",null,null,null,291.55499999999995]
[null,125190,"Pole Timber 9.5m x 4kN Undrilled CCA",null,null,null,250.27694999999997]
[null,131300,"Bracket 3m Street Light Ext & Rise C/W 32mm Od Spigot",null,null,null,245.51999999999998]
[null,817477,"MSR-Termiticide Termidor Dry 15g",null,null,null,243.47399999999999]
[null,510185,"LED 22W Lumin Cat P3 Aero",null,null,null,239.38199999999998]
[null,817485,"Applicator Termite Duster",null,null,null,225.05999999999997]
[null,501018,"Lantern 150W HPS Roadster Twin Arc",null,null,null,221.14190999999997]
[null,817510,"Pole Treatment Rod Polesaver",null,null,null,220.96799999999996]
[null,131390,"Bracket S/Light 2m x 1.5m Rise",null,null,null,218.7174]
[null,503216,"Diffuser 250W Max Roadster Anti Glare",null,null,null,173.39849999999998]
[null,290950,"Contactor 240V 5.5kW S/L Ctrl",null,null,null,160.61099999999999]
[null,510205,"LED 25W Luminaire Cat P4/5",null,null,null,153.7569]
[null,501814,"Lantern 50W HPS Suit Twin Arc",null,null,null,144.24299999999999]
[null,290179,"Cassette SUB/URB ECO 26-42CFL",null,null,null,143.83379999999997]
[null,502860,"Diffuser Mercury Vapour Optispec 250/400W",null,null,null,142.99493999999999]
[null,131277,"Bracket 2000mm S/Light OR CE2",null,null,null,125.09244]
[null,503225,"Diffuser Sylvania Urban Glare Shield Bowl",null,null,null,110.48399999999998]
[null,131217,"Adaptor Plate 150mm Estate S/L",null,null,null,106.45338]
[null,290160,"PE Cell D2 Suit RFI Towns Special Type",null,null,null,104.34599999999999]
[null,524030,"Lamp 360W HPS Eye Type Sunlux",null,null,null,104.00841]
[null,503280,"Diffuser Suit Suburban 42W",null,null,null,101.277]
[null,500127,"Guard Wire Suburban Eco Anti-Vandal For 500900",null,null,null,99.681119999999993]
[null,503218,"Diffuser Suit Nostalgia Type Lantern",null,null,null,98.207999999999998]
[null,524000,"Lamp 220W HPS Eye Type Sunlux",null,null,null,97.184999999999988]
[null,523880,"Lamp 90W LPS Discharge Sox",null,null,null,93.092999999999989]
[null,524750,"Lamp 400W MH Tubular For Sentry Floodlight",null,null,null,91.916550000000001]
[null,524740,"Lamp 250W MH Tubular For Sentry Floodlight",null,null,null,91.916550000000001]
[null,290190,"PE Cell Suit Nightwatch Fitting",null,null,null,91.548269999999988]
[null,131201,"Adaptor Bracket St Light OR 4Way",null,null,null,88.29513]
[null,290460,"Receptacle PE Cell",null,null,null,88.233750000000001]
[null,503215,"Diffuser Roadster Aeroscreen",null,null,null,86.699249999999992]
[null,523730,"Lamp 400W HPS Tubular",null,null,null,82.863]
[null,503070,"Diffuser 80/150/250/400W Acrylic Opnab Optispan",null,null,null,78.566400000000016]
[null,131184,"Spigot Adaptor S/Light OR 45Degree",null,null,null,75.804299999999984]
[null,808750,"Plug Pole Black 16mm 19-14mm Taper 30mm Long",null,null,null,73.656000000000006]
[null,808754,"Plug Pole 16mm Blue",null,null,null,73.656000000000006]
[null,49750,"Switch 10A PE Cell External Weatherproof",null,null,null,69.001350000000002]
[null,500124,"Guard Wire 250W Sylvania B3000 Luminaire",null,null,null,68.336399999999998]
[null,523912,"Lamp 150W HPS Elliptical",null,null,null,67.599839999999986]
[null,503160,"Diffuser Maxi B2222/E Acrylic",null,null,null,65.471999999999994]
[null,131245,"Bracket Nightvision Mounting Single FloodIight",null,null,null,60.356999999999992]
[null,131275,"Bracket 500mm S/Light OR CE1",null,null,null,56.776499999999999]
[null,523762,"Lamp 400W HPS Twin Arc Tubular",null,null,null,50.126999999999995]
[null,64030005,"Guard Wire 80W Sylvania Urban Luminaire",null,null,null,48.674339999999994]
[null,290350,"Enclosure 6 Pole",null,null,null,45.820169999999997]
[null,290163,"PE Cell NEMA 8000 Series - GE LED only",null,null,null,43.375199999999992]
[null,510350,"Lamp 70W HPS Elliptical \"E\"",null,null,null,42.781859999999995]
[null,290360,"Switch Changeover Day-Off-Night",null,null,null,41.206440000000001]
[null,541415,"Choke 150W HPS",null,null,null,38.873999999999995]
[null,503234,"Shield Full Glare Sentry Nightwatch",null,null,null,38.393189999999997]
[null,500126,"Guard Mesh For Sentry Floodlight",null,null,null,35.805]
[null,290340,"PE Cell Switch Type NEMA. Ultra Long Life",null,null,null,35.293499999999995]
[null,524182,"Lamp 250W HPS Twin Arc Tubular",null,null,null,33.247499999999995]
[null,522290,"Lamp 400W V GES Elliptical",null,null,null,31.303799999999995]
[null,523610,"Lamp 210W HPS Elliptical",null,null,null,30.894599999999997]
[null,808752,"Plug Pole Black 19mm 23-18mm Taper 30mm Long",null,null,null,29.155499999999996]
[null,290165,"PE Cell Switch Type D2",null,null,null,29.155499999999996]
[null,131190,"Spigot Adaptor 40-25mm S/Light",null,null,null,27.805139999999998]
[null,523520,"xx14 Lamp 110W HPS Retrofit - Elliptical Int/Ign",null,null,null,25.534079999999999]
[null,290346,"Shade Suit Photo Elec Cell",null,null,null,23.6313]
[null,808755,"Plug Pole 16mm White",null,null,null,23.528999999999996]
[null,522260,"Lamp 250W MV Elliptical",null,null,null,23.140259999999998]
[null,523792,"Lamp 50W HPS Twin Arc Elliptical",null,null,null,21.482999999999997]
[null,540880,"Ballast 70W HPS & Capacitor",null,null,null,20.153099999999998]
[null,523670,"Lamp 250W HPS Tubular",null,null,null,19.948499999999999]
[null,523580,"Lamp 150W HPS Tubular GES",null,null,null,19.334699999999998]
[null,523820,"Lamp 70W HPS Elliptical",null,null,null,19.242629999999998]
[null,540130,"Capacitor 40 MFD 400W HPS",null,null,null,18.894809999999996]
[null,523760,"Lamp 400W HPS Elliptical",null,null,null,18.618599999999997]
[null,540850,"Ballast 50W HPS & Capacitor",null,null,null,18.270779999999998]
[null,19165253,"Lamp 250W HPS Elliptical",null,null,null,17.84112]
[null,61010055,"Plug Shorting For Nema PE Cell Base",null,null,null,16.85904]
[null,520792,"Lamp 150W HPS Twin Arc Tubular",null,null,null,15.856499999999999]
[null,522780,"Lamp 42W Compact Fluorescent",null,null,null,13.810499999999998]
[null,523822,"Lamp 70W HPS Twin Arc C/H Elliptical",null,null,null,11.764499999999998]
[null,131195,"Spigot Adaptor 50-25mm S/Light",null,null,null,11.570129999999999]
[null,290170,"PE S/Light Control D2 Base Only",null,null,null,10.680119999999999]
[null,131220,"Bracket Nightwatch Timber Mount",null,null,null,10.127699999999999]
[null,522778,"Lamp 32W Compact Fluorescent",null,null,null,9.3809099999999983]
[null,522620,"Lamp 80W MV Elliptical",null,null,null,8.4397499999999983]
[null,86010010,"Cement 20kg Bag Type A",null,null,null,8.1737699999999993]
[null,522590,"Lamp 50W Mercury Vapour ES",null,null,null,8.1635399999999994]
[null,523640,"Lamp 250W HPS Elliptical Sone",null,null,null,8.1328499999999995]
[null,523550,"Lamp 150W HPS Elliptical Deluxe",null,null,null,7.0075499999999993]
[null,523790,"Lamp 50W HPS Elliptical",null,null,null,6.3221399999999992]
[null,19175125,"Lamp 125W Mercury Vapour",null,null,null,3.5804999999999998]
[null,520550,"Lamp 25W 240V Ses Pilot Incandescent",null,null,null,3.2838299999999996]
[null,540460,"Switch 40W Starter",null,null,null,0.59333999999999987]
[null,null,null,null,null,"TOTAL:",155124.02697000001]
[]
[null,"Calculations - Materials"]
[null,"Total Cost Of Components",155124.02697000001]
[null,"Number Of Assets ",156936]
[null,"Average Per Light",0.98845406388591528]
[]
[null,"Calculations - Labour"]
[null,"Number of callouts non-PE Cell and non-Lamp related",7489.4117647058829]
[null,"Cost Per Callout (Labour)",180.96425203204416]
[null,"Total On Labour",1355315.7981599921]
[null,"$ Labour Per Asset (Averaged)",8.6361051521638892]
[]
[null,"TOTAL PER LAMP"]
[null,"Addition of materials and labour",9.6245592160498052]
[]
[]
[]
[null,"Bulk Works Additional Material Usage"]
[]
[null,"Information provided from Sam Peake email:  Wed 4/10/2017 10:57 AM"]
[]
[]
[]
[null,"Inputs"]
[null,"Total Cost Of Tasks (CPI'd 17/18 to 18/19 @ 2.3%)",310885.58753999998]
[null,"Done over 234 tasks"]
[]
[]
[]
[]
[]
[]
[]
[null,"Total:",310885.58753999998]
[null,"Number Of Assets:",156936]
[null,"Average Per Light:",1.9809705073405719]
[]
[]
[]
[]
[]
[]
[null,"Additional Pole Maintenance"]
[]
[null,"Currently not used, but left in here in case future years wish to use this feature."]
[null,"(E.g. pole remedial work)"]
[]
[null,"Type Of Work","Cost"]
[]
[]
[]
[]
[]
[]
[]
[]
[]
[]
[]
[]
[null,"Total:",0]
[]
[]
[]
[]
[]
[null,"Street Light Improvement Programs"]
[]
[null,"Values found from a combination of old and new PLAMP."]
[]
[null,"Type Of Works","Cost"]
[null,"Remove of overhead lighiting mains\n(20km line recovery / year @ $15k per km)",300000]
[null,"Choke boxes \n(50 per year, at 1 R3 & 1 ute for one hour)",4060.9427424999994]
[]
[]
[]
[]
[]
[]
[]
[]
[]
[null,"Total:",304060.94274249999]
[null,"Total Lights",156936]
[null,"Per light surcharge",1.9374837050931588]

{"sheet":"Warranty NPV","index":7,"n_rows":27,"n_cols":13,"rows_kept":27,"cut":false,"hidden":false,"merged":[[0,10,0,11],[2,0,2,1],[0,0,0,1]]}
["Warranty NPV Calculation"]
[]
["Description"]
[]
["This sheet provides NPV calculation for warranty to feed into the maitenance costs"]
[]
["Discount Rate:",6.8008013345999971E-2]
["Labour warranty (years):",3]
[null,null,"Year","Year","Year","Year","Year","Year","Year","Year","Year","Year","NPV"]
["Lamp Type","Description",1,2,3,4,5,6,7,8,9,10,"PA"]
["LED0001","LED 36W Gerard Luminaire (Cat P3)",0,0,0,0.84321640840463141,0.84321640840463141,0.84321640840463141,0.84321640840463141,0.84321640840463141,0.84321640840463141,0.84321640840463141,0.37563745072943389]
["LED0002","LED 23W Gerard Luminaire (Cat P3) - Aeroscreen",0,0,0,0.84321640840463141,0.84321640840463141,0.84321640840463141,0.84321640840463141,0.84321640840463141,0.84321640840463141,0.84321640840463141,0.37563745072943389]
["LED0003","LED 17W Gerard Luminaire (Cat P4/P5)",0,0,0,0.84321640840463141,0.84321640840463141,0.84321640840463141,0.84321640840463141,0.84321640840463141,0.84321640840463141,0.84321640840463141,0.37563745072943389]
["LED0004","LED 17W Gerard Luminaire (Cat P4/P5) - Aeroscreen",0,0,0,0.84321640840463141,0.84321640840463141,0.84321640840463141,0.84321640840463141,0.84321640840463141,0.84321640840463141,0.84321640840463141,0.37563745072943389]
["LED0005","LED 17W Gerard Luminaire - Louvred (Cat P4/P5 RRW)",0,0,0,0.84321640840463141,0.84321640840463141,0.84321640840463141,0.84321640840463141,0.84321640840463141,0.84321640840463141,0.84321640840463141,0.37563745072943389]
["LED0006","LED 25W GE Evolve Luminaire (Cat P4/P5)",0,0,0,3.6028337450016061,3.6028337450016061,3.6028337450016061,3.6028337450016061,3.6028337450016061,3.6028337450016061,3.6028337450016061,1.6049963803893987]
["LED0007","LED 35W Pecan Luminaire (Cat P3)",0,0,0,0.60798784973061193,0.60798784973061193,0.60798784973061193,0.60798784973061193,0.60798784973061193,0.60798784973061193,0.60798784973061193,0.27084744043273384]
["LED0008","LED 29W Pecan Luminaire (Cat P3) - Aeroscreen",0,0,0,0.50519838227864977,0.50519838227864977,0.50519838227864977,0.50519838227864977,0.50519838227864977,0.50519838227864977,0.50519838227864977,0.22505661718660602]
["LED0009","LED 42W Pecan Luminaire (Cat V5)",0,0,0,0.62562181379212489,0.62562181379212489,0.62562181379212489,0.62562181379212489,0.62562181379212489,0.62562181379212489,0.62562181379212489,0.27870304812762414]
["LED0010","LED 36W Pecan Luminaire (Cat V5) - Aeroscreen",0,0,0,0.62562181379212489,0.62562181379212489,0.62562181379212489,0.62562181379212489,0.62562181379212489,0.62562181379212489,0.62562181379212489,0.27870304812762414]
["LED0011","LED 105W Aldridge Luminaire (Cat V3)",0,0,0,0.62562181379212489,0.62562181379212489,0.62562181379212489,0.62562181379212489,0.62562181379212489,0.62562181379212489,0.62562181379212489,0.27870304812762414]
["LED0012","LED 198W Aldridge Luminaire (Cat V1) - Standard Dist.",0,0,0,1.2351931181242846,1.2351931181242846,1.2351931181242846,1.2351931181242846,1.2351931181242846,1.2351931181242846,1.2351931181242846,0.55025588855488194]
["LED0013","LED 198W Aldridge Luminaire (Cat V1) - Forward Dist.",0,0,0,1.2351931181242846,1.2351931181242846,1.2351931181242846,1.2351931181242846,1.2351931181242846,1.2351931181242846,1.2351931181242846,0.55025588855488194]
["LED0014","LED 298W Aldrige Luminaire (Cat V1) - Standard Dist.",0,0,0,1.2351931181242846,1.2351931181242846,1.2351931181242846,1.2351931181242846,1.2351931181242846,1.2351931181242846,1.2351931181242846,0.55025588855488194]
["LED0015","LED 100W Aldridge Luminaire - Brownfield",0,0,0,1.2351931181242846,1.2351931181242846,1.2351931181242846,1.2351931181242846,1.2351931181242846,1.2351931181242846,1.2351931181242846,0.55025588855488194]
["LED0016","LED 200W Aldridge Luminaire - Brownfield",0,0,0,1.2351931181242846,1.2351931181242846,1.2351931181242846,1.2351931181242846,1.2351931181242846,1.2351931181242846,1.2351931181242846,0.55025588855488194]
["LED0017","LED 300W Aldridge Luminaire - Brownfield",0,0,0,1.2351931181242846,1.2351931181242846,1.2351931181242846,1.2351931181242846,1.2351931181242846,1.2351931181242846,1.2351931181242846,0.55025588855488194]

{"sheet":"OPEX Calc","index":8,"n_rows":71,"n_cols":28,"rows_kept":71,"cut":false,"hidden":false,"merged":[[15,21,15,26],[15,13,15,20],[15,5,15,12]]}
[null,"Maintenance Costs"]
[]
[]
[]
[]
[]
[]
[]
[]
["Description"]
["This sheet models the typical maintenance costs associated  for both spot and bulk replacement for each lamp type."]
[]
[]
["Corporate, Divisional & Non-Network Overheads",null,null,null,0.5036142922304101]
[]
[null,null,null,null,null,"Lookup From Inputs",null,null,null,null,null,null,null,"MAINT SPOT COST PER YEAR PER STREET LIGHT",null,null,null,null,null,null,null,"Bulk Cost"]
["Type","Description","Category","Intentially Blank","Mapping Code","Lamp Cost","Starter / PE Cell Cost","Ballast / Ignitor Cost","Lamp Failure Rate","PE Cell Failure Rates","Ballast / Ignitor Failure Rate","Luminaire Failure Rate Per Year","Bulk % (expressed as a pecentage chance of failure for year)","Pole Maintenance Cost","Labour & Plant","Lamp","PE Cell Cost","Ballast/Ignitor","Standard Luminaire Charge For Additional Components & Labour","Traffic Control\n\n(Taking into account category)","Total","Contract Rate (Bulk)","Standard Materials (Lamp etc)","Additional Bulk Works Materials","Streetlight patrols","Improvement Works","Total","Total maintenace Including Corp & Div OVH"]
["Lamp","LED 36W Gerard Luminaire (Cat P3)","P",null,"LED0001",0,null,0,0,1.09E-2,0,4.6595744680851068E-3,0.125,0,3.1913642062833465,0,null,0,9.6245592160498052,0.51885199259401693,13.47622929238217,null,null,null,null,1.9374837050931588,12.080631706183732,38.427661461989643]
["Lamp","LED 23W Gerard Luminaire (Cat P3) - Aeroscreen","P",null,"LED0002",0,null,0,0,1.09E-2,0,4.6595744680851068E-3,0.125,0,3.1913642062833465,0,null,0,9.6245592160498052,0.51885199259401693,13.47622929238217,null,null,null,null,1.9374837050931588,12.080631706183732,38.427661461989643]
["Lamp","LED 17W Gerard Luminaire (Cat P4/P5)","P",null,"LED0003",0,null,0,0,1.09E-2,0,4.6595744680851068E-3,0.125,0,3.1913642062833465,0,null,0,9.6245592160498052,0.51885199259401693,13.47622929238217,null,null,null,null,1.9374837050931588,12.080631706183732,38.427661461989643]
["Lamp","LED 17W Gerard Luminaire (Cat P4/P5) - Aeroscreen","P",null,"LED0004",0,null,0,0,1.09E-2,0,4.6595744680851068E-3,0.125,0,3.1913642062833465,0,null,0,9.6245592160498052,0.51885199259401693,13.47622929238217,null,null,null,null,1.9374837050931588,12.080631706183732,38.427661461989643]
["Lamp","LED 17W Gerard Luminaire - Louvred (Cat P4/P5 RRW)","P",null,"LED0005",0,null,0,0,1.09E-2,0,4.6595744680851068E-3,0.125,0,3.1913642062833465,0,null,0,9.6245592160498052,0.51885199259401693,13.47622929238217,null,null,null,null,1.9374837050931588,12.080631706183732,38.427661461989643]
["Lamp","LED 25W GE Evolve Luminaire (Cat P4/P5)","P",null,"LED0006",0,null,0,0,1.09E-2,0,1.9909090909090908E-2,0.125,0,7.1803404725402862,0,null,0,9.6245592160498052,1.0273647419458847,17.973718307990975,null,null,null,null,1.9374837050931588,12.080631706183732,45.190150225008324]
["Lamp","LED 35W Pecan Luminaire (Cat P3)","P",null,"LED0007",0,null,0,0,1.09E-2,0,3.3597124454334375E-3,0.125,0,2.8513456373126269,0,null,0,9.6245592160498052,0.47550659121858269,13.092865322036015,null,null,null,null,1.9374837050931588,12.080631706183732,37.851229917050972]
["Lamp","LED 29W Pecan Luminaire (Cat P3) - Aeroscreen","P",null,"LED0008",0,null,0,0,1.09E-2,0,2.7917026517988316E-3,0.125,0,2.7027653466145374,0,null,0,9.6245592160498052,0.45656564820984363,12.925344088329187,null,null,null,null,1.9374837050931588,12.080631706183732,37.59934259579731]
["Lamp","LED 42W Pecan Luminaire (Cat V5)","V",null,"LED0009",0,null,0,0,1.09E-2,0,3.4571569067759485E-3,0.125,0,2.8768352090690308,0,null,0,9.6245592160498052,3.8300479151766522,16.472896217750488,null,null,null,null,1.9374837050931588,12.080631706183732,42.933492680027598]
["Lamp","LED 36W Pecan Luminaire (Cat V5) - Aeroscreen","V",null,"LED0010",0,null,0,0,1.09E-2,0,3.4571569067759485E-3,0.125,0,2.8768352090690308,0,null,0,9.6245592160498052,3.8300479151766522,16.472896217750488,null,null,null,null,1.9374837050931588,12.080631706183732,42.933492680027598]
["Lamp","LED 105W Aldridge Luminaire (Cat V3)","V",null,"LED0011",0,null,0,0,1.09E-2,0,3.4571569067759485E-3,0.125,0,2.8768352090690308,0,null,0,9.6245592160498052,3.8300479151766522,16.472896217750488,null,null,null,null,1.9374837050931588,12.080631706183732,42.933492680027598]
["Lamp","LED 198W Aldridge Luminaire (Cat V1) - Standard Dist.","V",null,"LED0012",0,null,0,0,1.09E-2,0,6.8256194483403455E-3,0.125,0,3.7579593538284479,0,null,0,9.6245592160498052,4.7286501257982048,18.252622573131458,null,null,null,null,1.9374837050931588,12.080631706183732,45.609514664237572]
["Lamp","LED 198W Aldridge Luminaire (Cat V1) - Forward Dist.","V",null,"LED0013",0,null,0,0,1.09E-2,0,6.8256194483403455E-3,0.125,0,3.7579593538284479,0,null,0,9.6245592160498052,4.7286501257982048,18.252622573131458,null,null,null,null,1.9374837050931588,12.080631706183732,45.609514664237572]
["Lamp","LED 298W Aldrige Luminaire (Cat V1) - Standard Dist.","V",null,"LED0014",0,null,0,0,1.09E-2,0,6.8256194483403455E-3,0.125,0,3.7579593538284479,0,null,0,9.6245592160498052,4.7286501257982048,18.252622573131458,null,null,null,null,1.9374837050931588,12.080631706183732,45.609514664237572]
["Lamp","LED 100W Aldridge Luminaire - Brownfield","V",null,"LED0015",0,null,0,0,1.09E-2,0,6.8256194483403455E-3,0.125,0,3.7579593538284479,0,null,0,9.6245592160498052,4.7286501257982048,18.252622573131458,null,null,null,null,1.9374837050931588,12.080631706183732,45.609514664237572]
["Lamp","LED 200W Aldridge Luminaire - Brownfield","V",null,"LED0016",0,null,0,0,1.09E-2,0,6.8256194483403455E-3,0.125,0,3.7579593538284479,0,null,0,9.6245592160498052,4.7286501257982048,18.252622573131458,null,null,null,null,1.9374837050931588,12.080631706183732,45.609514664237572]
["Lamp","LED 300W Aldridge Luminaire - Brownfield","V",null,"LED0017",0,null,0,0,1.09E-2,0,6.8256194483403455E-3,0.125,0,3.7579593538284479,0,null,0,9.6245592160498052,4.7286501257982048,18.252622573131458,null,null,null,null,1.9374837050931588,12.080631706183732,45.609514664237572]
["Lamp","Fluorescent Twin 20","P",null,"FLU0060",null,null,null,1.8918542137321626E-2,1.09E-2,4.3584905660377362E-3,0,0.25,0,6.1848211598381386,null,null,null,9.6245592160498052,1.139672653353176,17.239359870089988,null,null,null,null,1.9374837050931588,18.98174252218373,54.462567237363864]
["Lamp","Fluorescent 40","P",null,"FLU0130",null,null,null,1.8918542137321626E-2,1.09E-2,4.3584905660377362E-3,0,0.25,0,6.1848211598381386,null,null,null,9.6245592160498052,1.139672653353176,17.22825837353329,null,null,null,null,1.9374837050931588,18.835041253183729,54.225292743719322]
["Lamp","High Pressure Sodium 50","P",null,"HPS0010",null,null,null,0.13789999999999999,1.09E-2,4.3584905660377362E-3,0,0.25,0,27.716211687639909,null,null,null,9.6245592160498052,5.1072468707854357,43.603552499029981,null,null,null,null,1.9374837050931588,20.082002039683729,95.758510013029195]
["Lamp","High Pressure Sodium 50 Twin Arc","P",null,"HPS0010-TA",null,null,null,1.9199999999999998E-2,1.09E-2,4.3584905660377362E-3,0,0.25,0,6.2357549714362683,null,null,null,9.6245592160498052,1.1490581910606155,17.676229806049886,null,null,null,null,1.9374837050931588,24.262988206183728,63.060407608161505]
["Lamp","High Pressure Sodium 70","P",null,"HPS0020",null,null,null,0.13200000000000001,1.09E-2,4.3584905660377362E-3,0,0.25,0,26.64852260065085,null,null,null,9.6245592160498052,4.9105045522481454,42.331300659643162,null,null,null,null,1.9374837050931588,20.107392643933728,93.883711639449416]
["Lamp","High Pressure Sodium 150","V",null,"HPS0090",null,null,null,4.1200000000000001E-2,1.09E-2,4.3584905660377362E-3,0,0.25,0,10.216968516141241,null,null,null,9.6245592160498052,15.061388928919369,35.572128336622022,null,null,null,null,1.9374837050931588,20.397974003683728,84.157445816482451]
["Lamp","High Pressure Sodium 250","V",null,"HPS0110",null,null,null,4.2099999999999999E-2,1.09E-2,4.3584905660377362E-3,0,0.25,0,10.37983634297008,null,null,null,9.6245592160498052,15.301481249846232,36.026362696781817,null,null,null,null,1.9374837050931588,20.454397568683731,84.925278371193457]
["Lamp","High Pressure Sodium 400","V",null,"HPS0170",null,null,null,3.8300000000000001E-2,1.09E-2,4.3584905660377362E-3,0,0.25,0,9.692172185248312,null,null,null,9.6245592160498052,14.28775811704392,35.23588991667777,null,null,null,null,1.9374837050931588,26.23781298118373,92.432738273550527]
["Lamp","High Pressure Sodium 400 Twin Arc","V",null,"HPS0170-TA",null,null,null,1.17E-2,1.09E-2,4.3584905660377362E-3,0,0.25,0,4.8785230811959384,null,null,null,9.6245592160498052,7.1916961874277296,22.482703009824206,null,null,null,null,1.9374837050931588,25.532518418683729,72.196373184512382]
["Lamp","High Pressure Sodium 70 Twin Arc","P",null,"HPS0020-TA",null,null,null,1.72E-2,1.09E-2,4.3584905660377362E-3,0,0.25,0,5.8738264673721803,null,null,null,9.6245592160498052,1.0823658796920426,17.174552069105026,null,null,null,null,1.9374837050931588,21.582868868683729,58.27621205204931]
["Lamp","High Pressure Sodium 150 Twin Arc","V",null,"HPS0090-TA",null,null,null,1.534725242859214E-2,1.09E-2,4.3584905660377362E-3,0,0.25,0,5.5385453889081706,null,null,null,9.6245592160498052,8.1646709658575372,24.075987163361098,null,null,null,null,1.9374837050931588,22.99345799368373,70.774290465488065]
["Lamp","High Pressure Sodium 250 Twin Arc","V",null,"HPS0110-TA",null,null,null,1.9400000000000001E-2,1.09E-2,4.3584905660377362E-3,0,0.25,0,6.2719478218426783,null,null,null,9.6245592160498052,9.2458193775797852,26.211249342698476,null,null,null,null,1.9374837050931588,27.789461018683728,81.196239889969078]
["Lamp","Mercury Vapour 50","P",null,"MVA0010",null,null,null,8.8800000000000004E-2,1.09E-2,4.3584905660377362E-3,0,0.25,0,18.830866912866544,null,null,null,9.6245592160498052,3.469950626686964,32.537065478192112,null,null,null,null,1.9374837050931588,19.464164002933728,78.189791861374161]
["Lamp","Mercury Vapour 80","P",null,"MVA0020",null,null,null,5.45E-2,1.09E-2,4.3584905660377362E-3,0,0.25,0,12.623793068167428,null,null,null,9.6245592160498052,2.3261774867159328,24.974879845236799,null,null,null,null,1.9374837050931588,19.11433789993373,66.293177934897017]
["Lamp","Mercury Vapour 125","P",null,"MVA0080",null,null,null,7.5800000000000006E-2,1.09E-2,4.3584905660377362E-3,0,0.25,0,16.478331636449969,null,null,null,9.6245592160498052,3.0364506027912377,29.72220691641277,null,null,null,null,1.9374837050931588,19.608044093683731,74.173670458094733]
["Lamp","Mercury Vapour 250","V",null,"MVA0190",null,null,null,0.1037,1.09E-2,4.3584905660377362E-3,0,0.25,0,21.527234268144003,null,null,null,9.6245592160498052,31.734466771062674,64.118318341248624,null,null,null,null,1.9374837050931588,20.74780010668373,127.60590862442996]
["Lamp","Mercury Vapour 400","V",null,"MVA0220",null,null,null,0.1255,1.09E-2,4.3584905660377362E-3,0,0.25,0,25.472254962442562,null,null,null,9.6245592160498052,37.550036322402256,74.487660050472385,null,null,null,null,1.9374837050931588,21.498233521183728,144.32576142684917]
["Lamp","Mercury Vapour 2x400","V",null,"MVA0230",null,null,null,5.7628022953211599E-3,1.09E-2,4.3584905660377362E-3,0,0.25,0,3.8041025394023622,null,null,null,9.6245592160498052,5.6078344355188516,19.499081830796783,null,null,null,null,1.9374837050931588,21.498233521183728,61.6441493063151]
["Lamp","Metal Hallide (Reactor Control Gear) 250","V",null,"MHR0060",null,null,null,9.5000000000000001E-2,1.09E-2,4.3584905660377362E-3,0,0.25,0,19.952845275465215,null,null,null,9.6245592160498052,29.413574335436323,62.613441509947037,null,null,null,null,1.9374837050931588,27.070060564933726,134.84939549706635]
["Lamp","Metal Hallide (Reactor Control Gear) 400","V",null,"MHR0070",null,null,null,9.5000000000000001E-2,1.09E-2,4.3584905660377362E-3,0,0.25,0,19.952845275465215,null,null,null,9.6245592160498052,29.413574335436323,63.831525908227079,null,null,null,null,1.9374837050931588,30.136681322683728,141.29193940766646]
["Lamp","Incandescent 60","P",null,"INC0030",null,null,0,2.4994096812278623E-2,1.09E-2,4.3584905660377362E-3,0,0.25,0,7.2842793672715205,null,null,0,9.6245592160498052,1.3422690454126873,18.401515827320186,null,null,null,null,1.9374837050931588,18.67414308718373,55.747490637707905]
["Lamp","Metal Hallide (Reactor Control Gear) 1000","V",null,"MHR0100",null,null,null,0.28889999999999999,1.09E-2,4.3584905660377362E-3,0,0.25,0,55.041813744478574,null,null,null,9.6245592160498052,81.140131032901706,158.86505663415068,null,null,null,null,1.9374837050931588,29.200050143683729,282.77738242099002]
["Lamp","High Pressure Sodium 600 (Internal Ignitor)","V",null,"HPS0210",null,null,null,1.6742457194827788E-2,1.09E-2,4.3584905660377362E-3,0,0.25,0,5.7910275758615484,null,null,null,9.6245592160498052,8.536868688628358,26.402853618011314,null,null,null,null,1.9374837050931588,47.27421237478373,110.78188943636972]
["Lamp","Compact Fluorescent 1x42","P",null,"FLU0350",null,null,null,3.7900000000000003E-2,1.09E-2,4.3584905660377362E-3,0,0.25,0,9.6197864844354957,null,null,null,9.6245592160498052,1.7726313023567755,21.672056721683209,null,null,null,null,1.9374837050931588,19.608044093683731,62.069349570697931]
["Lamp","Compact Fluorescent 1x32","P",null,"FLU0355",null,null,null,3.7900000000000003E-2,1.09E-2,4.3584905660377362E-3,0,0.25,0,9.6197864844354957,null,null,null,9.6245592160498052,1.7726313023567755,21.871788242484104,null,null,null,null,1.9374837050931588,20.925534336433728,64.350665898856079]
["Lamp","T5 2x14W","P",null,"FLU0360",null,null,null,0.05,1.09E-2,4.3584905660377362E-3,0,0.25,0,11.809453934023228,null,null,null,9.6245592160498052,2.1761197861366433,24.196991838036613,null,null,null,null,1.9374837050931588,20.108195149183729,66.617912373925279]
["Lamp","T5 2x24W","P",null,"FLU0370",null,null,null,0.05,1.09E-2,4.3584905660377362E-3,0,0.25,0,11.809453934023228,null,null,null,9.6245592160498052,2.1761197861366433,24.64610470502905,null,null,null,null,1.9374837050931588,22.01517927418373,70.160573484966207]
["Lamp","Low Pressure Sodium 55","P",null,"LPS0030",null,null,null,0.08,1.09E-2,4.3584905660377362E-3,0,0.25,0,17.238381494984555,null,null,null,9.6245592160498052,3.1765044566652416,38.72796965582743,null,null,null,null,1.9374837050931588,44.011235956183725,124.40785208601052]
["Lamp","Low Pressure Sodium 90/100","P",null,"LPS0040",null,null,null,0.08,1.09E-2,4.3584905660377362E-3,0,0.25,0,17.238381494984555,null,null,null,9.6245592160498052,3.1765044566652416,38.763209142734979,null,null,null,null,1.9374837050931588,44.293353781183725,124.88503507593855]
["Lamp","Low Pressure Sodium 135","V",null,"LPS0050",null,null,null,0.08,1.09E-2,4.3584905660377362E-3,0,0.25,0,17.238381494984555,null,null,null,9.6245592160498052,25.412035653321933,61.0237415489254,null,null,null,null,1.9374837050931588,44.293353781183725,158.35628975454466]
["Support","WOOD POLE","",null,"WOOD POLE",0,0,0,0,0,0,0,0,9.8286273635046726,0,null,0,0,"",0,9.8286273635046726,0,0,0,null,0,0,14.778464576772519]
["Support","STEEL POLE","",null,"STEEL POLE",0,0,0,0,0,0,0,0,8.4756314885046731,0,null,0,0,"",0,8.4756314885046731,0,0,0,null,0,0,12.744080641793731]
["Support","R/BOUT COLUMN","",null,"R/BOUT COLUMN",0,0,0,0,0,0,0,0,8.4756314885046731,0,null,0,0,"",0,8.4756314885046731,0,0,0,null,0,0,12.744080641793731]
["Support","SHARED OR NO POLE","",null,"SHARED OR NO POLE",0,0,0,0,0,0,0,0,0,0,null,0,0,"",0,0,0,0,0,null,0,0,0]
["Support","SUSPENDED","",null,"SUSPENDED",0,0,0,0,0,0,0,0,19.657254727009345,0,null,0,0,"",0,19.657254727009345,0,0,0,null,0,0,29.556929153545038]
["Support","NO CAPITAL","",null,"NO CAPITAL",0,0,0,0,0,0,0,0,0,0,null,0,0,"",0,0,0,0,0,null,0,0,0]
["Traffic","Street Patrol","",null,"Street Patrol",null,null,null,null,null,null,null,null,0,null,null,null,null,null,null,null,null,null,null,9.7661872801082534,null,9.7661872801082534,14.684578774969605]

{"sheet":"Mapping & Lookups","index":9,"n_rows":415,"n_cols":29,"rows_kept":415,"cut":false,"hidden":false,"merged":[[0,23,1,28],[2,23,3,28],[0,0,1,4],[2,0,3,4],[2,15,3,20],[0,15,1,20],[0,6,3,7],[0,9,1,12],[2,9,3,12]]}
["Description Lookup Table",null,null,null,null,null,"Unused Mapping",null,null,"Construction Code Mapping",null,null,null,null,null,"CAPEX LOOKUP",null,null,null,null,null,null,null,"OPEX LOOKUP"]
[]
["This table is used to get only the description of the lamp, \nfrom the lamp code",null,null,null,null,null,null,null,null,"This table is used for lookup in the public lighting charges tab to determine if a pole maintenance charge needs to be applied ",null,null,null,null,null,"This table is used in finding the associated assembly number, \ngiven the lamp code.\nOPEX and CAPEX mapping codes are different for a given lamp type.",null,null,null,null,null,null,null,"This table find the associated OPEX mapping code given the lamp code.\nThe OPEX and CAPEX mapping codes are different for a given lamp type."]
[]
["Lamp Code","Description","Unused","Nominal Rating","Total Watts",null,"Equivalent / Replacement Construction","Capital Code",null,"Capital Code","Equivalent / Replacement Construction","Dedicated Pole Type","Number of lights",null,null,"Capital Code","Mapped to Assembly",null,"LAMP CODE","cap","Assembly",null,null,"Lamp Code","Mapping Code","Lantern Watts (Nominal)\n(N/A)","Category","Number of Lamps","Count of Lamps in WASP (as of 16-04-2014)"]
["LED0001","LED 36W Gerard Luminaire (Cat P3)",null,36,43,null,"LED 36W GERARD LUMINAIRE (CAT P3) SHARED OR NO POLE 1",3300,null,3300,"LED 36W GERARD LUMINAIRE (CAT P3)","SHARED OR NO POLE",1,null,null,1,null,null,"FLU0010-ST","0010","COMPMV80W",null,null,"FLU0350-ST","FLU0350",42,"P",1,55274]
["LED0002","LED 23W Gerard Luminaire (Cat P3) - Aeroscreen",null,23,27,null,"LED 36W GERARD LUMINAIRE (CAT P3) SHARED OR NO POLE 2",3310,null,3310,"LED 36W GERARD LUMINAIRE (CAT P3)","SHARED OR NO POLE",2,null,null,5,"COMPMV80W",null,"FLU0020-ST","0010","COMPMV80W",null,null,"HPS0020-ST","HPS0020",70,"P",1,27453]
["LED0003","LED 18W Gerard Luminaire (Cat P4/P5)",null,18,22,null,"LED 36W GERARD LUMINAIRE (CAT P3) SHARED OR NO POLE 3",3320,null,3320,"LED 36W GERARD LUMINAIRE (CAT P3)","SHARED OR NO POLE",3,null,null,10,"COMPMV80W",null,"FLU0030-ST","0010","COMPMV80W",null,null,"HPS0110-ST","HPS0110",250,"V",1,21897]
["LED0004","LED 18W Gerard Luminaire (Cat P4/P5) - Aeroscreen",null,18,22,null,"LED 36W GERARD LUMINAIRE (CAT P3) SHARED OR NO POLE 4",3330,null,3330,"LED 36W GERARD LUMINAIRE (CAT P3)","SHARED OR NO POLE",4,null,null,20,"REPMV250WHPS150W",null,"FLU0040-ST","0010","COMPMV80W",null,null,"MVA0020-ST","MVA0020",80,"P",1,20536]
["LED0005","LED 13W Gerard Luminaire (Cat P4/P5 RRW)",null,13,17,null,"LED 36W GERARD LUMINAIRE (CAT P3) WOOD POLE 1",3340,null,3340,"LED 36W GERARD LUMINAIRE (CAT P3)","WOOD POLE",1,null,null,30,"REPMV400WHPS250W",null,"FLU0050-ST","0010","COMPMV80W",null,null,"HPS0090-ST","HPS0090",150,"V",1,9205]
["LED0006","LED 25W GE Evolve Luminaire (Cat P4/P5)",null,25,25,null,"LED 36W GERARD LUMINAIRE (CAT P3) WOOD POLE 2",3350,null,3350,"LED 36W GERARD LUMINAIRE (CAT P3)","WOOD POLE",2,null,null,40,"COMPHPS70W",null,"FLU0060-ST","0010","COMPMV80W",null,null,"MVA0010-ST","MVA0010",50,"P",1,2265]
["LED0007","LED 35W Pecan Luminaire (Cat P3)",null,35,35,null,"LED 36W GERARD LUMINAIRE (CAT P3) WOOD POLE 3",3360,null,3360,"LED 36W GERARD LUMINAIRE (CAT P3)","WOOD POLE",3,null,null,50,"COMPHPS150W",null,"FLU0070-ST","0010","COMPMV80W",null,null,"HPS0010-TA","HPS0010-TA",50,"P",1,2084]
["LED0008","LED 29W Pecan Luminaire (Cat P3) - Aeroscreen",null,29,29,null,"LED 36W GERARD LUMINAIRE (CAT P3) WOOD POLE 4",3370,null,3370,"LED 36W GERARD LUMINAIRE (CAT P3)","WOOD POLE",4,null,null,60,"COMPHPS250W",null,"FLU0080-ST","0010","COMPMV80W",null,null,"HPS0170-ST","HPS0170",400,"V",1,2001]
["LED0009","LED 42W Pecan Luminaire (Cat V5)",null,42,null,null,"LED 36W GERARD LUMINAIRE (CAT P3) STEEL POLE 1",3380,null,3380,"LED 36W GERARD LUMINAIRE (CAT P3)","STEEL POLE",1,null,null,70,"7206.05.21",null,"FLU0090-ST","0010","COMPMV80W",null,null,"FLU0130-ST","FLU0130",40,"P",1,1502]
["LED0010","LED 36W Pecan Luminaire (Cat V5) - Aeroscreen",null,36,null,null,"LED 36W GERARD LUMINAIRE (CAT P3) STEEL POLE 2",3390,null,3390,"LED 36W GERARD LUMINAIRE (CAT P3)","STEEL POLE",2,null,null,80,"7107.09.30",null,"FLU0100-ST","0010","COMPMV80W",null,null,"HPS0020-TA","HPS0020-TA",70,"P",1,1156]
["LED0011","LED 105W Aldridge Luminaire (Cat V3)",null,105,null,null,"LED 36W GERARD LUMINAIRE (CAT P3) STEEL POLE 3",3400,null,3400,"LED 36W GERARD LUMINAIRE (CAT P3)","STEEL POLE",3,null,null,90,"7107.09.30",null,"FLU0110-ST","0010","COMPMV80W",null,null,"MVA0220-ST","MVA0220",400,"V",2,872]
["LED0012","LED 198W Aldridge Luminaire (Cat V1) - Standard Dist.",null,198,null,null,"LED 36W GERARD LUMINAIRE (CAT P3) STEEL POLE 4",3410,null,3410,"LED 36W GERARD LUMINAIRE (CAT P3)","STEEL POLE",4,null,null,100,"7206.05.3",null,"FLU0120-ST","0010","COMPMV80W",null,null,"HPS0010-ST","HPS0010",50,"P",1,812]
["LED0013","LED 198W Aldridge Luminaire (Cat V1) - Forward Dist.",null,198,null,null,"LED 23W GERARD LUMINAIRE (CAT P3) - AEROSCREEN SHARED OR NO POLE 1",3420,null,3420,"LED 23W GERARD LUMINAIRE (CAT P3) - AEROSCREEN","SHARED OR NO POLE",1,null,null,110,"BULKHEAD",null,"FLU0130-ST","0010","COMPMV80W",null,null,"MVA0190-ST","MVA0190",250,"V",1,770]
["LED0014","LED 298W Aldrige Luminaire (Cat V1) - Standard Dist.",null,298,null,null,"LED 23W GERARD LUMINAIRE (CAT P3) - AEROSCREEN SHARED OR NO POLE 2",3430,null,3430,"LED 23W GERARD LUMINAIRE (CAT P3) - AEROSCREEN","SHARED OR NO POLE",2,null,null,120,"7107.09.50",null,"FLU0140-ST","0010","COMPMV80W",null,null,"MVA0080-ST","MVA0080",125,"P",1,646]
["FLU0010","Fluorescent 9",null,9,9,null,"LED 23W GERARD LUMINAIRE (CAT P3) - AEROSCREEN SHARED OR NO POLE 3",3440,null,3440,"LED 23W GERARD LUMINAIRE (CAT P3) - AEROSCREEN","SHARED OR NO POLE",3,null,null,130,"7107.09.30",null,"FLU0150-ST","0010","COMPMV80W",null,null,"HPS0110-TA","HPS0110-TA",250,"V",1,642]
["FLU0020","Fluorescent 11",null,11,11,null,"LED 23W GERARD LUMINAIRE (CAT P3) - AEROSCREEN SHARED OR NO POLE 4",3450,null,3450,"LED 23W GERARD LUMINAIRE (CAT P3) - AEROSCREEN","SHARED OR NO POLE",4,null,null,140,"7107.09.30",null,"FLU0160-ST","0010","COMPMV80W",null,null,"LPS0030-ST","LPS0030",55,"P",1,413]
["FLU0030","Fluorescent 13",null,13,13,null,"LED 23W GERARD LUMINAIRE (CAT P3) - AEROSCREEN WOOD POLE 1",3460,null,3460,"LED 23W GERARD LUMINAIRE (CAT P3) - AEROSCREEN","WOOD POLE",1,null,null,150,"7206.05.3",null,"FLU0170-ST","0010","COMPMV80W",null,null,"FLU0050-ST","FLU0060",20,"P",1,373]
["FLU0040","Fluorescent 15",null,15,15,null,"LED 23W GERARD LUMINAIRE (CAT P3) - AEROSCREEN WOOD POLE 2",3470,null,3470,"LED 23W GERARD LUMINAIRE (CAT P3) - AEROSCREEN","WOOD POLE",2,null,null,170,"7107.09.30",null,"FLU0180-ST","0010","COMPMV80W",null,null,"FLU0060-ST","FLU0060","Twin 20","P",2,342]
["FLU0050","Fluorescent 20",null,20,29,null,"LED 23W GERARD LUMINAIRE (CAT P3) - AEROSCREEN WOOD POLE 3",3480,null,3480,"LED 23W GERARD LUMINAIRE (CAT P3) - AEROSCREEN","WOOD POLE",3,null,null,180,"7206.05.3",null,"FLU0190-ST","0010","COMPMV80W",null,null,"LPS0040-ST","LPS0040","90/100","P",1,275]
["FLU0060","Fluorescent Twin 20",null,"Twin 20",50,null,"LED 23W GERARD LUMINAIRE (CAT P3) - AEROSCREEN WOOD POLE 4",3490,null,3490,"LED 23W GERARD LUMINAIRE (CAT P3) - AEROSCREEN","WOOD POLE",4,null,null,190,"HPS600HM",null,"FLU0200-ST","0010","COMPMV80W",null,null,"HPS0090-TA","HPS0090-TA",150,"V",1,222]
["FLU0070","Fluorescent 3x20",null,"3x20",77,null,"LED 23W GERARD LUMINAIRE (CAT P3) - AEROSCREEN STEEL POLE 1",3500,null,3500,"LED 23W GERARD LUMINAIRE (CAT P3) - AEROSCREEN","STEEL POLE",1,null,null,200,"REPMV250WHPS150W",null,"FLU0210-ST","0010","COMPMV80W",null,null,"HPS0160-ST","HPS0170",360,"V",1,189]
["FLU0080","Fluorescent 4x20",null,"4x20",100,null,"LED 23W GERARD LUMINAIRE (CAT P3) - AEROSCREEN STEEL POLE 2",3510,null,3510,"LED 23W GERARD LUMINAIRE (CAT P3) - AEROSCREEN","STEEL POLE",2,null,null,210,"REPMV400WHPS250W",null,"FLU0220-ST","0010","COMPMV80W",null,null,"MHR0060-ST","MHR0060",250,"V",1,180]
["FLU0090","Fluorescent 6x20",null,"6x20",150,null,"LED 23W GERARD LUMINAIRE (CAT P3) - AEROSCREEN STEEL POLE 3",3520,null,3520,"LED 23W GERARD LUMINAIRE (CAT P3) - AEROSCREEN","STEEL POLE",3,null,null,220,"COMPHPS150W",null,"FLU0230-ST","0010","COMPMV80W",null,null,"LPS0060-ST","LPS0050",150,"V",1,177]
["FLU0100","Fluorescent 26",null,26,32,null,"LED 23W GERARD LUMINAIRE (CAT P3) - AEROSCREEN STEEL POLE 4",3530,null,3530,"LED 23W GERARD LUMINAIRE (CAT P3) - AEROSCREEN","STEEL POLE",4,null,null,230,"COMPHPS250W",null,"FLU0240-ST","0010","COMPMV80W",null,null,"MHR0030-ST","MHR0060",150,"V",1,135]
["FLU0110","Fluorescent 2x26",null,"2x26",64,null,"LED 18W GERARD LUMINAIRE (CAT P4/P5) SHARED OR NO POLE 1",3540,null,3540,"LED 18W GERARD LUMINAIRE (CAT P4/P5)","SHARED OR NO POLE",1,null,null,240,"7206.05.21",null,"FLU0250-ST","0010","COMPMV80W",null,null,"FLU0100-ST","FLU0060",26,"P",1,130]
["FLU0120","Fluorescent 6x36",null,"6x36",192,null,"LED 18W GERARD LUMINAIRE (CAT P4/P5) SHARED OR NO POLE 2",3550,null,3550,"LED 18W GERARD LUMINAIRE (CAT P4/P5)","SHARED OR NO POLE",2,null,null,250,"HPS600HM",null,"FLU0260-ST","0010","COMPMV80W",null,null,"MHR0070-ST","MHR0070",400,"V",1,129]
["FLU0130","Fluorescent 40",null,40,50,null,"LED 18W GERARD LUMINAIRE (CAT P4/P5) SHARED OR NO POLE 3",3560,null,3560,"LED 18W GERARD LUMINAIRE (CAT P4/P5)","SHARED OR NO POLE",3,null,null,260,"7206.05.26",null,"FLU0270-ST","0010","COMPMV80W",null,null,"MHR0010-ST","MHR0060",70,"P",1,113]
["FLU0140","Fluorescent 2x40",null,"2x40",100,null,"LED 18W GERARD LUMINAIRE (CAT P4/P5) SHARED OR NO POLE 4",3570,null,3570,"LED 18W GERARD LUMINAIRE (CAT P4/P5)","SHARED OR NO POLE",4,null,null,270,"7206.05.26",null,"FLU0280-ST","0010","COMPMV80W",null,null,"HPS0070-ST","HPS0020",100,"P",1,110]
["FLU0150","Fluorescent 3x40",null,"3x40",150,null,"LED 18W GERARD LUMINAIRE (CAT P4/P5) WOOD POLE 1",3580,null,3580,"LED 18W GERARD LUMINAIRE (CAT P4/P5)","WOOD POLE",1,null,null,280,"7206.05.26",null,"FLU0290-ST","0010","COMPMV80W",null,null,"INC0030-ST","INC0030",60,"P",1,108]
["FLU0160","Fluorescent 4x40",null,"4x40",200,null,"LED 18W GERARD LUMINAIRE (CAT P4/P5) WOOD POLE 2",3590,null,3590,"LED 18W GERARD LUMINAIRE (CAT P4/P5)","WOOD POLE",2,null,null,290,"REPMV250WHPS150W",null,"FLU0300-ST","0010","COMPMV80W",null,null,"HPS0140-ST","HPS0110","310 (Retrofit)","V",1,102]
["FLU0170","Fluorescent 6x40",null,"6x40",300,null,"LED 18W GERARD LUMINAIRE (CAT P4/P5) WOOD POLE 3",3600,null,3600,"LED 18W GERARD LUMINAIRE (CAT P4/P5)","WOOD POLE",3,null,null,300,"REPMV400WHPS250W",null,"FLU0310-ST","0010","COMPMV80W",null,null,"HPS0100-ST","HPS0110",220,"V",1,93]
["FLU0180","Fluorescent 58",null,58,72,null,"LED 18W GERARD LUMINAIRE (CAT P4/P5) WOOD POLE 4",3610,null,3610,"LED 18W GERARD LUMINAIRE (CAT P4/P5)","WOOD POLE",4,null,null,310,"COMPHPS150W",null,"FLU0320-ST","0010","COMPMV80W",null,null,"FLU0140-ST","FLU0130","2x40","P",2,72]
["FLU0190","Fluorescent 2x58",null,"2x58",144,null,"LED 18W GERARD LUMINAIRE (CAT P4/P5) STEEL POLE 1",3620,null,3620,"LED 18W GERARD LUMINAIRE (CAT P4/P5)","STEEL POLE",1,null,null,320,"COMPHPS250W",null,"HPS0010-ST","0040","COMPHPS70W",null,null,"HPS0080-ST","HPS0090",120,"P",1,65]
["FLU0200","Fluorescent 4x58",null,"4x58",288,null,"LED 18W GERARD LUMINAIRE (CAT P4/P5) STEEL POLE 2",3630,null,3630,"LED 18W GERARD LUMINAIRE (CAT P4/P5)","STEEL POLE",2,null,null,330,"7206.05.21",null,"HPS0010-TA","0090","7107.09.30",null,null,"FLU0010-ST","FLU0060",9,"P",1,48]
["FLU0210","Fluorescent 5x58",null,"5x58",360,null,"LED 18W GERARD LUMINAIRE (CAT P4/P5) STEEL POLE 3",3640,null,3640,"LED 18W GERARD LUMINAIRE (CAT P4/P5)","STEEL POLE",3,null,null,340,"HPS600HM",null,"HPS0020-ST","0040","COMPHPS70W",null,null,"HPS0180-ST","HPS0170","2x400","V",2,45]
["FLU0220","Fluorescent 65",null,65,81,null,"LED 18W GERARD LUMINAIRE (CAT P4/P5) STEEL POLE 4",3650,null,3650,"LED 18W GERARD LUMINAIRE (CAT P4/P5)","STEEL POLE",4,null,null,350,"COMPHPS70W",null,"HPS0020-TA","0090","7107.09.30",null,null,"LPS0050-ST","LPS0050",135,"P",1,45]
["FLU0230","Fluorescent 5x65",null,"5x65",405,null,"LED 18W GERARD LUMINAIRE (CAT P4/P5) - AEROSCREEN SHARED OR NO POLE 1",3660,null,3660,"LED 18W GERARD LUMINAIRE (CAT P4/P5) - AEROSCREEN","SHARED OR NO POLE",1,null,null,360,"COMPHPS70W",null,"HPS0030-ST","0040","COMPHPS70W",null,null,"FLU0040-ST","FLU0060",15,"P",1,43]
["FLU0240","Fluorescent 80",null,80,90,null,"LED 18W GERARD LUMINAIRE (CAT P4/P5) - AEROSCREEN SHARED OR NO POLE 2",3670,null,3670,"LED 18W GERARD LUMINAIRE (CAT P4/P5) - AEROSCREEN","SHARED OR NO POLE",2,null,null,370,"REPMV250WHPS150W",null,"HPS0030-TA","0090","7107.09.30",null,null,"HPS0170-TA","HPS0170-TA",400,"V",1,33]
["FLU0250","Fluorescent 2x80",null,"2x80",180,null,"LED 18W GERARD LUMINAIRE (CAT P4/P5) - AEROSCREEN SHARED OR NO POLE 3",3680,null,3680,"LED 18W GERARD LUMINAIRE (CAT P4/P5) - AEROSCREEN","SHARED OR NO POLE",3,null,null,380,"REPMV400WHPS250W",null,"HPS0040-ST","0040","COMPHPS70W",null,null,"INC0040-ST","INC0030",75,"P",1,32]
["FLU0260","Fluorescent 3x80",null,"3x80",270,null,"LED 18W GERARD LUMINAIRE (CAT P4/P5) - AEROSCREEN SHARED OR NO POLE 4",3690,null,3690,"LED 18W GERARD LUMINAIRE (CAT P4/P5) - AEROSCREEN","SHARED OR NO POLE",4,null,null,390,"COMPHPS250W",null,"HPS0040-TA","0090","7107.09.30",null,null,"INC0050-ST","INC0030",100,"P",1,30]
["FLU0270","Fluorescent 4x80",null,"4x80",360,null,"LED 18W GERARD LUMINAIRE (CAT P4/P5) - AEROSCREEN WOOD POLE 1",3700,null,3700,"LED 18W GERARD LUMINAIRE (CAT P4/P5) - AEROSCREEN","WOOD POLE",1,null,null,400,"7206.05.21",null,"HPS0050-ST","0040","COMPHPS70W",null,null,"MHR0050-ST","MHR0060",175,"V",1,29]
["FLU0280","Fluorescent 5x80",null,"5x80",450,null,"LED 18W GERARD LUMINAIRE (CAT P4/P5) - AEROSCREEN WOOD POLE 2",3710,null,3710,"LED 18W GERARD LUMINAIRE (CAT P4/P5) - AEROSCREEN","WOOD POLE",2,null,null,410,"REPMV250WHPS150W",null,"HPS0050-TA","0090","7107.09.30",null,null,"HPS0250-ST","MHR0100",1000,"V",1,28]
["FLU0290","Fluorescent 6x80",null,"6x80",540,null,"LED 18W GERARD LUMINAIRE (CAT P4/P5) - AEROSCREEN WOOD POLE 3",3720,null,3720,"LED 18W GERARD LUMINAIRE (CAT P4/P5) - AEROSCREEN","WOOD POLE",3,null,null,420,"REPMV400WHPS250W",null,"HPS0060-ST","0040","COMPHPS70W",null,null,"FLU0080-ST","FLU0060","4x20","P",4,26]
["FLU0300","Fluorescent 2x125",null,"2x125",280,null,"LED 18W GERARD LUMINAIRE (CAT P4/P5) - AEROSCREEN WOOD POLE 4",3730,null,3730,"LED 18W GERARD LUMINAIRE (CAT P4/P5) - AEROSCREEN","WOOD POLE",4,null,null,430,"COMPHPS250W",null,"HPS0060-TA","0090","7107.09.30",null,null,"INC0080-ST","INC0030",150,"V",1,24]
["FLU0310","Fluorescent 176",null,176,200,null,"LED 18W GERARD LUMINAIRE (CAT P4/P5) - AEROSCREEN STEEL POLE 1",3740,null,3740,"LED 18W GERARD LUMINAIRE (CAT P4/P5) - AEROSCREEN","STEEL POLE",1,null,null,440,"7206.05.21",null,"HPS0070-ST","0040","COMPHPS70W",null,null,"FLU0240-ST","FLU0130",80,"P",1,21]
["FLU0320","Fluorescent 236",null,236,275,null,"LED 18W GERARD LUMINAIRE (CAT P4/P5) - AEROSCREEN STEEL POLE 2",3750,null,3750,"LED 18W GERARD LUMINAIRE (CAT P4/P5) - AEROSCREEN","STEEL POLE",2,null,null,450,"REPMV250WHPS150W",null,"HPS0070-TA","0090","7107.09.30",null,null,"FLU0160-ST","FLU0130","4x40","P",4,13]
["HPS0010","High Pressure Sodium 50",null,50,60,null,"LED 18W GERARD LUMINAIRE (CAT P4/P5) - AEROSCREEN STEEL POLE 3",3760,null,3760,"LED 18W GERARD LUMINAIRE (CAT P4/P5) - AEROSCREEN","STEEL POLE",3,null,null,460,"REPMV400WHPS250W",null,"HPS0080-ST","0050","COMPHPS150W",null,null,"HPS0120-ST","HPS0110","2x250","V",2,11]
["HPS0020","High Pressure Sodium 70",null,70,86,null,"LED 18W GERARD LUMINAIRE (CAT P4/P5) - AEROSCREEN STEEL POLE 4",3770,null,3770,"LED 18W GERARD LUMINAIRE (CAT P4/P5) - AEROSCREEN","STEEL POLE",4,null,null,470,"COMPHPS250W",null,"HPS0090-ST","0050","COMPHPS150W",null,null,"MHR0100-ST","MHR0100",1000,"V",1,9]
["HPS0030","High Pressure Sodium 2x70",null,"2x70",172,null,"LED 13W GERARD LUMINAIRE (CAT P4/P5 RRW) SHARED OR NO POLE 1",3780,null,3780,"LED 13W GERARD LUMINAIRE (CAT P4/P5 RRW)","SHARED OR NO POLE",1,null,null,480,"7206.05.21",null,"HPS0090-TA","0050","COMPHPS150W",null,null,"INC0010-ST","INC0030",30,"P",1,8]
["HPS0040","High Pressure Sodium 3x70",null,"3x70",258,null,"LED 13W GERARD LUMINAIRE (CAT P4/P5 RRW) SHARED OR NO POLE 2",3790,null,3790,"LED 13W GERARD LUMINAIRE (CAT P4/P5 RRW)","SHARED OR NO POLE",2,null,null,490,"REPMV250WHPS150W",null,"HPS0100-ST","0060","COMPHPS250W",null,null,"MHR0020-ST","MHR0060",100,"P",1,8]
["HPS0050","High Pressure Sodium 4x70",null,"4x70",344,null,"LED 13W GERARD LUMINAIRE (CAT P4/P5 RRW) SHARED OR NO POLE 3",3800,null,3800,"LED 13W GERARD LUMINAIRE (CAT P4/P5 RRW)","SHARED OR NO POLE",3,null,null,500,"REPMV400WHPS250W",null,"HPS0100-ST","0610","7206.05.18",null,null,"MVA0290-ST","HPS0210",1000,"V",1,8]
["HPS0060","High Pressure Sodium 8x70",null,"8x70",688,null,"LED 13W GERARD LUMINAIRE (CAT P4/P5 RRW) SHARED OR NO POLE 4",3810,null,3810,"LED 13W GERARD LUMINAIRE (CAT P4/P5 RRW)","SHARED OR NO POLE",4,null,null,510,"COMPHPS250W",null,"HPS0110-ST","0060","COMPHPS250W",null,null,"MVA0120-ST","MVA0080",160,"V",1,6]
["HPS0070","High Pressure Sodium 100",null,100,120,null,"LED 13W GERARD LUMINAIRE (CAT P4/P5 RRW) WOOD POLE 1",3820,null,3820,"LED 13W GERARD LUMINAIRE (CAT P4/P5 RRW)","WOOD POLE",1,null,null,520,"7206.05.21",null,"HPS0110-ST","0610","7206.05.18",null,null,"INC0110-ST","INC0030",500,"V",1,5]
["HPS0080","High Pressure Sodium 120",null,120,144,null,"LED 13W GERARD LUMINAIRE (CAT P4/P5 RRW) WOOD POLE 2",3830,null,3830,"LED 13W GERARD LUMINAIRE (CAT P4/P5 RRW)","WOOD POLE",2,null,null,530,"REPMV250WHPS150W",null,"HPS0110-TA","0060","COMPHPS250W",null,null,"FLU0190-ST","FLU0130","2x58","P",2,4]
["HPS0090","High Pressure Sodium 150",null,150,173,null,"LED 13W GERARD LUMINAIRE (CAT P4/P5 RRW) WOOD POLE 3",3840,null,3840,"LED 13W GERARD LUMINAIRE (CAT P4/P5 RRW)","WOOD POLE",3,null,null,540,"REPMV400WHPS250W",null,"HPS0110-TA","0610","7206.05.18",null,null,"INC0100-ST","INC0030",300,"V",1,4]
["HPS0100","High Pressure Sodium 220",null,220,245,null,"LED 13W GERARD LUMINAIRE (CAT P4/P5 RRW) WOOD POLE 4",3850,null,3850,"LED 13W GERARD LUMINAIRE (CAT P4/P5 RRW)","WOOD POLE",4,null,null,550,"COMPHPS250W",null,"HPS0120-ST","1490","7206.05.26",null,null,"HPS0190-ST","HPS0170","3x400","V",3,3]
["HPS0110","High Pressure Sodium 250",null,250,273,null,"LED 13W GERARD LUMINAIRE (CAT P4/P5 RRW) STEEL POLE 1",3860,null,3860,"LED 13W GERARD LUMINAIRE (CAT P4/P5 RRW)","STEEL POLE",1,null,null,560,"7206.05.21",null,"HPS0120-TA","1490","7206.05.26",null,null,"INC0160-ST","INC0030",1500,"P",1,3]
["HPS0120","High Pressure Sodium 2x250",null,"2x250",546,null,"LED 13W GERARD LUMINAIRE (CAT P4/P5 RRW) STEEL POLE 2",3870,null,3870,"LED 13W GERARD LUMINAIRE (CAT P4/P5 RRW)","STEEL POLE",2,null,null,570,"REPMV250WHPS150W",null,"HPS0130-ST","1490","7206.05.26",null,null,"MVA0250-ST","MVA0220",500,"V",1,3]
["HPS0130","High Pressure Sodium 4x250",null,"4x250",1092,null,"LED 13W GERARD LUMINAIRE (CAT P4/P5 RRW) STEEL POLE 3",3880,null,3880,"LED 13W GERARD LUMINAIRE (CAT P4/P5 RRW)","STEEL POLE",3,null,null,580,"REPMV400WHPS250W",null,"HPS0130-TA","1490","7206.05.26",null,null,"FLU0220-ST","FLU0130",65,"P",1,2]
["HPS0140","High Pressure Sodium 310 (Retrofit)",null,"310 (Retrofit)",350,null,"LED 13W GERARD LUMINAIRE (CAT P4/P5 RRW) STEEL POLE 4",3890,null,3890,"LED 13W GERARD LUMINAIRE (CAT P4/P5 RRW)","STEEL POLE",4,null,null,590,"COMPHPS250W",null,"HPS0140-ST","0070","7206.05.21",null,null,"INC0090-ST","INC0030",200,"V",1,2]
["HPS0150","High Pressure Sodium 2x310",null,"2x310",700,null,"LED 25W GE EVOLVE LUMINAIRE (CAT P4/P5) SHARED OR NO POLE 1",3900,null,3900,"LED 25W GE EVOLVE LUMINAIRE (CAT P4/P5)","SHARED OR NO POLE",1,null,null,600,"7206.05.21",null,"HPS0150-ST","0070","7206.05.21",null,null,"LPS0090-ST","LPS0050",310,"V",1,2]
["HPS0160","High Pressure Sodium 360",null,360,396,null,"LED 25W GE EVOLVE LUMINAIRE (CAT P4/P5) SHARED OR NO POLE 2",3910,null,3910,"LED 25W GE EVOLVE LUMINAIRE (CAT P4/P5)","SHARED OR NO POLE",2,null,null,610,"7206.05.18",null,"HPS0160-ST","0070","7206.05.21",null,null,"MHC0020-ST","MHR0060",250,"V",1,2]
["HPS0170","High Pressure Sodium 400",null,400,440,null,"LED 25W GE EVOLVE LUMINAIRE (CAT P4/P5) SHARED OR NO POLE 3",3920,null,3920,"LED 25W GE EVOLVE LUMINAIRE (CAT P4/P5)","SHARED OR NO POLE",3,null,null,620,"COMPMV80W",null,"HPS0160-ST","0620","COMPMV80W",null,null,"MVA0170-ST","MVA0080",175,"V",1,2]
["HPS0180","High Pressure Sodium 2x400",null,"2x400",880,null,"LED 25W GE EVOLVE LUMINAIRE (CAT P4/P5) SHARED OR NO POLE 4",3930,null,3930,"LED 25W GE EVOLVE LUMINAIRE (CAT P4/P5)","SHARED OR NO POLE",4,null,null,630,"7206.05.18",null,"HPS0170-ST","0070","7206.05.21",null,null,"FLU0070-ST","FLU0060","3x20","P",3,1]
["HPS0190","High Pressure Sodium 3x400",null,"3x400",1320,null,"LED 25W GE EVOLVE LUMINAIRE (CAT P4/P5) WOOD POLE 1",3940,null,3940,"LED 25W GE EVOLVE LUMINAIRE (CAT P4/P5)","WOOD POLE",1,null,null,640,"COMPMV80W",null,"HPS0170-ST","0620","COMPMV80W",null,null,"FLU0150-ST","FLU0130","3x40","P",3,1]
["HPS0200","High Pressure Sodium 4x400",null,"4x400",1760,null,"LED 25W GE EVOLVE LUMINAIRE (CAT P4/P5) WOOD POLE 2",3950,null,3950,"LED 25W GE EVOLVE LUMINAIRE (CAT P4/P5)","WOOD POLE",2,null,null,650,"7206.05.26",null,"HPS0170-ST","",{"$error":"#VALUE!"},null,null,"FLU0250-ST","FLU0130","2x80","P",2,1]
["HPS0210","High Pressure Sodium 600 (Internal Ignitor)",null,"600 (Internal Ignitor)",650,null,"LED 25W GE EVOLVE LUMINAIRE (CAT P4/P5) WOOD POLE 3",3960,null,3960,"LED 25W GE EVOLVE LUMINAIRE (CAT P4/P5)","WOOD POLE",3,null,null,660,"COMPMV80W",null,"HPS0170-TA","0070","7206.05.21",null,null,"MVA0260-ST","HPS0170",700,"V",1,1]
["HPS0220","High Pressure Sodium 2x600",null,"2x600",1300,null,"LED 25W GE EVOLVE LUMINAIRE (CAT P4/P5) WOOD POLE 4",3970,null,3970,"LED 25W GE EVOLVE LUMINAIRE (CAT P4/P5)","WOOD POLE",4,null,null,670,"7206.05.18",null,"HPS0170-TA","0620","COMPMV80W",null,null,"FLU0020-ST","FLU0060",11,"P",1,0]
["HPS0230","High Pressure Sodium 4x600",null,"4x600",2600,null,"LED 25W GE EVOLVE LUMINAIRE (CAT P4/P5) STEEL POLE 1",3980,null,3980,"LED 25W GE EVOLVE LUMINAIRE (CAT P4/P5)","STEEL POLE",1,null,null,680,"COMPMV80W",null,"HPS0180-ST","1490","7206.05.26",null,null,"FLU0030-ST","FLU0060",13,"P",1,0]
["HPS0240","High Pressure Sodium 6x600",null,"6x600",3900,null,"LED 25W GE EVOLVE LUMINAIRE (CAT P4/P5) STEEL POLE 2",3990,null,3990,"LED 25W GE EVOLVE LUMINAIRE (CAT P4/P5)","STEEL POLE",2,null,null,690,"COMPHPS150W",null,"HPS0180-TA","1490","7206.05.26",null,null,"FLU0090-ST","FLU0060","6x20","P",6,0]
["HPS0250","High Pressure Sodium 1000",null,1000,1064,null,"LED 25W GE EVOLVE LUMINAIRE (CAT P4/P5) STEEL POLE 3",4000,null,4000,"LED 25W GE EVOLVE LUMINAIRE (CAT P4/P5)","STEEL POLE",3,null,null,700,"HPS600HM",null,"HPS0190-ST","1470","7206.05.26",null,null,"FLU0110-ST","FLU0060","2x26","P",2,0]
["HPS0260","High Pressure Sodium 4x1000",null,"4x1000",4256,null,"LED 25W GE EVOLVE LUMINAIRE (CAT P4/P5) STEEL POLE 4",4010,null,4010,"LED 25W GE EVOLVE LUMINAIRE (CAT P4/P5)","STEEL POLE",4,null,null,710,"COMPHPS150W",null,"HPS0200-ST","1470","7206.05.26",null,null,"FLU0120-ST","FLU0060","6x36","P",2,0]
["INC0010","Incandescent 30",null,30,30,null,"LED 35W PECAN LUMINAIRE (CAT P3) SHARED OR NO POLE 1",4020,null,4020,"LED 35W PECAN LUMINAIRE (CAT P3)","SHARED OR NO POLE",1,null,null,720,"COMPHPS150W",null,"HPS0210-ST","0190","HPS600HM",null,null,"FLU0170-ST","FLU0130","6x40","P",6,0]
["INC0020","Incandescent 40",null,40,40,null,"LED 35W PECAN LUMINAIRE (CAT P3) SHARED OR NO POLE 2",4030,null,4030,"LED 35W PECAN LUMINAIRE (CAT P3)","SHARED OR NO POLE",2,null,null,730,"COMPHPS70W",null,"HPS0220-ST","0190","HPS600HM",null,null,"FLU0180-ST","FLU0130",58,"P",1,0]
["INC0030","Incandescent 60",null,60,60,null,"LED 35W PECAN LUMINAIRE (CAT P3) SHARED OR NO POLE 3",4040,null,4040,"LED 35W PECAN LUMINAIRE (CAT P3)","SHARED OR NO POLE",3,null,null,740,"COMPMV80W",null,"HPS0230-ST","0190","HPS600HM",null,null,"FLU0200-ST","FLU0130","4x58","P",4,0]
["INC0040","Incandescent 75",null,75,75,null,"LED 35W PECAN LUMINAIRE (CAT P3) SHARED OR NO POLE 4",4050,null,4050,"LED 35W PECAN LUMINAIRE (CAT P3)","SHARED OR NO POLE",4,null,null,750,"COMPHPS70W",null,"HPS0240-ST","0190","HPS600HM",null,null,"FLU0210-ST","FLU0130","5x58","P",4,0]
["INC0050","Incandescent 100",null,100,100,null,"LED 35W PECAN LUMINAIRE (CAT P3) WOOD POLE 1",4060,null,4060,"LED 35W PECAN LUMINAIRE (CAT P3)","WOOD POLE",1,null,null,760,"COMPHPS250W",null,"HPS0250-ST","0120","7107.09.50",null,null,"FLU0230-ST","FLU0130","5x65","P",5,0]
["INC0060","Incandescent 3x100",null,"3x100",300,null,"LED 35W PECAN LUMINAIRE (CAT P3) WOOD POLE 2",4070,null,4070,"LED 35W PECAN LUMINAIRE (CAT P3)","WOOD POLE",2,null,null,770,"7206.05.21",null,"HPS0260-ST","0120","7107.09.50",null,null,"FLU0260-ST","FLU0130","3x80","P",3,0]
["INC0070","Incandescent 130",null,130,130,null,"LED 35W PECAN LUMINAIRE (CAT P3) WOOD POLE 3",4080,null,4080,"LED 35W PECAN LUMINAIRE (CAT P3)","WOOD POLE",3,null,null,780,"REPMV250WHPS150W",null,"INC0010-ST","0010","COMPMV80W",null,null,"FLU0270-ST","FLU0130","4x80","P",4,0]
["INC0080","Incandescent 150",null,150,150,null,"LED 35W PECAN LUMINAIRE (CAT P3) WOOD POLE 4",4090,null,4090,"LED 35W PECAN LUMINAIRE (CAT P3)","WOOD POLE",4,null,null,790,"REPMV400WHPS250W",null,"INC0020-ST","0010","COMPMV80W",null,null,"FLU0280-ST","FLU0130","5x80","P",5,0]
["INC0090","Incandescent 200",null,200,200,null,"LED 35W PECAN LUMINAIRE (CAT P3) STEEL POLE 1",4100,null,4100,"LED 35W PECAN LUMINAIRE (CAT P3)","STEEL POLE",1,null,null,800,"HPS600HM",null,"INC0030-ST","0010","COMPMV80W",null,null,"FLU0290-ST","FLU0130","6x80","P",6,0]
["INC0100","Incandescent 300",null,300,300,null,"LED 35W PECAN LUMINAIRE (CAT P3) STEEL POLE 2",4110,null,4110,"LED 35W PECAN LUMINAIRE (CAT P3)","STEEL POLE",2,null,null,810,"COMPMV80W",null,"INC0040-ST","0010","COMPMV80W",null,null,"FLU0300-ST","FLU0130","2x125","P",2,0]
["INC0110","Incandescent 500",null,500,500,null,"LED 35W PECAN LUMINAIRE (CAT P3) STEEL POLE 3",4120,null,4120,"LED 35W PECAN LUMINAIRE (CAT P3)","STEEL POLE",3,null,null,820,"COMPMV80W",null,"INC0050-ST","0010","COMPMV80W",null,null,"FLU0310-ST","FLU0130",176,"V",1,0]
["INC0120","Incandescent 750",null,750,750,null,"LED 35W PECAN LUMINAIRE (CAT P3) STEEL POLE 4",4130,null,4130,"LED 35W PECAN LUMINAIRE (CAT P3)","STEEL POLE",4,null,null,830,"COMPMV80W",null,"INC0060-ST","0010","COMPMV80W",null,null,"FLU0320-ST","FLU0130",236,"V",1,0]
["INC0130","Incandescent 800",null,800,800,null,"LED 29W PECAN LUMINAIRE (CAT P3) - AEROSCREEN SHARED OR NO POLE 1",4140,null,4140,"LED 29W PECAN LUMINAIRE (CAT P3) - AEROSCREEN","SHARED OR NO POLE",1,null,null,840,"7206.05.26",null,"INC0070-ST","0010","COMPMV80W",null,null,"FLU0355-ST","FLU0355",32,"P",1,0]
["INC0140","Incandescent 1000",null,1000,1000,null,"LED 29W PECAN LUMINAIRE (CAT P3) - AEROSCREEN SHARED OR NO POLE 2",4150,null,4150,"LED 29W PECAN LUMINAIRE (CAT P3) - AEROSCREEN","SHARED OR NO POLE",2,null,null,850,"7206.05.26",null,"INC0080-ST","0010","COMPMV80W",null,null,"FLU0360-ST","FLU0360","2x14","P",2,0]
["INC0150","Incandescent 1440",null,1440,1440,null,"LED 29W PECAN LUMINAIRE (CAT P3) - AEROSCREEN SHARED OR NO POLE 3",4160,null,4160,"LED 29W PECAN LUMINAIRE (CAT P3) - AEROSCREEN","SHARED OR NO POLE",3,null,null,860,"7206.05.26",null,"INC0090-ST","0010","COMPMV80W",null,null,"FLU0370-ST","FLU0370","2x24","P",2,0]
["INC0160","Incandescent 1500",null,1500,1500,null,"LED 29W PECAN LUMINAIRE (CAT P3) - AEROSCREEN SHARED OR NO POLE 4",4170,null,4170,"LED 29W PECAN LUMINAIRE (CAT P3) - AEROSCREEN","SHARED OR NO POLE",4,null,null,870,"7206.05.26",null,"INC0100-ST","0010","COMPMV80W",null,null,"HPS0010-INT","HPS0010",50,"P",1,0]
["INC0170","Incandescent 2880",null,2880,2880,null,"LED 29W PECAN LUMINAIRE (CAT P3) - AEROSCREEN WOOD POLE 1",4180,null,4180,"LED 29W PECAN LUMINAIRE (CAT P3) - AEROSCREEN","WOOD POLE",1,null,null,880,"COMPHPS70W",null,"INC0110-ST","",{"$error":"#VALUE!"},null,null,"HPS0030-ST","HPS0020","2x70","P",2,0]
["LPS0010","Low Pressure Sodium 18",null,18,29,null,"LED 29W PECAN LUMINAIRE (CAT P3) - AEROSCREEN WOOD POLE 2",4190,null,4190,"LED 29W PECAN LUMINAIRE (CAT P3) - AEROSCREEN","WOOD POLE",2,null,null,890,"COMPHPS70W",null,"INC0110-ST","0010","COMPMV80W",null,null,"HPS0040-ST","HPS0020","3x70","P",3,0]
["LPS0020","Low Pressure Sodium 35",null,35,60,null,"LED 29W PECAN LUMINAIRE (CAT P3) - AEROSCREEN WOOD POLE 3",4200,null,4200,"LED 29W PECAN LUMINAIRE (CAT P3) - AEROSCREEN","WOOD POLE",3,null,null,900,"7206.05.26",null,"INC0120-ST","0010","COMPMV80W",null,null,"HPS0050-ST","HPS0020","4x70","P",4,0]
["LPS0030","Low Pressure Sodium 55",null,55,80,null,"LED 29W PECAN LUMINAIRE (CAT P3) - AEROSCREEN WOOD POLE 4",4210,null,4210,"LED 29W PECAN LUMINAIRE (CAT P3) - AEROSCREEN","WOOD POLE",4,null,null,910,"COMPHPS70W",null,"INC0130-ST","0010","COMPMV80W",null,null,"HPS0060-ST","HPS0020","8x70","P",8,0]
["LPS0040","Low Pressure Sodium 90/100",null,"90/100",120,null,"LED 29W PECAN LUMINAIRE (CAT P3) - AEROSCREEN STEEL POLE 1",4220,null,4220,"LED 29W PECAN LUMINAIRE (CAT P3) - AEROSCREEN","STEEL POLE",1,null,null,920,"COMPHPS70W",null,"INC0140-ST","OBSO",{"$error":"#VALUE!"},null,null,"HPS0130-ST","HPS0110","4x250","V",4,0]
["LPS0050","Low Pressure Sodium 135",null,135,170,null,"LED 29W PECAN LUMINAIRE (CAT P3) - AEROSCREEN STEEL POLE 2",4230,null,4230,"LED 29W PECAN LUMINAIRE (CAT P3) - AEROSCREEN","STEEL POLE",2,null,null,930,"COMPHPS250W",null,"INC0150-ST","OBSO",{"$error":"#VALUE!"},null,null,"HPS0150-ST","HPS0110","2x310","V",2,0]
["LPS0060","Low Pressure Sodium 150",null,150,186,null,"LED 29W PECAN LUMINAIRE (CAT P3) - AEROSCREEN STEEL POLE 3",4240,null,4240,"LED 29W PECAN LUMINAIRE (CAT P3) - AEROSCREEN","STEEL POLE",3,null,null,940,"REPMV250WHPS150W",null,"INC0160-ST","0620","COMPMV80W",null,null,"HPS0200-ST","HPS0170","4x400","V",4,0]
["LPS0070","Low Pressure Sodium 160",null,160,194,null,"LED 29W PECAN LUMINAIRE (CAT P3) - AEROSCREEN STEEL POLE 4",4250,null,4250,"LED 29W PECAN LUMINAIRE (CAT P3) - AEROSCREEN","STEEL POLE",4,null,null,950,"REPMV400WHPS250W",null,"INC0170-ST","0620","COMPMV80W",null,null,"HPS0210-ST","HPS0210","600 (Internal Ignitor)","V",1,0]
["LPS0080","Low Pressure Sodium 180",null,180,212,null,"LED 42W Pecan Luminaire (Cat V5) SHARED OR NO POLE 1",4260,null,4260,"LED 42W Pecan Luminaire (Cat V5)","SHARED OR NO POLE",1,null,null,960,"COMPHPS250W",null,"LPS0010-ST","0040","COMPHPS70W",null,null,"HPS0220-ST","HPS0210","2x600","V",2,0]
["LPS0090","Low Pressure Sodium 310",null,310,340,null,"LED 42W Pecan Luminaire (Cat V5) SHARED OR NO POLE 2",4270,null,4270,"LED 42W Pecan Luminaire (Cat V5)","SHARED OR NO POLE",2,null,null,970,"COMPHPS250W",null,"LPS0020-ST","0040","COMPHPS70W",null,null,"HPS0230-ST","HPS0210","4x600","V",4,0]
["MHC0010","Metal Hallide (Constant Control Gear) 150",null,150,173,null,"LED 42W Pecan Luminaire (Cat V5) SHARED OR NO POLE 3",4280,null,4280,"LED 42W Pecan Luminaire (Cat V5)","SHARED OR NO POLE",3,null,null,980,"COMPHPS150W",null,"LPS0030-ST","0040","COMPHPS70W",null,null,"HPS0240-ST","HPS0210","6x600","V",6,0]
["MHC0020","Metal Hallide (Constant Control Gear) 250",null,250,286,null,"LED 42W Pecan Luminaire (Cat V5) SHARED OR NO POLE 4",4290,null,4290,"LED 42W Pecan Luminaire (Cat V5)","SHARED OR NO POLE",4,null,null,990,"COMPMV80W",null,"LPS0040-ST","0050","COMPHPS150W",null,null,"HPS0260-ST","MHR0100","4x1000","V",1,0]
["MHC0030","Metal Hallide (Constant Control Gear) 400",null,400,449,null,"LED 42W Pecan Luminaire (Cat V5) WOOD POLE 1",4300,null,4300,"LED 42W Pecan Luminaire (Cat V5)","WOOD POLE",1,null,null,1000,"COMPMV80W",null,"LPS0050-ST","0060","COMPHPS250W",null,null,"HPS0030-TA","HPS0020-TA","2x70","P",2,0]
["MHR0010","Metal Hallide (Reactor Control Gear) 70",null,70,81.5,null,"LED 42W Pecan Luminaire (Cat V5) WOOD POLE 2",4310,null,4310,"LED 42W Pecan Luminaire (Cat V5)","WOOD POLE",2,null,null,1010,"COMPHPS150W",null,"LPS0060-ST","0060","COMPHPS250W",null,null,"HPS0040-TA","HPS0020-TA","3x70","P",3,0]
["MHR0020","Metal Hallide (Reactor Control Gear) 100",null,100,110,null,"LED 42W Pecan Luminaire (Cat V5) WOOD POLE 3",4320,null,4320,"LED 42W Pecan Luminaire (Cat V5)","WOOD POLE",3,null,null,1020,"COMPHPS250W",null,"LPS0070-ST","0060","COMPHPS250W",null,null,"HPS0050-TA","HPS0020-TA","4x70","P",4,0]
["MHR0030","Metal Hallide (Reactor Control Gear) 150",null,150,168,null,"LED 42W Pecan Luminaire (Cat V5) WOOD POLE 4",4330,null,4330,"LED 42W Pecan Luminaire (Cat V5)","WOOD POLE",4,null,null,1030,"7206.05.21",null,"LPS0080-ST","0060","COMPHPS250W",null,null,"HPS0060-TA","HPS0020-TA","8x70","P",8,0]
["MHR0040","Metal Hallide (Reactor Control Gear) 4x150",null,"4x150",672,null,"LED 42W Pecan Luminaire (Cat V5) STEEL POLE 1",4340,null,4340,"LED 42W Pecan Luminaire (Cat V5)","STEEL POLE",1,null,null,1040,"7206.05.26",null,"LPS0090-ST","0070","7206.05.21",null,null,"HPS0070-TA","HPS0020-TA",100,"P",1,0]
["MHR0050","Metal Hallide (Reactor Control Gear) 175",null,175,191,null,"LED 42W Pecan Luminaire (Cat V5) STEEL POLE 2",4350,null,4350,"LED 42W Pecan Luminaire (Cat V5)","STEEL POLE",2,null,null,1050,"7206.05.26",null,"MHC0010-ST","0040","COMPHPS70W",null,null,"HPS0080-TA","HPS0090-TA",120,"P",1,0]
["MHR0060","Metal Hallide (Reactor Control Gear) 250",null,250,268,null,"LED 42W Pecan Luminaire (Cat V5) STEEL POLE 3",4360,null,4360,"LED 42W Pecan Luminaire (Cat V5)","STEEL POLE",3,null,null,1060,"7206.05.21",null,"MHC0020-ST","0040","COMPHPS70W",null,null,"HPS0100-TA","HPS0110-TA",220,"V",1,0]
["MHR0070","Metal Hallide (Reactor Control Gear) 400",null,400,425,null,"LED 42W Pecan Luminaire (Cat V5) STEEL POLE 4",4370,null,4370,"LED 42W Pecan Luminaire (Cat V5)","STEEL POLE",4,null,null,1070,"7206.05.18",null,"MHC0030-ST","0040","COMPHPS70W",null,null,"HPS0120-TA","HPS0110-TA","2x250","V",2,0]
["MHR0080","Metal Hallide (Reactor Control Gear) 2x400",null,"2x400",850,null,"LED 42W Pecan Luminaire (Cat V5) R/BOUT COLUMN 2",4380,null,4380,"LED 42W Pecan Luminaire (Cat V5)","R/BOUT COLUMN",2,null,null,1080,"7206.05.26",null,"MHR0010-ST","0040","COMPHPS70W",null,null,"HPS0130-TA","HPS0110-TA","4x250","V",4,0]
["MHR0090","Metal Hallide (Reactor Control Gear) 500",null,500,525,null,"LED 42W Pecan Luminaire (Cat V5) R/BOUT COLUMN 3",4390,null,4390,"LED 42W Pecan Luminaire (Cat V5)","R/BOUT COLUMN",3,null,null,1100,"7206.05.26",null,"MHR0020-ST","0040","COMPHPS70W",null,null,"HPS0150-TA","HPS0110-TA","2x310","V",2,0]
["MHR0100","Metal Hallide (Reactor Control Gear) 1000",null,1000,1040,null,"LED 42W Pecan Luminaire (Cat V5) R/BOUT COLUMN 4",4400,null,4400,"LED 42W Pecan Luminaire (Cat V5)","R/BOUT COLUMN",4,null,null,1110,"7107.09.50",null,"MHR0030-ST","0050","COMPHPS150W",null,null,"HPS0160-TA","HPS0170-TA",360,"V",1,0]
["MHR0110","Metal Hallide (Reactor Control Gear) 1500",null,1500,1560,null,"LED 36W Pecan Luminaire (Cat V5) - Aeroscreen SHARED OR NO POLE 1",4410,null,4410,"LED 36W Pecan Luminaire (Cat V5) - Aeroscreen","SHARED OR NO POLE",1,null,null,1120,"7206.05.18",null,"MHR0040-ST","0050","COMPHPS150W",null,null,"HPS0180-TA","HPS0170-TA","2x400","V",2,0]
["MHR0120","Metal Hallide (Reactor Control Gear) 2000",null,2000,2070,null,"LED 36W Pecan Luminaire (Cat V5) - Aeroscreen SHARED OR NO POLE 2",4420,null,4420,"LED 36W Pecan Luminaire (Cat V5) - Aeroscreen","SHARED OR NO POLE",2,null,null,1130,"7206.05.26",null,"MHR0050-ST","0050","COMPHPS150W",null,null,"HPS0200-TA","HPS0170-TA","4x400","V",4,0]
["MHR0130","Metal Hallide (Reactor Control Gear) 3745",null,3745,3745,null,"LED 36W Pecan Luminaire (Cat V5) - Aeroscreen SHARED OR NO POLE 3",4430,null,4430,"LED 36W Pecan Luminaire (Cat V5) - Aeroscreen","SHARED OR NO POLE",3,null,null,1140,"7206.05.18",null,"MHR0060-ST","0060","COMPHPS250W",null,null,"INC0020-ST","INC0030",40,"P",1,0]
["MVA0010","Mercury Vapour 50",null,50,65,null,"LED 36W Pecan Luminaire (Cat V5) - Aeroscreen SHARED OR NO POLE 4",4440,null,4440,"LED 36W Pecan Luminaire (Cat V5) - Aeroscreen","SHARED OR NO POLE",4,null,null,1150,"7206.05.18",null,"MHR0060-ST","",{"$error":"#VALUE!"},null,null,"INC0060-ST","INC0030","3x100","P",3,0]
["MVA0020","Mercury Vapour 80",null,80,95.8,null,"LED 36W Pecan Luminaire (Cat V5) - Aeroscreen WOOD POLE 1",4450,null,4450,"LED 36W Pecan Luminaire (Cat V5) - Aeroscreen","WOOD POLE",1,null,null,1160,"7206.05.18",null,"MHR0060-ST","0610","7206.05.18",null,null,"INC0070-ST","INC0030",130,"P",1,0]
["MVA0030","Mercury Vapour 2x80",null,"2x80",191.6,null,"LED 36W Pecan Luminaire (Cat V5) - Aeroscreen WOOD POLE 2",4460,null,4460,"LED 36W Pecan Luminaire (Cat V5) - Aeroscreen","WOOD POLE",2,null,null,1170,"7206.05.26",null,"MHR0070-ST","0060","COMPHPS250W",null,null,"INC0120-ST","INC0030",750,"V",1,0]
["MVA0040","Mercury Vapour 3x80",null,"3x80",287.39999999999998,null,"LED 36W Pecan Luminaire (Cat V5) - Aeroscreen WOOD POLE 3",4470,null,4470,"LED 36W Pecan Luminaire (Cat V5) - Aeroscreen","WOOD POLE",3,null,null,1180,"7107.09.30",null,"MHR0070-ST","0620","COMPMV80W",null,null,"INC0130-ST","INC0030",800,"V",1,0]
["MVA0050","Mercury Vapour 4x80",null,"4x80",383.2,null,"LED 36W Pecan Luminaire (Cat V5) - Aeroscreen WOOD POLE 4",4480,null,4480,"LED 36W Pecan Luminaire (Cat V5) - Aeroscreen","WOOD POLE",4,null,null,1190,"7107.09.30",null,"MHR0080-ST","OBSO",{"$error":"#VALUE!"},null,null,"INC0140-ST","INC0030",1000,"V",1,0]
["MVA0060","Mercury Vapour 6x80",null,"6x80",574.79999999999995,null,"LED 36W Pecan Luminaire (Cat V5) - Aeroscreen STEEL POLE 1",4490,null,4490,"LED 36W Pecan Luminaire (Cat V5) - Aeroscreen","STEEL POLE",1,null,null,1200,"7107.09.30",null,"MHR0090-ST","OBSO",{"$error":"#VALUE!"},null,null,"INC0150-ST","INC0030",1440,"V",1,0]
["MVA0070","Mercury Vapour 7x80",null,"7x80",670.6,null,"LED 36W Pecan Luminaire (Cat V5) - Aeroscreen STEEL POLE 2",4500,null,4500,"LED 36W Pecan Luminaire (Cat V5) - Aeroscreen","STEEL POLE",2,null,null,1210,"7107.09.30",null,"MHR0100-ST","0120","7107.09.50",null,null,"INC0170-ST","INC0030",2880,"V",1,0]
["MVA0080","Mercury Vapour 125",null,125,142,null,"LED 36W Pecan Luminaire (Cat V5) - Aeroscreen STEEL POLE 3",4510,null,4510,"LED 36W Pecan Luminaire (Cat V5) - Aeroscreen","STEEL POLE",3,null,null,1220,"7107.09.30",null,"MHR0110-ST","0120","7107.09.50",null,null,"LPS0010-ST","LPS0030",18,"P",1,0]
["MVA0090","Mercury Vapour 2x125",null,"2x125",284,null,"LED 36W Pecan Luminaire (Cat V5) - Aeroscreen STEEL POLE 4",4520,null,4520,"LED 36W Pecan Luminaire (Cat V5) - Aeroscreen","STEEL POLE",4,null,null,1230,"7107.09.30",null,"MHR0120-ST","0120","7107.09.50",null,null,"LPS0020-ST","LPS0030",35,"P",1,0]
["MVA0100","Mercury Vapour 3x125",null,"3x125",426,null,"LED 36W Pecan Luminaire (Cat V5) - Aeroscreen R/BOUT COLUMN 2",4530,null,4530,"LED 36W Pecan Luminaire (Cat V5) - Aeroscreen","R/BOUT COLUMN",2,null,null,1240,"7107.09.30",null,"MHR0130-ST","0120","7107.09.50",null,null,"LPS0070-ST","LPS0050",160,"V",1,0]
["MVA0110","Mercury Vapour 6x125",null,"6x125",852,null,"LED 36W Pecan Luminaire (Cat V5) - Aeroscreen R/BOUT COLUMN 3",4540,null,4540,"LED 36W Pecan Luminaire (Cat V5) - Aeroscreen","R/BOUT COLUMN",3,null,null,1250,"7206.05.26",null,"MVA0010-ST","0010","COMPMV80W",null,null,"LPS0080-ST","LPS0050",180,"V",1,0]
["MVA0120","Mercury Vapour 160",null,160,175,null,"LED 36W Pecan Luminaire (Cat V5) - Aeroscreen R/BOUT COLUMN 4",4550,null,4550,"LED 36W Pecan Luminaire (Cat V5) - Aeroscreen","R/BOUT COLUMN",4,null,null,1260,"COMPMV80W",null,"MVA0020-ST","0010","COMPMV80W",null,null,"MHC0010-ST","MHR0060",150,"V",1,0]
["MVA0130","Mercury Vapour 2x160",null,"2x160",350,null,"LED 105W Aldridge Luminaire (Cat V3) SHARED OR NO POLE 1",4560,null,4560,"LED 105W Aldridge Luminaire (Cat V3)","SHARED OR NO POLE",1,null,null,1270,"7206.05.15",null,"MVA0030-ST","0010","COMPMV80W",null,null,"MHC0030-ST","MHR0070",400,"V",1,0]
["MVA0140","Mercury Vapour 3x160",null,"3x160",525,null,"LED 105W Aldridge Luminaire (Cat V3) SHARED OR NO POLE 2",4570,null,4570,"LED 105W Aldridge Luminaire (Cat V3)","SHARED OR NO POLE",2,null,null,1280,"7206.05.15",null,"MVA0040-ST","0010","COMPMV80W",null,null,"MHR0040-ST","MHR0060","4x150","V",4,0]
["MVA0150","Mercury Vapour 6x160",null,"6x160",1050,null,"LED 105W Aldridge Luminaire (Cat V3) SHARED OR NO POLE 3",4580,null,4580,"LED 105W Aldridge Luminaire (Cat V3)","SHARED OR NO POLE",3,null,null,1290,"7206.05.15",null,"MVA0050-ST","0010","COMPMV80W",null,null,"MHR0080-ST","MHR0070","2x400","V",2,0]
["MVA0160","Mercury Vapour 9x160",null,"9x160",1575,null,"LED 105W Aldridge Luminaire (Cat V3) SHARED OR NO POLE 4",4590,null,4590,"LED 105W Aldridge Luminaire (Cat V3)","SHARED OR NO POLE",4,null,null,1300,"7206.05.15",null,"MVA0060-ST","0010","COMPMV80W",null,null,"MHR0090-ST","MHR0070",500,"V",1,0]
["MVA0170","Mercury Vapour 175",null,175,195,null,"LED 105W Aldridge Luminaire (Cat V3) WOOD POLE 1",4600,null,4600,"LED 105W Aldridge Luminaire (Cat V3)","WOOD POLE",1,null,null,1310,"7206.05.15",null,"MVA0070-ST","0010","COMPMV80W",null,null,"MHR0110-ST","MHR0100",1500,"V",1,0]
["MVA0180","Mercury Vapour 2x175",null,"2x175",390,null,"LED 105W Aldridge Luminaire (Cat V3) WOOD POLE 2",4610,null,4610,"LED 105W Aldridge Luminaire (Cat V3)","WOOD POLE",2,null,null,1320,"7206.05.15",null,"MVA0080-ST","0010","COMPMV80W",null,null,"MHR0120-ST","MHR0100",2000,"V",1,0]
["MVA0190","Mercury Vapour 250",null,250,270,null,"LED 105W Aldridge Luminaire (Cat V3) WOOD POLE 3",4620,null,4620,"LED 105W Aldridge Luminaire (Cat V3)","WOOD POLE",3,null,null,1330,"7206.05.15",null,"MVA0090-ST","0010","COMPMV80W",null,null,"MHR0130-ST","MHR0100",3745,"V",1,0]
["MVA0200","Mercury Vapour 2x250",null,"2x250",540,null,"LED 105W Aldridge Luminaire (Cat V3) WOOD POLE 4",4630,null,4630,"LED 105W Aldridge Luminaire (Cat V3)","WOOD POLE",4,null,null,1340,"7206.05.15",null,"MVA0100-ST","0010","COMPMV80W",null,null,"MVA0030-ST","MVA0020","2x80","P",2,0]
["MVA0210","Mercury Vapour 3x250",null,"3x250",810,null,"LED 105W Aldridge Luminaire (Cat V3) STEEL POLE 1",4640,null,4640,"LED 105W Aldridge Luminaire (Cat V3)","STEEL POLE",1,null,null,1350,"7206.05.15",null,"MVA0110-ST","0010","COMPMV80W",null,null,"MVA0040-ST","MVA0020","3x80","P",3,0]
["MVA0220","Mercury Vapour 400",null,400,430,null,"LED 105W Aldridge Luminaire (Cat V3) STEEL POLE 2",4650,null,4650,"LED 105W Aldridge Luminaire (Cat V3)","STEEL POLE",2,null,null,1360,"COMPHPS150W",null,"MVA0120-ST","0010","COMPMV80W",null,null,"MVA0050-ST","MVA0020","4x80","P",3,0]
["MVA0230","Mercury Vapour 2x400",null,"2x400",860,null,"LED 105W Aldridge Luminaire (Cat V3) STEEL POLE 3",4660,null,4660,"LED 105W Aldridge Luminaire (Cat V3)","STEEL POLE",3,null,null,1370,"COMPHPS150W",null,"MVA0130-ST","0010","COMPMV80W",null,null,"MVA0060-ST","MVA0020","6x80","P",6,0]
["MVA0240","Mercury Vapour 3x400",null,"3x400",1290,null,"LED 105W Aldridge Luminaire (Cat V3) STEEL POLE 4",4670,null,4670,"LED 105W Aldridge Luminaire (Cat V3)","STEEL POLE",4,null,null,1380,"7206.05.18",null,"MVA0140-ST","0010","COMPMV80W",null,null,"MVA0070-ST","MVA0020","7x80","P",7,0]
["MVA0250","Mercury Vapour 500",null,500,530,null,"LED 105W Aldridge Luminaire (Cat V3) R/BOUT COLUMN 2",4680,null,4680,"LED 105W Aldridge Luminaire (Cat V3)","R/BOUT COLUMN",2,null,null,1390,"COMPMV80W",null,"MVA0150-ST","0010","COMPMV80W",null,null,"MVA0090-ST","MVA0080","2x125","P",2,0]
["MVA0260","Mercury Vapour 700",null,700,740,null,"LED 105W Aldridge Luminaire (Cat V3) R/BOUT COLUMN 3",4690,null,4690,"LED 105W Aldridge Luminaire (Cat V3)","R/BOUT COLUMN",3,null,null,1395,"COMPMV80W",null,"MVA0160-ST","0010","COMPMV80W",null,null,"MVA0100-ST","MVA0080","3x125","P",3,0]
["MVA0270","Mercury Vapour 2x700",null,"2x700",1480,null,"LED 105W Aldridge Luminaire (Cat V3) R/BOUT COLUMN 4",4700,null,4700,"LED 105W Aldridge Luminaire (Cat V3)","R/BOUT COLUMN",4,null,null,1400,"COMPMV80W",null,"MVA0170-ST","0020","REPMV250WHPS150W",null,null,"MVA0110-ST","MVA0080","6x125","P",6,0]
["MVA0280","Mercury Vapour 800",null,800,850,null,"LED 198W Aldridge Luminaire (Cat V1) - Standard Dist. SHARED OR NO POLE 1",4710,null,4710,"LED 198W Aldridge Luminaire (Cat V1) - Standard Dist.","SHARED OR NO POLE",1,null,null,1410,"COMPMV80W",null,"MVA0180-ST","0020","REPMV250WHPS150W",null,null,"MVA0130-ST","MVA0080","2x160","V",2,0]
["MVA0290","Mercury Vapour 1000",null,1000,1040,null,"LED 198W Aldridge Luminaire (Cat V1) - Standard Dist. SHARED OR NO POLE 2",4720,null,4720,"LED 198W Aldridge Luminaire (Cat V1) - Standard Dist.","SHARED OR NO POLE",2,null,null,1420,"COMPMV80W",null,"MVA0190-ST","0020","REPMV250WHPS150W",null,null,"MVA0140-ST","MVA0080","3x160","V",3,0]
["MVA0300","Mercury Vapour 4x1000",null,"4x1000",4160,null,"LED 198W Aldridge Luminaire (Cat V1) - Standard Dist. SHARED OR NO POLE 3",4730,null,4730,"LED 198W Aldridge Luminaire (Cat V1) - Standard Dist.","SHARED OR NO POLE",3,null,null,1430,"COMPMV80W",null,"MVA0220-ST","0030","REPMV400WHPS250W",null,null,"MVA0150-ST","MVA0080","6x160","V",6,0]
["MVA0310","Mercury Vapour 6x1000",null,"6x1000",6240,null,"LED 198W Aldridge Luminaire (Cat V1) - Standard Dist. SHARED OR NO POLE 4",4740,null,4740,"LED 198W Aldridge Luminaire (Cat V1) - Standard Dist.","SHARED OR NO POLE",4,null,null,1440,"COMPMV80W",null,"MVA0220-ST","0030","REPMV400WHPS250W",null,null,"MVA0160-ST","MVA0080","9x160","V",1,0]
["MVA0320","Mercury Vapour 1625",null,1625,1690,null,"LED 198W Aldridge Luminaire (Cat V1) - Standard Dist. WOOD POLE 1",4750,null,4750,"LED 198W Aldridge Luminaire (Cat V1) - Standard Dist.","WOOD POLE",1,null,null,1445,"COMPMV80W",null,"MVA0230-ST","0030","REPMV400WHPS250W",null,null,"MVA0180-ST","MVA0080","2x175","V",2,0]
["FLU0350","Compact Fluorescent 1x42",null,42,46.4,null,"LED 198W Aldridge Luminaire (Cat V1) - Standard Dist. WOOD POLE 2",4760,null,4760,"LED 198W Aldridge Luminaire (Cat V1) - Standard Dist.","WOOD POLE",2,null,null,1450,"7206.05.18",null,"MVA0240-ST","0030","REPMV400WHPS250W",null,null,"MVA0200-ST","MVA0190","2x250","V",2,0]
["FLU0355","Compact Fluorescent 1x32",null,32,36.6,null,"LED 198W Aldridge Luminaire (Cat V1) - Standard Dist. WOOD POLE 3",4770,null,4770,"LED 198W Aldridge Luminaire (Cat V1) - Standard Dist.","WOOD POLE",3,null,null,1460,"7206.05.1",null,"MVA0250-ST","0030","REPMV400WHPS250W",null,null,"MVA0210-ST","MVA0190","3x250","V",3,0]
["FLU0360","T5 2x14W",null,"2x14",30.2,null,"LED 198W Aldridge Luminaire (Cat V1) - Standard Dist. WOOD POLE 4",4780,null,4780,"LED 198W Aldridge Luminaire (Cat V1) - Standard Dist.","WOOD POLE",4,null,null,1470,"7206.05.26",null,"MVA0270-ST","0030","REPMV400WHPS250W",null,null,"MVA0230-ST","MVA0230","2x400","V",2,0]
["FLU0370","T5 2x24W",null,"2x24",47,null,"LED 198W Aldridge Luminaire (Cat V1) - Standard Dist. STEEL POLE 1",4790,null,4790,"LED 198W Aldridge Luminaire (Cat V1) - Standard Dist.","STEEL POLE",1,null,null,1480,"7206.05.26",null,"MVA0280-ST","0030","REPMV400WHPS250W",null,null,"MVA0240-ST","MVA0230","3x400","V",3,0]
[null,null,null,null,null,null,"LED 198W Aldridge Luminaire (Cat V1) - Standard Dist. STEEL POLE 2",4800,null,4800,"LED 198W Aldridge Luminaire (Cat V1) - Standard Dist.","STEEL POLE",2,null,null,1490,"7206.05.26",null,"MVA0260-ST","0190","HPS600HM",null,null,"MVA0270-ST","HPS0170","2x700","V",2,0]
[null,null,null,null,null,null,"LED 198W Aldridge Luminaire (Cat V1) - Standard Dist. STEEL POLE 3",4810,null,4810,"LED 198W Aldridge Luminaire (Cat V1) - Standard Dist.","STEEL POLE",3,null,null,1500,"COMPMV80W",null,"MVA0290-ST","0120","7107.09.50",null,null,"MVA0280-ST","HPS0170",800,"V",1,0]
[null,"Hand-calculated construction codes",null,null,null,null,"LED 198W Aldridge Luminaire (Cat V1) - Standard Dist. STEEL POLE 4",4820,null,4820,"LED 198W Aldridge Luminaire (Cat V1) - Standard Dist.","STEEL POLE",4,null,null,1510,"COMPMV80W",null,"MVA0300-ST","0120","7107.09.50",null,null,"MVA0300-ST","HPS0210","4x1000","V",4,0]
[null,null,null,null,null,null,"LED 198W Aldridge Luminaire (Cat V1) - Standard Dist. R/BOUT COLUMN 2",4830,null,4830,"LED 198W Aldridge Luminaire (Cat V1) - Standard Dist.","R/BOUT COLUMN",2,null,null,1520,"COMPMV80W",null,"MVA0310-ST","0120","7107.09.50",null,null,"MVA0310-ST","HPS0210","6x1000","V",6,0]
["FLU0355","FLU0355 - Compact Fluorescent 32",null,null,null,null,"LED 198W Aldridge Luminaire (Cat V1) - Standard Dist. R/BOUT COLUMN 3",4840,null,4840,"LED 198W Aldridge Luminaire (Cat V1) - Standard Dist.","R/BOUT COLUMN",3,null,null,1530,"COMPMV80W",null,"MVA0320-ST","0120","7107.09.50",null,null,"MVA0320-ST","HPS0210",1625,"V",1,0]
["LED0090","LED0090 - LED90",null,null,null,null,"LED 198W Aldridge Luminaire (Cat V1) - Standard Dist. R/BOUT COLUMN 4",4850,null,4850,"LED 198W Aldridge Luminaire (Cat V1) - Standard Dist.","R/BOUT COLUMN",4,null,null,1600,"7206.08.1",null,"FLU0350-ST","1620","7206.05.40"]
["LED0090","LED0090 - LED90",null,null,null,null,"LED 198W Aldridge Luminaire (Cat V1) - Forward Dist. SHARED OR NO POLE 1",4860,null,4860,"LED 198W Aldridge Luminaire (Cat V1) - Forward Dist.","SHARED OR NO POLE",1,null,null,1610,"7206.09.1",null,"FLU0360-ST","1740","T5_2x14W",null,null,"ADDED LEDS:"]
["LED0090","LED0090 - LED90",null,null,null,null,"LED 198W Aldridge Luminaire (Cat V1) - Forward Dist. SHARED OR NO POLE 2",4870,null,4870,"LED 198W Aldridge Luminaire (Cat V1) - Forward Dist.","SHARED OR NO POLE",2,null,null,1620,"CFL42",null,"FLU0370-ST","1860","T5_2x24W"]
["LED0025","LED0025 - EvolveLED 25w",null,null,null,null,"LED 198W Aldridge Luminaire (Cat V1) - Forward Dist. SHARED OR NO POLE 3",4880,null,4880,"LED 198W Aldridge Luminaire (Cat V1) - Forward Dist.","SHARED OR NO POLE",3,null,null,1620,"7206.05.40",null,null,null,null,null,null,"LED0025-ST","LED0006","25","P","?","?"]
["LED0025","LED0025 - EvolveLED 25w",null,null,null,null,"LED 198W Aldridge Luminaire (Cat V1) - Forward Dist. SHARED OR NO POLE 4",4890,null,4890,"LED 198W Aldridge Luminaire (Cat V1) - Forward Dist.","SHARED OR NO POLE",4,null,null,1630,"CFL42",null,"ADDED LEDS:",null,null,null,null,"LED0018-ST","LED0003","18","P","?","?"]
["LED0025","LED0025 - EvolveLED 25w",null,null,null,null,"LED 198W Aldridge Luminaire (Cat V1) - Forward Dist. WOOD POLE 1",4900,null,4900,"LED 198W Aldridge Luminaire (Cat V1) - Forward Dist.","WOOD POLE",1,null,null,1630,"7206.05.40",null,null,null,null,null,null,"LED0001-ST","LED0001","42","P","?","?"]
["LED0025","LED0025 - EvolveLED 25w",null,null,null,null,"LED 198W Aldridge Luminaire (Cat V1) - Forward Dist. WOOD POLE 2",4910,null,4910,"LED 198W Aldridge Luminaire (Cat V1) - Forward Dist.","WOOD POLE",2,null,null,1640,"CFL42",null,null,null,null,null,null,"LED0003-ST","LED0003","17","P","?","?"]
["LED0025","LED0025 - EvolveLED 25w",null,null,null,null,"LED 198W Aldridge Luminaire (Cat V1) - Forward Dist. WOOD POLE 3",4920,null,4920,"LED 198W Aldridge Luminaire (Cat V1) - Forward Dist.","WOOD POLE",3,null,null,1640,"7206.05.40",null,"LED0025-ST","0001","7206.05.85",null,null,"LED0005-ST","LED0005",3,"P","?","?"]
["LED0025","LED0025 - EvolveLED 25w",null,null,null,null,"LED 198W Aldridge Luminaire (Cat V1) - Forward Dist. WOOD POLE 4",4930,null,4930,"LED 198W Aldridge Luminaire (Cat V1) - Forward Dist.","WOOD POLE",4,null,null,1650,"CFL42",null,"LED0025-ST","3060","7206.05.85",null,null,"LED0006-ST","LED0006","25","P","?","?"]
["LED0018","LED0018 - StreetLED 18w",null,null,null,null,"LED 198W Aldridge Luminaire (Cat V1) - Forward Dist. STEEL POLE 1",4940,null,4940,"LED 198W Aldridge Luminaire (Cat V1) - Forward Dist.","STEEL POLE",1,null,null,1650,"7206.05.40",null,"LED0025-ST","3060","7206.05.85",null,null,"LED0012-ST","LED0012",null,"V"]
["LED0018","LED0018 - StreetLED 18w",null,null,null,null,"LED 198W Aldridge Luminaire (Cat V1) - Forward Dist. STEEL POLE 2",4950,null,4950,"LED 198W Aldridge Luminaire (Cat V1) - Forward Dist.","STEEL POLE",2,null,null,1660,"CFL42",null,"LED0025-ST","3060","7206.05.85"]
["LED0018","LED0018 - StreetLED 18w",null,null,null,null,"LED 198W Aldridge Luminaire (Cat V1) - Forward Dist. STEEL POLE 3",4960,null,4960,"LED 198W Aldridge Luminaire (Cat V1) - Forward Dist.","STEEL POLE",3,null,null,1660,"7206.05.40",null,"LED0025-ST","3070","7206.05.85",null,null,"TEMPORARY MAPPINGS FOR CATEGORY INFORMATION FOR TRAFFIC CALCULATIONS ETC:"]
["LED0018","LED0018 - StreetLED 18w",null,null,null,null,"LED 198W Aldridge Luminaire (Cat V1) - Forward Dist. STEEL POLE 4",4970,null,4970,"LED 198W Aldridge Luminaire (Cat V1) - Forward Dist.","STEEL POLE",4,null,null,1670,"CFL42",null,"LED0025-ST","3100","7206.05.85",null,null,null,"LED0002",null,"P"]
["LED0018","LED0018 - StreetLED 18w",null,null,null,null,"LED 198W Aldridge Luminaire (Cat V1) - Forward Dist. R/BOUT COLUMN 2",4980,null,4980,"LED 198W Aldridge Luminaire (Cat V1) - Forward Dist.","R/BOUT COLUMN",2,null,null,1670,"7206.05.40",null,"LED0025-ST","3100","7206.05.85",null,null,null,"LED0004",null,"P"]
["LED0012","LED0012 - Aldridge LED 198W - Std Distribution",null,null,null,null,"LED 198W Aldridge Luminaire (Cat V1) - Forward Dist. R/BOUT COLUMN 3",4990,null,4990,"LED 198W Aldridge Luminaire (Cat V1) - Forward Dist.","R/BOUT COLUMN",3,null,null,1680,"CFL42",null,"LED0025-ST","3110","7206.05.85",null,null,null,"LED0007",null,"P"]
["LED0040","LED 36W Gerard Luminaire (Cat P3)",null,null,null,null,"LED 198W Aldridge Luminaire (Cat V1) - Forward Dist. R/BOUT COLUMN 4",5000,null,5000,"LED 198W Aldridge Luminaire (Cat V1) - Forward Dist.","R/BOUT COLUMN",4,null,null,1680,"7206.05.40",null,"LED0025-ST","3140","7206.05.85",null,null,null,"LED0008",null,"P"]
["LED0020","LED 18W Gerard Luminaire (Cat P4/P5)",null,null,null,null,"LED 298W Aldrige Luminaire (Cat V1) - Standard Dist. SHARED OR NO POLE 1",5010,null,5010,"LED 298W Aldrige Luminaire (Cat V1) - Standard Dist.","SHARED OR NO POLE",1,null,null,1690,"CFL42",null,"LED0025-ST","3140","7206.05.85",null,null,null,"LED0009",null,"V"]
["LED9999","LED 298W Aldrige Luminaire (Cat V1) - Standard Dist.",null,null,null,null,"LED 298W Aldrige Luminaire (Cat V1) - Standard Dist. SHARED OR NO POLE 2",5020,null,5020,"LED 298W Aldrige Luminaire (Cat V1) - Standard Dist.","SHARED OR NO POLE",2,null,null,1690,"7206.05.40",null,"LED0025-ST","3150","7206.05.85",null,null,null,"LED0010",null,"V"]
["Additional New Assemblies From Sam Peake:",null,null,null,null,null,"LED 298W Aldrige Luminaire (Cat V1) - Standard Dist. SHARED OR NO POLE 3",5030,null,5030,"LED 298W Aldrige Luminaire (Cat V1) - Standard Dist.","SHARED OR NO POLE",3,null,null,1700,"CFL42",null,"LED0018-ST","3180","7206.05.82",null,null,null,"LED0011",null,"V"]
["7107.09.11","250W HPS Roadster Lantern",null,250,null,null,"LED 298W Aldrige Luminaire (Cat V1) - Standard Dist. SHARED OR NO POLE 4",5040,null,5040,"LED 298W Aldrige Luminaire (Cat V1) - Standard Dist.","SHARED OR NO POLE",4,null,null,1700,"7206.05.40",null,"LED0018-ST","3180","7206.05.82",null,null,null,"LED0013",null,"V"]
["7107.09.13","250W HPS Aeroscreen Roadster Lantern",null,250,null,null,"LED 298W Aldrige Luminaire (Cat V1) - Standard Dist. WOOD POLE 1",5050,null,5050,"LED 298W Aldrige Luminaire (Cat V1) - Standard Dist.","WOOD POLE",1,null,null,1710,"CFL42",null,"LED0018-ST","3190","7206.05.82",null,null,null,"LED0014",null,"V"]
["7107.09.18","250W HPS Sylflood Asymetric Streetlight",null,250,null,null,"LED 298W Aldrige Luminaire (Cat V1) - Standard Dist. WOOD POLE 2",5060,null,5060,"LED 298W Aldrige Luminaire (Cat V1) - Standard Dist.","WOOD POLE",2,null,null,1710,"7206.05.40",null,"LED0018-ST","3200","7206.05.82",null,null,null,"LED0015",null,"V"]
["7107.09.19","250W M/Halide Sylflood Asymetric Floodlight",null,250,null,null,"LED 298W Aldrige Luminaire (Cat V1) - Standard Dist. WOOD POLE 3",5070,null,5070,"LED 298W Aldrige Luminaire (Cat V1) - Standard Dist.","WOOD POLE",3,null,null,1720,"CFL42",null,"LED0018-ST","3220","7206.05.82",null,null,null,"LED0016",null,"V"]
["7107.09.21","400W HPS Roadster Lantern",null,400,null,null,"LED 298W Aldrige Luminaire (Cat V1) - Standard Dist. WOOD POLE 4",5080,null,5080,"LED 298W Aldrige Luminaire (Cat V1) - Standard Dist.","WOOD POLE",4,null,null,1720,"7206.05.40",null,"LED0018-ST","3260","7206.05.82",null,null,null,"LED0017",null,"V"]
["7107.09.23","400W M/Halide Roadster Lantern",null,400,null,null,"LED 298W Aldrige Luminaire (Cat V1) - Standard Dist. STEEL POLE 1",5090,null,5090,"LED 298W Aldrige Luminaire (Cat V1) - Standard Dist.","STEEL POLE",1,null,null,1730,"CFL42",null,"LED0001-ST","3300","7206.05.88"]
["7107.09.24","400W HPS Twin arc Roadster Lantern - COFFS HBR ONLY",null,400,null,null,"LED 298W Aldrige Luminaire (Cat V1) - Standard Dist. STEEL POLE 2",5100,null,5100,"LED 298W Aldrige Luminaire (Cat V1) - Standard Dist.","STEEL POLE",2,null,null,1730,"7206.05.40",null,"LED0001-ST","3340","7206.05.88",null,null,"LED0090-ST","LED0011"]
["7107.09.25","400W M/Halide Sylflood Asymetric Streetlight",null,400,null,null,"LED 298W Aldrige Luminaire (Cat V1) - Standard Dist. STEEL POLE 3",5110,null,5110,"LED 298W Aldrige Luminaire (Cat V1) - Standard Dist.","STEEL POLE",3,null,null,1740,"T5_2x14W",null,"LED0001-ST","3350","7206.05.88",null,null,"LED0040-ST","LED0001"]
["7107.09.26","400W HPS Sylflood  Asymetric Streetlight",null,400,null,null,"LED 298W Aldrige Luminaire (Cat V1) - Standard Dist. STEEL POLE 4",5120,null,5120,"LED 298W Aldrige Luminaire (Cat V1) - Standard Dist.","STEEL POLE",4,null,null,1750,"T5_2x14W",null,"LED0001-ST","3380","7206.05.88",null,null,"LED9999-ST","LED0014"]
["7107.09.27","400W M/Halide Sylflood Asymetric Floodlight",null,400,null,null,"LED 298W Aldrige Luminaire (Cat V1) - Standard Dist. R/BOUT COLUMN 2",5130,null,5130,"LED 298W Aldrige Luminaire (Cat V1) - Standard Dist.","R/BOUT COLUMN",2,null,null,1760,"T5_2x14W",null,"LED0003-ST","3540","7206.05.82",null,null,"LED0020-ST","LED0003"]
["7107.09.28","400W HPS Sylflood Asymetric Floodlight",null,400,null,null,"LED 298W Aldrige Luminaire (Cat V1) - Standard Dist. R/BOUT COLUMN 3",5140,null,5140,"LED 298W Aldrige Luminaire (Cat V1) - Standard Dist.","R/BOUT COLUMN",3,null,null,1770,"T5_2x14W",null,"LED0003-ST","3540","7206.05.82"]
["7107.09.3","70W HPS Suburban  S1",null,70,null,null,"LED 298W Aldrige Luminaire (Cat V1) - Standard Dist. R/BOUT COLUMN 4",5150,null,5150,"LED 298W Aldrige Luminaire (Cat V1) - Standard Dist.","R/BOUT COLUMN",4,null,null,1780,"T5_2x14W",null,"LED0003-ST","3550","7206.05.82"]
["7107.09.30","50W HPS Twin-arc Urban. Coffs Hbr only.",null,50,null,null,"NO CAPITALNO CAPITAL1",1,null,1,"NO CAPITAL","NO CAPITAL",1,null,null,1790,"T5_2x14W",null,"LED0003-ST","3580","7206.05.82"]
["7107.09.39","250W HPS Twin arc Roadster Aero - COFFS HBR ONLY",null,250,null,null,"MAINTENANCE COMPONENTNO CAPITAL1",5,null,5,"MAINTENANCE COMPONENT","NO CAPITAL",1,null,null,1800,"T5_2x14W",null,"LED0003-ST","3590","7206.05.82",null,null,"For New Assemblies (Not In Current Asset DB) The Mapping Codes Are CAPEX Assembly Codes"]
["7107.09.4","70W HPS Urban Aeroscreen Lantern",null,70,null,null,"MERCURY VAPOUR 80WSHARED OR NO POLE1",10,null,10,"MERCURY VAPOUR 80W","SHARED OR NO POLE",1,null,null,1810,"T5_2x14W",null,"LED0003-ST","3620","7206.05.82",null,null,"7107.09.11","HPS0110",250,"V"]
["7107.09.41","150W HPS Twin arc Roadster - COFFS HBR ONLY",null,70,null,null,"MERCURY VAPOUR 250W SHARED OR NO POLE1",20,null,20,"MERCURY VAPOUR 250W ","SHARED OR NO POLE",1,null,null,1820,"T5_2x14W",null,"LED0003-ST","3630","7206.05.82",null,null,"7107.09.13","HPS0110",250,"V"]
["7107.09.42","50W HPS Twin-arc Urban Aero. Coffs Hbr only.",null,50,null,null,"MERCURY VAPOUR 400WSHARED OR NO POLE1",30,null,30,"MERCURY VAPOUR 400W","SHARED OR NO POLE",1,null,null,1830,"T5_2x14W",null,null,null,null,null,null,"7107.09.18","HPS0110",250,"V"]
["7107.09.43","42W C/F Suburban Eco Lantern",null,42,null,null,"HIGH PRESSURE SODIUM 70W (100)SHARED OR NO POLE1",40,null,40,"HIGH PRESSURE SODIUM 70W (100)","SHARED OR NO POLE",1,null,null,1840,"T5_2x14W",null,"LED0006-ST","3940","7206.05.85",null,null,"7107.09.19","MHR0060",250,"V"]
["7107.09.44","70W HPS Twin Arc Urban Aeroscreen Lantern - COFFS HBR ONLY",null,70,null,null,"HIGH PRESSURE SODIUM 150WSHARED OR NO POLE1",50,null,50,"HIGH PRESSURE SODIUM 150W","SHARED OR NO POLE",1,null,null,1850,"T5_2x14W",null,"LED0012-ST","4710","7206.05.91",null,null,"7107.09.21","HPS0170",400,"V"]
["7107.09.47","42W C/F Suburban Eco Aeroscreen Lantern",null,42,null,null,"HIGH PRESSURE SODIUM 250W (210/220)SHARED OR NO POLE1",60,null,60,"HIGH PRESSURE SODIUM 250W (210/220)","SHARED OR NO POLE",1,null,null,1860,"T5_2x24W",null,null,null,null,null,null,"7107.09.23","MHR0070",400,"V"]
["7107.09.50","Floodlight sentry 1000W Metal/Halide (CENTRAL)",null,1000,null,null,"HIGH PRESSURE SODIUM 400W (310/360)SHARED OR NO POLE1",70,null,70,"HIGH PRESSURE SODIUM 400W (310/360)","SHARED OR NO POLE",1,null,null,1870,"T5_2x24W",null,"Handmade",null,null,null,null,"7107.09.24","HPS0170-TA",400,"V"]
["7107.09.51","Lantern Sentry 1000W Metal/Halide (CENTRAL)",null,1000,null,null,"HIGH PRESSURE SODIUM 50W TWIN ARCSHARED OR NO POLE1",80,null,80,"HIGH PRESSURE SODIUM 50W TWIN ARC","SHARED OR NO POLE",1,null,null,1880,"T5_2x24W",null,"FLU0355-ST",1980,"Compact_Fluro_32W",null,null,"7107.09.25","MHR0070",400,"V"]
["7107.09.52","400W M/Halide Roadster Aeroscreen",null,400,null,null,"HIGH PRESSURE SODIUM 70W TWIN ARCSHARED OR NO POLE1",90,null,90,"HIGH PRESSURE SODIUM 70W TWIN ARC","SHARED OR NO POLE",1,null,null,1890,"T5_2x24W",null,"INC0110-ST",null,"COMPMV80W",null,null,"7107.09.26","HPS0170",400,"V"]
["7107.09.53","250W HPS Sylflood Asymetric Nightwatch",null,250,null,null,"35W LOW PRESSURE SODIUMSHARED OR NO POLE1",100,null,100,"35W LOW PRESSURE SODIUM","SHARED OR NO POLE",1,null,null,1900,"T5_2x24W",null,"LED0040-ST",null,"7206.05.88",null,null,"7107.09.27","MHR0070",400,"V"]
["7107.09.54","250W M/Halide Sylflood Asymetric Streetlight",null,250,null,null,"BULKHEADS ETCSHARED OR NO POLE1",110,null,110,"BULKHEADS ETC","SHARED OR NO POLE",1,null,null,1910,"T5_2x24W",null,null,null,null,null,null,"7107.09.28","HPS0170",400,"V"]
["7107.09.55","250W HPS Sylflood Bisymetric Streetlight",null,250,null,null,"METAL HALIDE 1000W FLOODLIGHT SHARED OR NO POLE1",120,null,120,"METAL HALIDE 1000W FLOODLIGHT ","SHARED OR NO POLE",1,null,null,1920,"T5_2x24W",null,"CANNOT MAP AT THIS STAGE:",null,null,null,null,"7107.09.3","HPS0020",70,"P"]
["7107.09.56","250W HPS Sylflood Bisymetric Floodlight",null,250,null,null,"HIGH PRESSURE SODIUM 70W TWIN ARCWOOD POLE1",140,null,140,"HIGH PRESSURE SODIUM 70W TWIN ARC","WOOD POLE",1,null,null,1930,"T5_2x24W",null,"LED0090-ST",null,"LED0011",null,null,"7107.09.30","HPS0010",50,"P"]
["7107.09.57","250W M/Halide Sylflood Bisymetric Streetlight",null,250,null,null,"HIGH PRESSURE SODIUM 50W TWIN ARCWOOD POLE1",140,null,140,"HIGH PRESSURE SODIUM 50W TWIN ARC","WOOD POLE",1,null,null,1940,"T5_2x24W",null,"LED9999-ST",null,"LED0014",null,null,"7107.09.39","HPS0110-TA",250,"V"]
["7107.09.58","250W M/Halide Sylflood Bisymetric Floodlight",null,250,null,null,"35W LOW PRESSURE SODIUMWOOD POLE1",150,null,150,"35W LOW PRESSURE SODIUM","WOOD POLE",1,null,null,1950,"T5_2x24W",null,"LED0020-ST",null,"LED0003",null,null,"7107.09.4","HPS0020",70,"P"]
["7107.09.59","400W HPS Roadster Aeroscreen Lantern",null,400,null,null,"HIGH PRESSURE SODIUM 70W TWIN ARCSTEEL POLE1",170,null,170,"HIGH PRESSURE SODIUM 70W TWIN ARC","STEEL POLE",1,null,null,1960,"T5_2x24W",null,null,null,null,null,null,"7107.09.41","HPS0020-TA",70,"P"]
["7107.09.60","400W HPS Roadster Forward throw Lantern",null,400,null,null,"HIGH PRESSURE SODIUM 50W TWIN ARCSTEEL POLE1",170,null,170,"HIGH PRESSURE SODIUM 50W TWIN ARC","STEEL POLE",1,null,null,1970,"T5_2x24W",null,null,null,null,null,null,"7107.09.42","HPS0010-TA",50,"P"]
["7107.09.61","70W HPS Suburban Twin arc - COFFS HBR ONLY",null,70,null,null,"35W LOW PRESSURE SODIUMSTEEL POLE1",180,null,180,"35W LOW PRESSURE SODIUM","STEEL POLE",1,null,null,1980,"CFL32",null,null,null,null,null,null,"7107.09.43","FLU0350",42,"P"]
["7107.09.7","150W HPS Roadster Lantern",null,150,null,null,"HIGH PRESSURE SODIUM 600W HIGH MASTSHARED OR NO POLE1",190,null,190,"HIGH PRESSURE SODIUM 600W HIGH MAST","SHARED OR NO POLE",1,null,null,1990,"CFL32",null,null,null,null,null,null,"7107.09.44","HPS0020-TA",70,"P"]
["7107.09.9","150W HPS Roadster Aero",null,150,null,null,"MERCURY VAPOUR 250W WOOD POLE1",200,null,200,"MERCURY VAPOUR 250W ","WOOD POLE",1,null,null,2000,"CFL32",null,null,null,null,null,null,"7107.09.47","FLU0350",42,"P"]
[null,null,null,null,null,null,"MERCURY VAPOUR 400WWOOD POLE1",210,null,210,"MERCURY VAPOUR 400W","WOOD POLE",1,null,null,2010,"CFL32",null,null,null,null,null,null,"7107.09.50","MHR0100",1000,"V"]
[null,null,null,null,null,null,"HIGH PRESSURE SODIUM 150WWOOD POLE1",220,null,220,"HIGH PRESSURE SODIUM 150W","WOOD POLE",1,null,null,2020,"CFL32",null,null,null,null,null,null,"7107.09.51","MHR0100",1000,"V"]
[null,null,null,null,null,null,"HIGH PRESSURE SODIUM 250W (210/220)WOOD POLE1",230,null,230,"HIGH PRESSURE SODIUM 250W (210/220)","WOOD POLE",1,null,null,2030,"CFL32",null,null,null,null,null,null,"7107.09.52","MHR0070",400,"V"]
[null,null,null,null,null,null,"HIGH PRESSURE SODIUM 400W (310/360)WOOD POLE1",240,null,240,"HIGH PRESSURE SODIUM 400W (310/360)","WOOD POLE",1,null,null,2040,"CFL32",null,null,null,null,null,null,"7107.09.53","HPS0110",250,"V"]
[null,null,null,null,null,null,"HIGH PRESSURE SODIUM 600W HIGH MASTWOOD POLE1",250,null,250,"HIGH PRESSURE SODIUM 600W HIGH MAST","WOOD POLE",1,null,null,2050,"CFL32",null,null,null,null,null,null,"7107.09.54","MHR0060",250,"V"]
[null,null,null,null,null,null,"METAL HALIDE/HPS 400W FLOOD (310/360)R/BOUT COLUMN2",260,null,260,"METAL HALIDE/HPS 400W FLOOD (310/360)","R/BOUT COLUMN",2,null,null,2060,"CFL32",null,null,null,null,null,null,"7107.09.55","HPS0110",250,"V"]
[null,null,null,null,null,null,"METAL HALIDE/HPS 400W FLOOD (310/360)R/BOUT COLUMN3",270,null,270,"METAL HALIDE/HPS 400W FLOOD (310/360)","R/BOUT COLUMN",3,null,null,2070,"CFL32",null,null,null,null,null,null,"7107.09.56","HPS0110",250,"V"]
[null,null,null,null,null,null,"METAL HALIDE/HPS 400W FLOOD (310/360)R/BOUT COLUMN4",280,null,280,"METAL HALIDE/HPS 400W FLOOD (310/360)","R/BOUT COLUMN",4,null,null,2080,"CFL32",null,null,null,null,null,null,"7107.09.57","MHR0060",250,"V"]
[null,null,null,null,null,null,"MERCURY VAPOUR 250W STEEL POLE1",290,null,290,"MERCURY VAPOUR 250W ","STEEL POLE",1,null,null,2090,"CFL32",null,null,null,null,null,null,"7107.09.58","MHR0060",250,"V"]
[null,null,null,null,null,null,"MERCURY VAPOUR 400WSTEEL POLE1",300,null,300,"MERCURY VAPOUR 400W","STEEL POLE",1,null,null,7080,"CFL42",null,null,null,null,null,null,"7107.09.59","HPS0170",400,"V"]
[null,null,null,null,null,null,"HIGH PRESSURE SODIUM 150WSTEEL POLE1",310,null,310,"HIGH PRESSURE SODIUM 150W","STEEL POLE",1,null,null,7080,"7206.05.40",null,null,null,null,null,null,"7107.09.60","HPS0170",400,"V"]
[null,null,null,null,null,null,"HIGH PRESSURE SODIUM 250W (210/220)STEEL POLE1",320,null,320,"HIGH PRESSURE SODIUM 250W (210/220)","STEEL POLE",1,null,null,7090,"CFL42",null,null,null,null,null,null,"7107.09.61","HPS0020-TA",70,"P"]
[null,null,null,null,null,null,"HIGH PRESSURE SODIUM 400W (310/360)STEEL POLE1",330,null,330,"HIGH PRESSURE SODIUM 400W (310/360)","STEEL POLE",1,null,null,7090,"7206.05.40",null,null,null,null,null,null,"7107.09.7","HPS0090",150,"V"]
[null,null,null,null,null,null,"HIGH PRESSURE SODIUM 600W HIGH MASTSTEEL POLE1",340,null,340,"HIGH PRESSURE SODIUM 600W HIGH MAST","STEEL POLE",1,null,null,7130,"CFL42",null,null,null,null,null,null,"7107.09.9","HPS0090",150,"V"]
[null,null,null,null,null,null,"HIGH PRESSURE SODIUM 70W (100)WOOD POLE1",350,null,350,"HIGH PRESSURE SODIUM 70W (100)","WOOD POLE",1,null,null,7130,"7206.05.40"]
[null,null,null,null,null,null,"HIGH PRESSURE SODIUM 70W (100)STEEL POLE1",360,null,360,"HIGH PRESSURE SODIUM 70W (100)","STEEL POLE",1,null,null,7140,"CFL42"]
[null,null,null,null,null,null,"MERCURY VAPOUR 250W STEEL POLE2",370,null,370,"MERCURY VAPOUR 250W ","STEEL POLE",2,null,null,7140,"7206.05.40"]
[null,null,null,null,null,null,"MERCURY VAPOUR 400WSTEEL POLE2",380,null,380,"MERCURY VAPOUR 400W","STEEL POLE",2,null,null,7160,"CFL42"]
[null,null,null,null,null,null,"HIGH PRESSURE SODIUM 250W (210/220)STEEL POLE2",390,null,390,"HIGH PRESSURE SODIUM 250W (210/220)","STEEL POLE",2,null,null,7160,"7206.05.40"]
[null,null,null,null,null,null,"HIGH PRESSURE SODIUM 400W (310/360)STEEL POLE2",400,null,400,"HIGH PRESSURE SODIUM 400W (310/360)","STEEL POLE",2,null,null,7170,"CFL42"]
[null,null,null,null,null,null,"MERCURY VAPOUR 250W STEEL POLE3",410,null,410,"MERCURY VAPOUR 250W ","STEEL POLE",3,null,null,7170,"7206.05.40"]
[null,null,null,null,null,null,"MERCURY VAPOUR 400WSTEEL POLE3",420,null,420,"MERCURY VAPOUR 400W","STEEL POLE",3,null,null,8090,"RexelOptispanMinor"]
[null,null,null,null,null,null,"HIGH PRESSURE SODIUM 250W (210/220)STEEL POLE3",430,null,430,"HIGH PRESSURE SODIUM 250W (210/220)","STEEL POLE",3,null,null,8140,"RexelOptispanMinor"]
[null,null,null,null,null,null,"HIGH PRESSURE SODIUM 400W (310/360)STEEL POLE3",440,null,440,"HIGH PRESSURE SODIUM 400W (310/360)","STEEL POLE",3,null,null,8170,"RexelOptispanMinor"]
[null,null,null,null,null,null,"MERCURY VAPOUR 250W STEEL POLE4",450,null,450,"MERCURY VAPOUR 250W ","STEEL POLE",4]
[null,null,null,null,null,null,"MERCURY VAPOUR 400W STEEL POLE4",460,null,460,"MERCURY VAPOUR 400W ","STEEL POLE",4,null,null,"ADDED LEDS:"]
[null,null,null,null,null,null,"HIGH PRESSURE SODIUM 250W (210/220)STEEL POLE4",470,null,470,"HIGH PRESSURE SODIUM 250W (210/220)","STEEL POLE",4]
[null,null,null,null,null,null,"HIGH PRESSURE SODIUM 400W (310/360)STEEL POLE4",480,null,480,"HIGH PRESSURE SODIUM 400W (310/360)","STEEL POLE",4,null,null,1,"7206.05.85"]
[null,null,null,null,null,null,"MERCURY VAPOUR 250W R/BOUT COLUMN2",490,null,490,"MERCURY VAPOUR 250W ","R/BOUT COLUMN",2,null,null,"3060","7206.05.85"]
[null,null,null,null,null,null,"MERCURY VAPOUR 400WR/BOUT COLUMN2",500,null,500,"MERCURY VAPOUR 400W","R/BOUT COLUMN",2,null,null,"3060","7206.05.85"]
[null,null,null,null,null,null,"HIGH PRESSURE SODIUM 250W (210/220)R/BOUT COLUMN2",510,null,510,"HIGH PRESSURE SODIUM 250W (210/220)","R/BOUT COLUMN",2,null,null,"3060","7206.05.85"]
[null,null,null,null,null,null,"HIGH PRESSURE SODIUM 400W (310/360)R/BOUT COLUMN2",520,null,520,"HIGH PRESSURE SODIUM 400W (310/360)","R/BOUT COLUMN",2,null,null,"3070","7206.05.85"]
[null,null,null,null,null,null,"MERCURY VAPOUR 250W R/BOUT COLUMN3",530,null,530,"MERCURY VAPOUR 250W ","R/BOUT COLUMN",3,null,null,"3100","7206.05.85"]
[null,null,null,null,null,null,"MERCURY VAPOUR 400WR/BOUT COLUMN3",540,null,540,"MERCURY VAPOUR 400W","R/BOUT COLUMN",3,null,null,"3100","7206.05.85"]
[null,null,null,null,null,null,"HIGH PRESSURE SODIUM 250W (210/220)R/BOUT COLUMN3",550,null,550,"HIGH PRESSURE SODIUM 250W (210/220)","R/BOUT COLUMN",3,null,null,"3110","7206.05.85"]
[null,null,null,null,null,null,"HIGH PRESSURE SODIUM 400W (310/360)R/BOUT COLUMN3",560,null,560,"HIGH PRESSURE SODIUM 400W (310/360)","R/BOUT COLUMN",3,null,null,"3140","7206.05.85"]
[null,null,null,null,null,null,"MERCURY VAPOUR 250W R/BOUT COLUMN4",570,null,570,"MERCURY VAPOUR 250W ","R/BOUT COLUMN",4,null,null,"3140","7206.05.85"]
[null,null,null,null,null,null,"MERCURY VAPOUR 400WR/BOUT COLUMN4",580,null,580,"MERCURY VAPOUR 400W","R/BOUT COLUMN",4,null,null,"3150","7206.05.85"]
[null,null,null,null,null,null,"HIGH PRESSURE SODIUM 250W (210/220)R/BOUT COLUMN4",590,null,590,"HIGH PRESSURE SODIUM 250W (210/220)","R/BOUT COLUMN",4,null,null,"3180","7206.05.82"]
[null,null,null,null,null,null,"HIGH PRESSURE SODIUM 400W (310/360)R/BOUT COLUMN4",600,null,600,"HIGH PRESSURE SODIUM 400W (310/360)","R/BOUT COLUMN",4,null,null,"3180","7206.05.82"]
[null,null,null,null,null,null,"METAL HALIDE/HPS 250W FLOOD (210/220)SHARED OR NO POLE1",610,null,610,"METAL HALIDE/HPS 250W FLOOD (210/220)","SHARED OR NO POLE",1,null,null,"3190","7206.05.82"]
[null,null,null,null,null,null,"METAL HALIDE/HPS 400W FLOOD (310/360)SHARED OR NO POLE1",620,null,620,"METAL HALIDE/HPS 400W FLOOD (310/360)","SHARED OR NO POLE",1,null,null,"3200","7206.05.82"]
[null,null,null,null,null,null,"METAL HALIDE/HPS 250W FLOOD (210/220)SHARED OR NO POLE1",630,null,630,"METAL HALIDE/HPS 250W FLOOD (210/220)","SHARED OR NO POLE",1,null,null,"3220","7206.05.82"]
[null,null,null,null,null,null,"METAL HALIDE/HPS 400W FLOOD (310/360)SHARED OR NO POLE1",640,null,640,"METAL HALIDE/HPS 400W FLOOD (310/360)","SHARED OR NO POLE",1,null,null,"3260","7206.05.82"]
[null,null,null,null,null,null,"METAL HALIDE/HPS 250W FLOOD (210/220)SHARED OR NO POLE2",650,null,650,"METAL HALIDE/HPS 250W FLOOD (210/220)","SHARED OR NO POLE",2,null,null,"3300","7206.05.88"]
[null,null,null,null,null,null,"METAL HALIDE/HPS 400W FLOOD (310/360)SHARED OR NO POLE2",660,null,660,"METAL HALIDE/HPS 400W FLOOD (310/360)","SHARED OR NO POLE",2,null,null,"3340","7206.05.88"]
[null,null,null,null,null,null,"METAL HALIDE/HPS 250W FLOOD (210/220)SHARED OR NO POLE2",670,null,670,"METAL HALIDE/HPS 250W FLOOD (210/220)","SHARED OR NO POLE",2,null,null,"3350","7206.05.88"]
[null,null,null,null,null,null,"METAL HALIDE/HPS 400W FLOOD (310/360)SHARED OR NO POLE2",680,null,680,"METAL HALIDE/HPS 400W FLOOD (310/360)","SHARED OR NO POLE",2,null,null,"3380","7206.05.88"]
[null,null,null,null,null,null,"HIGH PRESSURE SODIUM 150WSTEEL POLE2",690,null,690,"HIGH PRESSURE SODIUM 150W","STEEL POLE",2,null,null,"3540","7206.05.82"]
[null,null,null,null,null,null,"HIGH PRESSURE SODIUM 600W HIGH MASTWOOD POLE2",700,null,700,"HIGH PRESSURE SODIUM 600W HIGH MAST","WOOD POLE",2,null,null,"3540","7206.05.82"]
[null,null,null,null,null,null,"HIGH PRESSURE SODIUM 150WSTEEL POLE3",710,null,710,"HIGH PRESSURE SODIUM 150W","STEEL POLE",3,null,null,"3550","7206.05.82"]
[null,null,null,null,null,null,"HIGH PRESSURE SODIUM 150WSTEEL POLE4",720,null,720,"HIGH PRESSURE SODIUM 150W","STEEL POLE",4,null,null,"3580","7206.05.82"]
[null,null,null,null,null,null,"HIGH PRESSURE SODIUM 70W (100)STEEL POLE2",730,null,730,"HIGH PRESSURE SODIUM 70W (100)","STEEL POLE",2,null,null,"3590","7206.05.82"]
[null,null,null,null,null,null,"MERCURY VAPOUR 80WSHARED OR NO POLE2",740,null,740,"MERCURY VAPOUR 80W","SHARED OR NO POLE",2,null,null,"3620","7206.05.82"]
[null,null,null,null,null,null,"HIGH PRESSURE SODIUM 70W (100)SHARED OR NO POLE3",750,null,750,"HIGH PRESSURE SODIUM 70W (100)","SHARED OR NO POLE",3,null,null,"3630","7206.05.82"]
[null,null,null,null,null,null,"HIGH PRESSURE SODIUM 250W (210/220)WOOD POLE2",760,null,760,"HIGH PRESSURE SODIUM 250W (210/220)","WOOD POLE",2,null,null,"3940","7206.05.85"]
[null,null,null,null,null,null,"HIGH PRESSURE SODIUM 400W (310/360)WOOD POLE2",770,null,770,"HIGH PRESSURE SODIUM 400W (310/360)","WOOD POLE",2,null,null,"4710","7206.05.91"]
[null,null,null,null,null,null,"MERCURY VAPOUR 250W WOOD POLE2",780,null,780,"MERCURY VAPOUR 250W ","WOOD POLE",2]
[null,null,null,null,null,null,"MERCURY VAPOUR 400WWOOD POLE2",790,null,790,"MERCURY VAPOUR 400W","WOOD POLE",2]
[null,null,null,null,null,null,"SV 600W HIGH MASTR/BOUT COLUMN6",800,null,800,"SV 600W HIGH MAST","R/BOUT COLUMN",6]
[null,null,null,null,null,null,"MERCURY VAPOUR 80WWOOD POLE1",810,null,810,"MERCURY VAPOUR 80W","WOOD POLE",1]
[null,null,null,null,null,null,"MERCURY VAPOUR 80WSHARED OR NO POLE3",820,null,820,"MERCURY VAPOUR 80W","SHARED OR NO POLE",3]
[null,null,null,null,null,null,"MERCURY VAPOUR 80WSHARED OR NO POLE4",830,null,830,"MERCURY VAPOUR 80W","SHARED OR NO POLE",4]
[null,null,null,null,null,null,"METAL HALIDE 1000W FLOODLIGHT R/BOUT COLUMN3",840,null,840,"METAL HALIDE 1000W FLOODLIGHT ","R/BOUT COLUMN",3]
[null,null,null,null,null,null,"METAL HALIDE 1000W FLOODLIGHT R/BOUT COLUMN2",850,null,850,"METAL HALIDE 1000W FLOODLIGHT ","R/BOUT COLUMN",2]
[null,null,null,null,null,null,"HIGH PRESSURE SODIUM 2X250 W OR 2X400 W FLOODR/BOUT COLUMN3",860,null,860,"HIGH PRESSURE SODIUM 2X250 W OR 2X400 W FLOOD","R/BOUT COLUMN",3]
[null,null,null,null,null,null,"HIGH PRESSURE SODIUM 2X250 W OR 2X400 W FLOODR/BOUT COLUMN4",870,null,870,"HIGH PRESSURE SODIUM 2X250 W OR 2X400 W FLOOD","R/BOUT COLUMN",4]
[null,null,null,null,null,null,"HIGH PRESSURE SODIUM 70W (100)STEEL POLE4",880,null,880,"HIGH PRESSURE SODIUM 70W (100)","STEEL POLE",4]
[null,null,null,null,null,null,"HIGH PRESSURE SODIUM 70W (100)SHARED OR NO POLE2",890,null,890,"HIGH PRESSURE SODIUM 70W (100)","SHARED OR NO POLE",2]
[null,null,null,null,null,null,"METAL HALIDE/HPS 400W FLOOD (310/360)WOOD POLE2",900,null,900,"METAL HALIDE/HPS 400W FLOOD (310/360)","WOOD POLE",2]
[null,null,null,null,null,null,"HIGH PRESSURE SODIUM 70W (100)WOOD POLE2",910,null,910,"HIGH PRESSURE SODIUM 70W (100)","WOOD POLE",2]
[null,null,null,null,null,null,"HIGH PRESSURE SODIUM 70W (100)SHARED OR NO POLE4",920,null,920,"HIGH PRESSURE SODIUM 70W (100)","SHARED OR NO POLE",4]
[null,null,null,null,null,null,"HIGH PRESSURE SODIUM 250W (210/220)WOOD POLE3",930,null,930,"HIGH PRESSURE SODIUM 250W (210/220)","WOOD POLE",3]
[null,null,null,null,null,null,"MERCURY VAPOUR 250W SHARED OR NO POLE2",940,null,940,"MERCURY VAPOUR 250W ","SHARED OR NO POLE",2]
[null,null,null,null,null,null,"MERCURY VAPOUR 400WSHARED OR NO POLE2",950,null,950,"MERCURY VAPOUR 400W","SHARED OR NO POLE",2]
[null,null,null,null,null,null,"HIGH PRESSURE SODIUM 250W (210/220)SHARED OR NO POLE2",960,null,960,"HIGH PRESSURE SODIUM 250W (210/220)","SHARED OR NO POLE",2]
[null,null,null,null,null,null,"HIGH PRESSURE SODIUM 250W (210/220)SHARED OR NO POLE4",970,null,970,"HIGH PRESSURE SODIUM 250W (210/220)","SHARED OR NO POLE",4]
[null,null,null,null,null,null,"HIGH PRESSURE SODIUM 150WWOOD POLE2",980,null,980,"HIGH PRESSURE SODIUM 150W","WOOD POLE",2]
[null,null,null,null,null,null,"MERCURY VAPOUR 80WSTEEL POLE1",990,null,990,"MERCURY VAPOUR 80W","STEEL POLE",1]
[null,null,null,null,null,null,"MERCURY VAPOUR 80WSTEEL POLE2",1000,null,1000,"MERCURY VAPOUR 80W","STEEL POLE",2]
[null,null,null,null,null,null,"HIGH PRESSURE SODIUM 150WSHARED OR NO POLE2",1010,null,1010,"HIGH PRESSURE SODIUM 150W","SHARED OR NO POLE",2]
[null,null,null,null,null,null,"HIGH PRESSURE SODIUM 250W (210/220)SHARED OR NO POLE3",1020,null,1020,"HIGH PRESSURE SODIUM 250W (210/220)","SHARED OR NO POLE",3]
[null,null,null,null,null,null,"HIGH PRESSURE SODIUM 400W (310/360)SHARED OR NO POLE2",1030,null,1030,"HIGH PRESSURE SODIUM 400W (310/360)","SHARED OR NO POLE",2]
[null,null,null,null,null,null,"METAL HALIDE 1000W FLOODLIGHT SHARED OR NO POLE2",1040,null,1040,"METAL HALIDE 1000W FLOODLIGHT ","SHARED OR NO POLE",2]
[null,null,null,null,null,null,"METAL HALIDE 1000W FLOODLIGHT R/BOUT COLUMN4",1050,null,1050,"METAL HALIDE 1000W FLOODLIGHT ","R/BOUT COLUMN",4]
[null,null,null,null,null,null,"HIGH PRESSURE SODIUM 400W (310/360)WOOD POLE4",1060,null,1060,"HIGH PRESSURE SODIUM 400W (310/360)","WOOD POLE",4]
[null,null,null,null,null,null,"METAL HALIDE/HPS 250W FLOOD (210/220)WOOD POLE1",1070,null,1070,"METAL HALIDE/HPS 250W FLOOD (210/220)","WOOD POLE",1]
[null,null,null,null,null,null,"METAL HALIDE/HPS 400W FLOOD (310/360)WOOD POLE1",1100,null,1100,"METAL HALIDE/HPS 400W FLOOD (310/360)","WOOD POLE",1]
[null,null,null,null,null,null,"METAL HALIDE/HPS 400W FLOOD (310/360)SHARED OR NO POLE2",1080,null,1080,"METAL HALIDE/HPS 400W FLOOD (310/360)","SHARED OR NO POLE",2]
[null,null,null,null,null,null,"METAL HALIDE/HPS 400W FLOOD (310/360)WOOD POLE1",1100,null,1100,"METAL HALIDE/HPS 400W FLOOD (310/360)","WOOD POLE",1]
[null,null,null,null,null,null,"METAL HALIDE 1000W FLOODLIGHT WOOD POLE1",1110,null,1110,"METAL HALIDE 1000W FLOODLIGHT ","WOOD POLE",1]
[null,null,null,null,null,null,"METAL HALIDE/HPS 250W FLOOD (210/220)STEEL POLE1",1120,null,1120,"METAL HALIDE/HPS 250W FLOOD (210/220)","STEEL POLE",1]
[null,null,null,null,null,null,"METAL HALIDE/HPS 400W FLOOD (310/360)STEEL POLE2",1130,null,1130,"METAL HALIDE/HPS 400W FLOOD (310/360)","STEEL POLE",2]
[null,null,null,null,null,null,"METAL HALIDE/HPS 250W FLOOD (210/220)STEEL POLE2",1140,null,1140,"METAL HALIDE/HPS 250W FLOOD (210/220)","STEEL POLE",2]
[null,null,null,null,null,null,"METAL HALIDE/HPS 250W FLOOD (210/220)STEEL POLE3",1150,null,1150,"METAL HALIDE/HPS 250W FLOOD (210/220)","STEEL POLE",3]
[null,null,null,null,null,null,"METAL HALIDE/HPS 250W FLOOD (210/220)WOOD POLE2",1160,null,1160,"METAL HALIDE/HPS 250W FLOOD (210/220)","WOOD POLE",2]
[null,null,null,null,null,null,"METAL HALIDE/HPS 400W FLOOD (310/360)STEEL POLE1",1170,null,1170,"METAL HALIDE/HPS 400W FLOOD (310/360)","STEEL POLE",1]
[null,null,null,null,null,null,"HIGH PRESSURE SODIUM 70W TWIN ARCSHARED OR NO POLE2",1180,null,1180,"HIGH PRESSURE SODIUM 70W TWIN ARC","SHARED OR NO POLE",2]
[null,null,null,null,null,null,"HIGH PRESSURE SODIUM 70W TWIN ARCSHARED OR NO POLE3",1190,null,1190,"HIGH PRESSURE SODIUM 70W TWIN ARC","SHARED OR NO POLE",3]
[null,null,null,null,null,null,"HIGH PRESSURE SODIUM 70W TWIN ARCSHARED OR NO POLE4",1200,null,1200,"HIGH PRESSURE SODIUM 70W TWIN ARC","SHARED OR NO POLE",4]
[null,null,null,null,null,null,"HIGH PRESSURE SODIUM 70W TWIN ARCWOOD POLE2",1210,null,1210,"HIGH PRESSURE SODIUM 70W TWIN ARC","WOOD POLE",2]
[null,null,null,null,null,null,"HIGH PRESSURE SODIUM 70W TWIN ARCSTEEL POLE2",1220,null,1220,"HIGH PRESSURE SODIUM 70W TWIN ARC","STEEL POLE",2]
[null,null,null,null,null,null,"HIGH PRESSURE SODIUM 70W TWIN ARCSTEEL POLE3",1230,null,1230,"HIGH PRESSURE SODIUM 70W TWIN ARC","STEEL POLE",3]
[null,null,null,null,null,null,"HIGH PRESSURE SODIUM 70W TWIN ARCSTEEL POLE4",1240,null,1240,"HIGH PRESSURE SODIUM 70W TWIN ARC","STEEL POLE",4]
[null,null,null,null,null,null,"METAL HALIDE/HPS 400W FLOOD (310/360)WOOD POLE3",1250,null,1250,"METAL HALIDE/HPS 400W FLOOD (310/360)","WOOD POLE",3]
[null,null,null,null,null,null,"MERCURY VAPOUR 80WWOOD POLE2",1260,null,1260,"MERCURY VAPOUR 80W","WOOD POLE",2]
[null,null,null,null,null,null,"METAL HALIDE 250W BOSTON 3STEEL POLE1",1270,null,1270,"METAL HALIDE 250W BOSTON 3","STEEL POLE",1]
[null,null,null,null,null,null,"METAL HALIDE 250W BOSTON 3STEEL POLE2",1280,null,1280,"METAL HALIDE 250W BOSTON 3","STEEL POLE",2]
[null,null,null,null,null,null,"METAL HALIDE 250W BOSTON 3STEEL POLE4",1290,null,1290,"METAL HALIDE 250W BOSTON 3","STEEL POLE",4]
[null,null,null,null,null,null,"HIGH PRESSURE SODIUM DECORATIVE 150WSTEEL POLE1",1300,null,1300,"HIGH PRESSURE SODIUM DECORATIVE 150W","STEEL POLE",1]
[null,null,null,null,null,null,"HIGH PRESSURE SODIUM DECORATIVE 150WSTEEL POLE2",1310,null,1310,"HIGH PRESSURE SODIUM DECORATIVE 150W","STEEL POLE",2]
[null,null,null,null,null,null,"HIGH PRESSURE SODIUM DECORATIVE 150WSTEEL POLE4",1320,null,1320,"HIGH PRESSURE SODIUM DECORATIVE 150W","STEEL POLE",4]
[null,null,null,null,null,null,"HIGH PRESSURE SODIUM DECORATIVE 250W (210/220)STEEL POLE1",1330,null,1330,"HIGH PRESSURE SODIUM DECORATIVE 250W (210/220)","STEEL POLE",1]
[null,null,null,null,null,null,"HIGH PRESSURE SODIUM DECORATIVE 250W (210/220)STEEL POLE2",1340,null,1340,"HIGH PRESSURE SODIUM DECORATIVE 250W (210/220)","STEEL POLE",2]
[null,null,null,null,null,null,"HIGH PRESSURE SODIUM DECORATIVE 250W (210/220)STEEL POLE4",1350,null,1350,"HIGH PRESSURE SODIUM DECORATIVE 250W (210/220)","STEEL POLE",4]
[null,null,null,null,null,null,"HIGH PRESSURE SODIUM 150WR/BOUT COLUMN3",1360,null,1360,"HIGH PRESSURE SODIUM 150W","R/BOUT COLUMN",3]
[null,null,null,null,null,null,"HIGH PRESSURE SODIUM 150WR/BOUT COLUMN4",1370,null,1370,"HIGH PRESSURE SODIUM 150W","R/BOUT COLUMN",4]
[null,null,null,null,null,null,"METAL HALIDE/HPS 250W FLOOD (210/220)R/BOUT COLUMN3",1380,null,1380,"METAL HALIDE/HPS 250W FLOOD (210/220)","R/BOUT COLUMN",3]
[null,null,null,null,null,null,"METAL HALIDE/HPS 250W FLOOD (210/220)R/BOUT COLUMN4",1450,null,1450,"METAL HALIDE/HPS 250W FLOOD (210/220)","R/BOUT COLUMN",4]
[null,null,null,null,null,null,"MERCURY VAPOUR 80WSTEEL POLE3",1460,null,1460,"MERCURY VAPOUR 80W","STEEL POLE",3]
[null,null,null,null,null,null,"HIGH PRESSURE SODIUM 3X400 W POST TOPR/BOUT COLUMN1",1470,null,1470,"HIGH PRESSURE SODIUM 3X400 W POST TOP","R/BOUT COLUMN",1]
[null,null,null,null,null,null,"HIGH PRESSURE SODIUM 1X400 W POST TOPR/BOUT COLUMN1",1480,null,1480,"HIGH PRESSURE SODIUM 1X400 W POST TOP","R/BOUT COLUMN",1]
[null,null,null,null,null,null,"HIGH PRESSURE SODIUM 2X250 W OR 2X400 W FLOODR/BOUT COLUMN2",1490,null,1490,"HIGH PRESSURE SODIUM 2X250 W OR 2X400 W FLOOD","R/BOUT COLUMN",2]
[null,null,null,null,null,null,"MERCURY VAPOUR 80WSTEEL POLE4",1500,null,1500,"MERCURY VAPOUR 80W","STEEL POLE",4]
[null,null,null,null,null,null,"KENSINGTON 80 WSTEEL POLE1",1600,null,1600,"KENSINGTON 80 W","STEEL POLE",1]
[null,null,null,null,null,null,"NOSTALGIA 80 WSTEEL POLE1",1610,null,1610,"NOSTALGIA 80 W","STEEL POLE",1]
[null,null,null,null,null,null,"REXEL OPTISPAN MINOR CFL57SHARED OR NO POLE1",7090,null,7090,"REXEL OPTISPAN MINOR CFL57","SHARED OR NO POLE",1]
[null,null,null,null,null,null,"REXEL OPTISPAN MINOR CFL57WOOD POLE1",7140,null,7140,"REXEL OPTISPAN MINOR CFL57","WOOD POLE",1]
[null,null,null,null,null,null,"REXEL OPTISPAN MINOR CFL57STEEL POLE1",7170,null,7170,"REXEL OPTISPAN MINOR CFL57","STEEL POLE",1]
[null,null,null,null,null,null,"REXEL OPTISPAN MINOR 70 HPSSHARED OR NO POLE1",8090,null,8090,"REXEL OPTISPAN MINOR 70 HPS","SHARED OR NO POLE",1]
[null,null,null,null,null,null,"REXEL OPTISPAN MINOR 70 HPSWOOD POLE1",8140,null,8140,"REXEL OPTISPAN MINOR 70 HPS","WOOD POLE",1]
[null,null,null,null,null,null,"REXEL OPTISPAN MINOR 70 HPSSTEEL POLE1",8170,null,8170,"REXEL OPTISPAN MINOR 70 HPS","STEEL POLE",1]
[null,null,null,null,null,null,"2000 W MH FLOODLIGHT SHARED OR NO POLE1",8180,null,8180,"2000 W MH FLOODLIGHT ","SHARED OR NO POLE",1]
[null,null,null,null,null,null,"2000 W MH FLOODLIGHT SHARED OR NO POLE1",8190,null,8190,"2000 W MH FLOODLIGHT ","SHARED OR NO POLE",1]
[null,null,null,null,null,null,"2000 W MH FLOODLIGHT SHARED OR NO POLE1",8200,null,8200,"2000 W MH FLOODLIGHT ","SHARED OR NO POLE",1]
[null,null,null,null,null,null,"COMPACT FLUORESCENT 42WSHARED OR NO POLE1",1620,null,1620,"COMPACT FLUORESCENT 42W","SHARED OR NO POLE",1]
[null,null,null,null,null,null,"COMPACT FLUORESCENT 42WSHARED OR NO POLE2",1630,null,1630,"COMPACT FLUORESCENT 42W","SHARED OR NO POLE",2]
[null,null,null,null,null,null,"COMPACT FLUORESCENT 42WSHARED OR NO POLE3",1640,null,1640,"COMPACT FLUORESCENT 42W","SHARED OR NO POLE",3]
[null,null,null,null,null,null,"COMPACT FLUORESCENT 42WSHARED OR NO POLE4",1650,null,1650,"COMPACT FLUORESCENT 42W","SHARED OR NO POLE",4]
[null,null,null,null,null,null,"COMPACT FLUORESCENT 42WWOOD POLE1",1660,null,1660,"COMPACT FLUORESCENT 42W","WOOD POLE",1]
[null,null,null,null,null,null,"COMPACT FLUORESCENT 42WWOOD POLE2",1670,null,1670,"COMPACT FLUORESCENT 42W","WOOD POLE",2]
[null,null,null,null,null,null,"COMPACT FLUORESCENT 42WWOOD POLE3",1680,null,1680,"COMPACT FLUORESCENT 42W","WOOD POLE",3]
[null,null,null,null,null,null,"COMPACT FLUORESCENT 42WWOOD POLE4",1690,null,1690,"COMPACT FLUORESCENT 42W","WOOD POLE",4]
[null,null,null,null,null,null,"COMPACT FLUORESCENT 42WSTEEL POLE1",1700,null,1700,"COMPACT FLUORESCENT 42W","STEEL POLE",1]
[null,null,null,null,null,null,"COMPACT FLUORESCENT 42WSTEEL POLE2",1710,null,1710,"COMPACT FLUORESCENT 42W","STEEL POLE",2]
[null,null,null,null,null,null,"COMPACT FLUORESCENT 42WSTEEL POLE3",1720,null,1720,"COMPACT FLUORESCENT 42W","STEEL POLE",3]
[null,null,null,null,null,null,"COMPACT FLUORESCENT 42WSTEEL POLE4",1730,null,1730,"COMPACT FLUORESCENT 42W","STEEL POLE",4]
[null,null,null,null,null,null,"COMPACT FLUORESCENT 32WSHARED OR NO POLE1",1980,null,1980,"COMPACT FLUORESCENT 32W","SHARED OR NO POLE",1]
[null,null,null,null,null,null,"COMPACT FLUORESCENT 32WSHARED OR NO POLE2",1990,null,1990,"COMPACT FLUORESCENT 32W","SHARED OR NO POLE",2]
[null,null,null,null,null,null,"COMPACT FLUORESCENT 32WSHARED OR NO POLE3",2000,null,2000,"COMPACT FLUORESCENT 32W","SHARED OR NO POLE",3]
[null,null,null,null,null,null,"COMPACT FLUORESCENT 32WSHARED OR NO POLE4",2010,null,2010,"COMPACT FLUORESCENT 32W","SHARED OR NO POLE",4]
[null,null,null,null,null,null,"COMPACT FLUORESCENT 32WWOOD POLE1",2020,null,2020,"COMPACT FLUORESCENT 32W","WOOD POLE",1]
[null,null,null,null,null,null,"COMPACT FLUORESCENT 32WWOOD POLE2",2030,null,2030,"COMPACT FLUORESCENT 32W","WOOD POLE",2]
[null,null,null,null,null,null,"COMPACT FLUORESCENT 32WWOOD POLE3",2040,null,2040,"COMPACT FLUORESCENT 32W","WOOD POLE",3]
[null,null,null,null,null,null,"COMPACT FLUORESCENT 32WWOOD POLE4",2050,null,2050,"COMPACT FLUORESCENT 32W","WOOD POLE",4]
[null,null,null,null,null,null,"COMPACT FLUORESCENT 32WSTEEL POLE1",2060,null,2060,"COMPACT FLUORESCENT 32W","STEEL POLE",1]
[null,null,null,null,null,null,"COMPACT FLUORESCENT 32WSTEEL POLE2",2070,null,2070,"COMPACT FLUORESCENT 32W","STEEL POLE",2]
[null,null,null,null,null,null,"COMPACT FLUORESCENT 32WSTEEL POLE3",2080,null,2080,"COMPACT FLUORESCENT 32W","STEEL POLE",3]
[null,null,null,null,null,null,"COMPACT FLUORESCENT 32WSTEEL POLE4",2090,null,2090,"COMPACT FLUORESCENT 32W","STEEL POLE",4]
[null,null,null,null,null,null,"T5 2x14WSHARED OR NO POLE1",1740,null,1740,"T5 2x14W","SHARED OR NO POLE",1]
[null,null,null,null,null,null,"T5 2x14WSHARED OR NO POLE2",1750,null,1750,"T5 2x14W","SHARED OR NO POLE",2]
[null,null,null,null,null,null,"T5 2x14WSHARED OR NO POLE3",1760,null,1760,"T5 2x14W","SHARED OR NO POLE",3]
[null,null,null,null,null,null,"T5 2x14WSHARED OR NO POLE4",1770,null,1770,"T5 2x14W","SHARED OR NO POLE",4]
[null,null,null,null,null,null,"T5 2x14WWOOD POLE1",1780,null,1780,"T5 2x14W","WOOD POLE",1]
[null,null,null,null,null,null,"T5 2x14WWOOD POLE2",1790,null,1790,"T5 2x14W","WOOD POLE",2]
[null,null,null,null,null,null,"T5 2x14WWOOD POLE3",1800,null,1800,"T5 2x14W","WOOD POLE",3]
[null,null,null,null,null,null,"T5 2x14WWOOD POLE4",1810,null,1810,"T5 2x14W","WOOD POLE",4]
[null,null,null,null,null,null,"T5 2x14WSTEEL POLE1",1820,null,1820,"T5 2x14W","STEEL POLE",1]
[null,null,null,null,null,null,"T5 2x14WSTEEL POLE2",1830,null,1830,"T5 2x14W","STEEL POLE",2]
[null,null,null,null,null,null,"T5 2x14WSTEEL POLE3",1840,null,1840,"T5 2x14W","STEEL POLE",3]
[null,null,null,null,null,null,"T5 2x14WSTEEL POLE4",1850,null,1850,"T5 2x14W","STEEL POLE",4]
[null,null,null,null,null,null,"T5 2x24WSHARED OR NO POLE1",1860,null,1860,"T5 2x24W","SHARED OR NO POLE",1]
[null,null,null,null,null,null,"T5 2x24WSHARED OR NO POLE2",1870,null,1870,"T5 2x24W","SHARED OR NO POLE",2]
[null,null,null,null,null,null,"T5 2x24WSHARED OR NO POLE3",1880,null,1880,"T5 2x24W","SHARED OR NO POLE",3]
[null,null,null,null,null,null,"T5 2x24WSHARED OR NO POLE4",1890,null,1890,"T5 2x24W","SHARED OR NO POLE",4]
[null,null,null,null,null,null,"T5 2x24WWOOD POLE1",1900,null,1900,"T5 2x24W","WOOD POLE",1]
[null,null,null,null,null,null,"T5 2x24WWOOD POLE2",1910,null,1910,"T5 2x24W","WOOD POLE",2]
[null,null,null,null,null,null,"T5 2x24WWOOD POLE3",1920,null,1920,"T5 2x24W","WOOD POLE",3]
[null,null,null,null,null,null,"T5 2x24WWOOD POLE4",1930,null,1930,"T5 2x24W","WOOD POLE",4]
[null,null,null,null,null,null,"T5 2x24WSTEEL POLE1",1940,null,1940,"T5 2x24W","STEEL POLE",1]
[null,null,null,null,null,null,"T5 2x24WSTEEL POLE2",1950,null,1950,"T5 2x24W","STEEL POLE",2]
[null,null,null,null,null,null,"T5 2x24WSTEEL POLE3",1960,null,1960,"T5 2x24W","STEEL POLE",3]
[null,null,null,null,null,null,"T5 2x24WSTEEL POLE4",1970,null,1970,"T5 2x24W","STEEL POLE",4]
[]
[null,null,null,null,null,null,"Hand-calculated construction codes",null,null,"Hand-calculated construction codes"]
[]
[null,null,null,null,null,null,"FLU0355 - Compact Fluorescent 32",1980,"FLU0355-ST",1980,"FLU0355 - Compact Fluorescent 32","Shared or No Pole",1]
[null,null,null,null,null,null,"LED0090 - LED90",3030,"LED0090-ST",3030,"LED0090 - LED90","Shared or No Pole",1]
[null,null,null,null,null,null,"LED0090 - LED90",3040,"LED0090-ST",3040,"LED0090 - LED90","Wood Pole",1]
[null,null,null,null,null,null,"LED0090 - LED90",3050,"LED0090-ST",3050,"LED0090 - LED90","Steel Pole",1]
[null,null,null,null,null,null,"LED0025 - EvolveLED 25w",3060,"LED0025-ST",3060,"LED0025 - EvolveLED 25w","Shared or No Pole",1]
[null,null,null,null,null,null,"LED0025 - EvolveLED 25w",3070,"LED0025-ST",3070,"LED0025 - EvolveLED 25w","Shared or No Pole",2]
[null,null,null,null,null,null,"LED0025 - EvolveLED 25w",3100,"LED0025-ST",3100,"LED0025 - EvolveLED 25w","Steel Pole",1]
[null,null,null,null,null,null,"LED0025 - EvolveLED 25w",3110,"LED0025-ST",3110,"LED0025 - EvolveLED 25w","Steel Pole",2]
[null,null,null,null,null,null,"LED0025 - EvolveLED 25w",3140,"LED0025-ST",3140,"LED0025 - EvolveLED 25w","Wood Pole",5]
[null,null,null,null,null,null,"LED0025 - EvolveLED 25w",3150,"LED0025-ST",3150,"LED0025 - EvolveLED 25w","Wood Pole",2]
[null,null,null,null,null,null,"LED0018 - StreetLED 18w",3180,"LED0018-ST",3180,"LED0018 - StreetLED 18w","Shared or No Pole",3]
[null,null,null,null,null,null,"LED0018 - StreetLED 18w",3190,"LED0018-ST",3190,"LED0018 - StreetLED 18w","Shared or No Pole",2]
[null,null,null,null,null,null,"LED0018 - StreetLED 18w",3200,"LED0018-ST",3200,"LED0018 - StreetLED 18w","Shared or No Pole",3]
[null,null,null,null,null,null,"LED0018 - StreetLED 18w",3220,"LED0018-ST",3220,"LED0018 - StreetLED 18w","Steel Pole",1]
[null,null,null,null,null,null,"LED0018 - StreetLED 18w",3260,"LED0018-ST",3260,"LED0018 - StreetLED 18w","Wood Pole",2]
[null,null,null,null,null,null,"LED0012 - Aldridge LED 198W - Std Distribution",4710,"LED0012-ST",4710,"LED0012 - Aldridge LED 198W - Std Distribution","Shared or No Pole",1]

{"sheet":"New Component SLUOS","index":10,"n_rows":105,"n_cols":14,"rows_kept":105,"cut":false,"hidden":false,"merged":[[1,1,1,3],[1,5,1,9]]}
[]
[null,"Final Pricing",null,null,null,"Internal Use Only"]
[null,"Cumulative CPI rate Nominal to 18/19",1.0325189226840028]
[]
[null,"Support Type","CAPEX","OPEX",null,"-","CAPEX Lookup","OPEX Lookup","Name From Model","Prefered Name"]
[null,"7.5m Steel Column Single Outreach",207.36544116406429,13.158504414862918,null,null,"7.5_Single","STEEL POLE","7.5m Steel Column Single Outreach"]
[null,"7.5m Steel Column Double Outreach",214.70252637445628,13.158504414862918,null,null,"7.5_Double","STEEL POLE","7.5m Steel Column Double Outreach"]
[null,"9.0m Steel Column Single Outreach",279.06864049872803,13.158504414862918,null,null,"9.0_Single","STEEL POLE","9.0m Steel Column Single Outreach"]
[null,"9.0m Steel Column Double Outreach",314.86503320721891,13.158504414862918,null,null,"9.0_Double","STEEL POLE","9.0m Steel Column Double Outreach"]
[null,"10.5m Steel Column Single Outreach",333.58108660464694,13.158504414862918,null,null,"10.5_Single","STEEL POLE","10.5m Steel Column Single Outreach"]
[null,"10.5m Steel Column Double Outreach",385.51653020682494,13.158504414862918,null,null,"10.5_Double","STEEL POLE","10.5m Steel Column Double Outreach"]
[null,"12.0m Steel Column Single Outreach",379.67591474818062,13.158504414862918,null,null,"12.0_Single","STEEL POLE","12.0m Steel Column Single Outreach"]
[null,"12.0m Steel Column Double Outreach",387.88681182799968,13.158504414862918,null,null,"12.0_Double","STEEL POLE","12.0m Steel Column Double Outreach"]
[null,"12m Roundabout Column",514.64360302604052,13.158504414862918,null,null,"7206.10.73","R/BOUT COLUMN","Column Stl Seesaw 12m B/M ground service","12m Roundabout Column"]
[null,"15m Roundabout Column",442.72501108184218,13.158504414862918,null,null,"7206.10.74","R/BOUT COLUMN","Column Stl Seesaw 15m B/M ground service","15m Roundabout Column"]
[null,"18m Roundabout Column",763.01225122536289,13.158504414862918,null,null,"7206.10.75","R/BOUT COLUMN","Column Stl Seesaw 18m B/M ground service","18m Roundabout Column"]
[null,"9.5m Timber Pole",109.70705460282814,15.259044323732859,null,null,"9.5m_Timber_Pole","WOOD POLE","9.5m Timber Pole"]
[null,"11m Timber Pole",154.06454535527524,15.259044323732859,null,null,"11m_Timber_Pole","WOOD POLE","11m Timber Pole"]
[null,"12.5m Timber Pole",169.39239049848206,15.259044323732859,null,null,"12.5m_Timber_Pole","WOOD POLE","12.5m Timber Pole"]
[null,"14m Timber Pole",179.77242106950249,15.259044323732859,null,null,"14m_Timber_Pole","WOOD POLE","14m Timber Pole"]
[null,"15.5m Timber Pole",190.88087483848918,15.259044323732859,null,null,"15.5m_Timber_Pole","WOOD POLE","15.5m Timber Pole"]
[null,"Decorative Category P Column",234.00917149043502,13.158504414862918,null,null,"7206.10.71","STEEL POLE","Column Stl Style 5 4.5m Prestige","Decorative Category P Column"]
[null,"Suspended",0,30.518088647465717,null,null,"NO_CAPEX","SUSPENDED","No Capex","Suspended"]
[null,"SHARED OR NO POLE",0,0,null,null,"Shared_No_Pole","SHARED OR NO POLE","Shared or No Pole"]
[]
[null,"Night Patrol","CAPEX","OPEX",null,"-","CAPEX Lookup","OPEX Lookup","Name From Model","Prefered Name"]
[null,"Night Patrol Per Asset Inspection",0,15.16210545679999,null,null,"NO_CAPEX","Street Patrol","No Capex"]
[]
[null,"Bracket Type","CAPEX","OPEX",null,"-","CAPEX Lookup","OPEX Lookup",null,"Prefered Name"]
[null,"Streetlight Bracket Category P",50.885576883321555,0,null,null,"Cat_P_Bracket",null,"Streetlight Bracket Category P"]
[null,"Streetlight Bracket Category V",84.389420752979916,0,null,null,"Cat_V_Bracket",null,"Streetlight Bracket Category V"]
[]
[null,"Traditional Luminaire Type","CAPEX","OPEX",null,"Lamp Code","CAPEX Lookup","OPEX Lookup","New Code","Prefered Naming","Count  All Tariffs\n(Inc. 6 & Metered)","CAPEX Recovery (Tariff 5)","Concessional CAPEX\n(Tariff 3)","OPEX Recovery\n(Tariff 1-5)"]
[null,"Tubular Flourescent <40W",0,56.233631250528006,null,"FLU0010-ST","NO_CAPEX","FLU0060","FLU<40","Tubular Flourescent <40W",46,0,0,19]
[null,"Tubular Flourescent >40W",24.358773050984805,55.988640845969748,null,"FLU0130-ST","7206.05.1","FLU0130","FLU>40","Tubular Flourescent >40W",1156,0,5,1110]
[null,"42W CFL Standard",32.288052701430303,64.087777950433804,null,"FLU0350-ST","7107.09.43","FLU0350","CFL42S","42W CFL Standard",58943,931,3638,58903]
[null,"42W CFL Decorative",90.558097621182242,64.087777950433804,null,"FLU0350-ST","7206.05.53","FLU0350","CFL42D","42W CFL Decorative"]
[null,"32W Compact Flourescent",87.081495497651474,66.443280227885069,null,"FLU0355-ST","Compact_Fluro_32W","FLU0355","CFL32S","32W Compact Flourescent",9,0,5,9]
[null,"2x14W T5 Fluoro",0,68.784255115782628,null,"FLU0360-ST","NO_CAPEX","FLU0360","FLU14","2x14W T5 Fluoro",3,0,0,3]
[null,"50W High Pressure Sodium",0,98.872473596478201,null,"HPS0010-ST","NO_CAPEX","HPS0010","HPS50","50W High Pressure Sodium",516,0,0,514]
[null,"50W High Pressure Sodium - Twin Arc",30.677187266033812,65.111064127593011,null,"HPS0010-TA","7107.09.30","HPS0010-TA","HPS50TA","50W High Pressure Sodium - Twin Arc",2240,25,77,2240]
[null,"70W High Pressure Sodium",30.058367113389959,96.936708799539886,null,"HPS0020-ST","7107.09.3","HPS0020","HPS70","70W High Pressure Sodium",28463,632,2048,28131]
[null,"70W High Pressure Sodium - Twin Arc",30.677187266033812,60.171291686086455,null,"HPS0020-TA","7107.09.30","HPS0020-TA","HPS70TA","70W High Pressure Sodium - Twin Arc",1148,14,73,1142]
[null,"100W High Pressure Sodium",0,96.936708799539886,null,"HPS0070-ST","NO_CAPEX","HPS0020","HPS100","100W High Pressure Sodium",102,0,0,76]
[null,"120W High Pressure Sodium",0,86.894155290271797,null,"HPS0080-ST","NO_CAPEX","HPS0090","HPS120","120W High Pressure Sodium",67,0,0,6]
[null,"150W High Pressure Sodium",66.41348577176386,86.894155290271797,null,"HPS0090-ST","7107.09.7","HPS0090","HPS150","150W High Pressure Sodium",10158,127,390,9940]
[null,"150W High Pressure Sodium - Twin Arc",68.142068296670089,73.075794145150425,null,"HPS0090-TA","7107.09.41","HPS0090-TA","HPS150TA","150W High Pressure Sodium - Twin Arc",228,4,7,228]
[null,"220W High Pressure Sodium",0,87.686956932463715,null,"HPS0100-ST","NO_CAPEX","HPS0110","HPS220","220W High Pressure Sodium",66,0,0,66]
[null,"250W High Pressure Sodium",66.41348577176386,87.686956932463715,null,"HPS0110-ST","7107.09.11","HPS0110","HPS250","250W High Pressure Sodium",23592,405,989,23313]
[null,"250W High Pressure Sodium - Twin Arc",74.089879135057146,83.836654137182734,null,"HPS0110-TA","7107.09.39","HPS0110-TA","HPS250TA","250W High Pressure Sodium - Twin Arc",627,9,26,627]
[null,"2x250W High Presure Sodium",0,87.686956932463715,null,"HPS0120-ST","NO_CAPEX","HPS0110","HPS2x250","2x250W High Presure Sodium",9,0,0,9]
[null,"310W High Pressure Sodium",0,87.686956932463715,null,"HPS0140-ST","NO_CAPEX","HPS0110","HPS310","310W High Pressure Sodium",100,1,0,100]
[null,"360W High Pressure Sodium",76.749046230719372,95.43855134293878,null,"HPS0160-ST","7107.09.21","HPS0170","HPS360","360W High Pressure Sodium",169,0,0,169]
[null,"400W High Pressure Sodium",76.749046230719372,95.43855134293878,null,"HPS0170-ST","7107.09.21","HPS0170","HPS400","400W High Pressure Sodium",2446,87,100,2395]
[null,"400W High Pressure Sodium - Twin Arc",79.913777247644475,74.544121462164952,null,"HPS0170-TA","7107.09.24","HPS0170-TA","HPS400TA","400W High Pressure Sodium - Twin Arc",36,1,1,36]
[null,"2x400W High Pressure Sodium",0,95.43855134293878,null,"HPS0180-ST","NO_CAPEX","HPS0170","HPS2x400","2x400W High Pressure Sodium",45,0,0,45]
[null,"3x400W High Pressure Sodium",0,95.43855134293878,null,"HPS0190-ST","NO_CAPEX","HPS0170","HPS3x400","3x400W High Pressure Sodium",3,0,0,2]
[null,"1000W High Pressure Sodium",0,291.97299825672292,null,"HPS0250-ST","NO_CAPEX","MHR0100","HPS1000","1000W High Pressure Sodium",34,0,0,34]
[null,"Incandescent 60",0,57.560338975582695,null,"INC0030-ST","NO_CAPEX","INC0030","INC60","Incandescent 60",105,0,0,81]
[null,"Incandescent 75",0,57.560338975582695,null,"INC0040-ST","NO_CAPEX","INC0030","INC75","Incandescent 75",31,0,0,27]
[null,"Incandescent 100",0,57.560338975582695,null,"INC0050-ST","NO_CAPEX","INC0030","INC100","Incandescent 100",28,0,0,18]
[null,"Incandescent 150",0,57.560338975582695,null,"INC0080-ST","NO_CAPEX","INC0030","INC150","Incandescent 150",18,0,0,2]
[null,"Incandescent 200",0,57.560338975582695,null,"INC0090-ST","NO_CAPEX","INC0030","INC200","Incandescent 200",2,0,0,2]
[null,"Incandescent 300",0,57.560338975582695,null,"INC0100-ST","NO_CAPEX","INC0030","INC300","Incandescent 300",4,0,0,3]
[null,"Incandescent 500",0,57.560338975582695,null,"INC0110-ST","NO_CAPEX","INC0030","INC500","Incandescent 500",4,0,0,1]
[null,"Incandescent 1500",0,57.560338975582695,null,"INC0160-ST","NO_CAPEX","INC0030","INC1500","Incandescent 1500",2,0,0,2]
[null,"55W Low Pressure Sodium",66.41348577176386,128.45346140927836,null,"LPS0030-ST","7107.09.7","LPS0030","LPS55","55W Low Pressure Sodium",262,2,0,262]
[null,"100W Low Pressure Sodium",66.41348577176386,128.94616187596196,null,"LPS0040-ST","7107.09.7","LPS0040","LPS100","100W Low Pressure Sodium",201,0,2,198]
[null,"135W Low Pressure Sodium",0,163.50586569759824,null,"LPS0050-ST","NO_CAPEX","LPS0050","LPS135","135W Low Pressure Sodium",27,0,0,27]
[null,"150W Low Pressure Sodium",0,163.50586569759824,null,"LPS0060-ST","NO_CAPEX","LPS0050","LPS150","150W Low Pressure Sodium",116,0,0,116]
[null,"310W Low Pressure Sodium",0,163.50586569759824,null,"LPS0090-ST","NO_CAPEX","LPS0050","LPS310","310W Low Pressure Sodium",1,0,0,1]
[null,"70W Metal Hallide",0,139.23455256321998,null,"MHR0010-ST","NO_CAPEX","MHR0060","MHD70","70W Metal Hallide",254,0,0,246]
[null,"150W Metal Hallide",0,139.23455256321998,null,"MHR0030-ST","NO_CAPEX","MHR0060","MHD150","150W Metal Hallide",295,0,0,261]
[null,"250W Metal Hallide",66.41348577176386,139.23455256321998,null,"MHR0060-ST","7107.09.11","MHR0060","MHD400","250W Metal Hallide",195,1,18,195]
[null,"400W Metal Hallide",66.41348577176386,145.88660106113718,null,"MHR0070-ST","7107.09.11","MHR0070","MHD400","400W Metal Hallide",172,3,8,154]
[null,"1000W Metal Hallide",149.94722883819702,291.97299825672292,null,"MHR0100-ST","7107.09.50","MHR0100","MHD1000","1000W Metal Hallide",10,0,1,3]
[null,"50W Mercury Vapour",24.358773050984805,80.732439657592465,null,"MVA0010-ST","7206.05.1","MVA0010","MVA50","50W Mercury Vapour",1089,0,9,1058]
[null,"80W Mercury Vapour",24.358773050984805,68.448960662638768,null,"MVA0020-ST","7206.05.1","MVA0020","MVA80","80W Mercury Vapour",16132,29,267,15716]
[null,"125W Mercury Vapour",0,76.585718312910217,null,"MVA0080-ST","NO_CAPEX","MVA0080","MVA125","125W Mercury Vapour",573,0,0,381]
[null,"250W Mercury Vapour",66.41348577176386,131.75551530100972,null,"MVA0190-ST","7107.09.7","MVA0190","MVA250","250W Mercury Vapour",642,5,25,635]
[null,"400W Mercury Vapour",66.41348577176386,149.0190797039987,null,"MVA0220-ST","7107.09.7","MVA0220","MVA400","400W Mercury Vapour",759,0,10,720]
[null,"250W HPS Nightwatch",85.799631723131682,87.686956932463715,null,"7107.09.18","7107.09.18","HPS0110","HPSFL250","250W HPS Nightwatch"]
[null,"400W HPS Nightwatch",87.769844063347364,95.43855134293878,null,"7107.09.28","7107.09.26","HPS0170","HPSFL400","400W HPS Nightwatch"]
[null,"250W MH Nightwatch",225.20123177107521,87.686956932463715,null,"7107.09.19","250W_NW","HPS0110","HPSFL250","250W MH Nightwatch"]
[null,"400W MH Nightwatch",228.47763477831884,95.43855134293878,null,"7107.09.25","400W_NW","HPS0170","HPSFL400","400W MH Nightwatch"]
[]
[null,"LED Luminaire Type","CAPEX","OPEX",null,"Lamp Code","CAPEX Lookup","OPEX Lookup",null,"Prefered Naming","Count  All Tariffs\n(Inc. 6 & Metered)","CAPEX Recovery (Tariff 5)","Concessional CAPEX\n(Tariff 3)","OPEX Recovery\n(Tariff 1-5)"]
[null,"23W LED Gerard StreetLED",68.221493775252071,39.67728761399912,null,null,"7206.05.81","LED0002","LED23GER2017","23W LED Gerard StreetLED",null,0,0,0]
[null,"17W LED Gerard StreetLED",70.146763511152471,39.67728761399912,null,"LED0003-ST","7206.05.82","LED0003","LED17GER2017","17W LED Gerard StreetLED",2318,2,0,2318]
[null,"17W LED Gerard StreetLED Aeroscreen",72.152524750135711,39.67728761399912,null,null,"7206.05.83","LED0004","LED17GER2017-AERO","17W LED Gerard StreetLED Aeroscreen",null,0,0,0]
[null,"17W LED Gerard StreetLED Louvred",72.152524750135711,39.67728761399912,null,null,"7206.05.84","LED0005","LED17GER2017-LOUVRE","17W LED Gerard StreetLED Louvred",null,0,0,0]
[null,"22W LED Gerard StreetLED",70.146763511152471,39.67728761399912,null,null,"7206.05.82","LED0003","LED22GER2015","22W LED Gerard StreetLED"]
[null,"25W LED GE Evolve ",50.97401379372409,46.659685226253842,null,"LED0006-ST","7206.05.85","LED0006","LED25GE2015","25W LED GE Evolve ",1,0,0,1]
[null,"35W LED Pecan Luminaire",85.189972803526715,39.082111136217968,null,null,"7206.05.86","LED0007","LED35WPEC2017","35W LED Pecan Luminaire",null,0,0,0]
[null,"29W LED Pecan Luminaire - Aeroscreen",85.189972803526715,38.822032710639377,null,null,"7206.05.87","LED0008","LED29WPEC2017-AERO","29W LED Pecan Luminaire - Aeroscreen",null,0,0,0]
[null,"42W LED Gerard StreetLED",138.38872146508311,39.67728761399912,null,"LED0001-ST","7206.05.88","LED0001","LED42GER2017","42W LED Gerard StreetLED",141,0,0,141]
[null,"42W LED Pecan Luminaire",138.38872146508311,44.329643609043615,null,null,"7206.05.88","LED0009","LED42WPEC2017","42W LED Pecan Luminaire",null,0,0,0]
[null,"36W LED Pecan Luminaire - Aeroscreen",138.38872146508311,44.329643609043615,null,null,"7206.05.89","LED0010","LED36WPEC2017-AERO","36W LED Pecan Luminaire - Aeroscreen",null,0,0,0]
[null,"105W LED Aldridge Luminaire",221.29523552825751,44.329643609043615,null,"LED0090-ST","7206.05.90","LED0011","LED105ALD2017","105W LED Aldridge Luminaire",7,0,7,7]
[null,"198W LED Aldridge Standard Distribution",234.23067933449852,47.092686945258805,null,"LED0012-ST","7206.05.91","LED0012","LED198ALD2017-Std_Dist","198W LED Aldridge Standard Distribution",1,0,0,1]
[null,"198W LED Aldridge Forward Distribution",231.77919337574124,47.092686945258805,null,null,"7206.05.92","LED0013","LED198ALD201-_Fwd_Dist","198W LED Aldridge Forward Distribution",null,0,0,0]
[null,"298W LED Aldridge Luminaire",260.97416252094166,47.092686945258805,null,null,"7206.05.93","LED0014","LED298ALD201-_Fwd_Dist","298W LED Aldridge Luminaire"]
[null,"100W LED Aldridge Luminaire",233.23803136855199,47.092686945258805,null,null,"LED0015","LED0015","LED100ALD2017","100W LED Aldridge Luminaire"]
[null,"200W LED Aldridge Luminaire",233.23803136855199,47.092686945258805,null,null,"LED0016","LED0016","LED200ALD2017","200W LED Aldridge Luminaire"]
[null,"300W LED Aldridge Luminaire",259.8268161706917,47.092686945258805,null,null,"LED0017","LED0017","LED300ALD2017","300W LED Aldridge Luminaire"]